Workbook

Sheet Инструкция (hidden)

Sheet Главный
KO2: условие | KS2: Стена | KU2: Толщина стены | KW2: Изоляция стены | KY2: тип стропильной системы | LA2: Угол кровли | LC2: Изоляция кровли | LE2: Теплоизоляция фундамента | LI2: Температура внутри | LK2: Температурный график | LM2: Кратность воздухообмена | LO2: Среда эксплуатации | LR2: скорость тепловентилятора | LV2: шифр на крышу | MA2: Шифр тип кровли | MC2: -1 | MD2: 100 | ME2: выберите | MG2: выберите | MI2: =KS4 -> Сэндвич-панель | MJ2: Дополнительная изоляция стен | MK2: Толщина стенового материала | MN2: =MI2 -> Сэндвич-панель | MO2: Каменная вата | MP2: 0.039 | MS2: Принятый объём приточн. воздуха
KS3: выберите | KU3: выберите | KW3: выберите | KY3: выберите | LA3: выберите | LC3: выберите | LE3: выберите | LG3: выберите | LI3: выберите | LO3: выберите | LQ3: выберите | LS3: выберите | ME3: 0.5 | MG3: 0 | MI3: =KS5 -> Газобетон | MJ3: Дополнительная изоляция стен | MK3: Толщина стенового материала | MN3: =MI3 -> Газобетон | MO3: Каменная вата | MP3: 0.039 | MS3: Объём приточ. воздуха по кратности
KO4: =IF(AX31=AX31,1,AX31) -> 1 | KS4: Сэндвич-панель | KT4: Толщина теплоизоляции кровли | KU4: выберите | KW4: 0 | KY4: выберите | LA4: 0 | LB4: =CONCATENATE($KY$6,LA4) -> 2-х скатная0 | LC4: 0 | LD4: -1 | LE4: 0 | LG4: Однокамерный стеклопакет (4-24-4) | LI4: 0 | LK4: выберите | LM4: выберите | LO4: Нет | LP4: STANDART | LQ4: Да | LR4: 3 | LS4: максимальная | LT4: 3 | LU4: условие | LV4: =CONCATENATE(KS13,KS3) -> Сотовый поликарбонатвыберите | LZ4: условие | MA4: =CONCATENATE(KY6,MC2) -> 2-х скатная-1 | ME4: 0.55 | MG4: 0.1 | MI4: Каркас | MJ4: Дополнительная изоляция стен | MK4: Толщина стенового материала | MN4: Каркас | MO4: Каменная вата | MP4: 0.039
KS5: Газобетон | KT5: Толщина теплоизоляции кровли | KU5: =Интерфейс!KT4 -> 0 | KW5: =Интерфейс!KV4 -> 0 | KY5: Плоская | LA5: 10 | LB5: =CONCATENATE($KY$6,LA5) -> 2-х скатная10 | LC5: =Интерфейс!KZ4 -> 0 | LD5: -1 | LE5: 50 | LG5: 2-х камерный стеклопакет (4-10-4-10-k4) | LI5: 5 | LK5: 120/90 | LM5: 0 | LN5: =CONCATENATE($KQ$3,LM5) -> 0 | LO5: Да | LP5: FARMER | LQ5: Нет | LR5: 2 | LS5: средняя | LT5: 2 | ME5: 0.6 | MG5: 0.2 | MI5: Поризованный камень | MJ5: Дополнительная изоляция стен | MK5: Толщина стенового материала | MN5: Поризованный камень | MO5: Каменная вата | MP5: 0.039
L6: выберите | KS6: Каркас | KT6: Толщина теплоизоляции кровли | KU6: =Интерфейс!KT5 -> 0 | KW6: =Интерфейс!KV5 -> 0 | KY6: 2-х скатная | LA6: 15 | LB6: 2-х скатная15 | LC6: =Интерфейс!KZ5 -> 0 | LD6: -1 | LE6: 100 | LG6: 2-х камерный энергосберегающий (4-10-4-10-i4) | LI6: 10 | LK6: 90/70 | LM6: 0.5 | LR6: 1 | LS6: минимальная | LT6: 1 | LU6: факт | LV6: =CONCATENATE(LU11,AX24) ->  | LZ6: факт | MA6: =CONCATENATE(AX20,AX22) -> выберитевыберите | ME6: 0.65 | MG6: 0.3 | MI6: Сотовый поликарбонат | MJ6: Дополнительная изоляция стен | MK6: Толщина поликорбоната | MN6: Сотовый поликарбонат | MO6: =MN6 -> Сотовый поликарбонат | MP6: ='Пирог стены окна'!M59 -> 0.21
KS7: Поризованный камень | KT7: Толщина теплоизоляции кровли | KU7: =Интерфейс!KT6 -> 0 | KW7: =Интерфейс!KV6 -> 0 | KY7: Полукруглая кровля | LA7: 20 | LB7: 2-х скатная20 | LC7: =Интерфейс!KZ6 -> 0 | LD7: -1 | LE7: 150 | LI7: 15 | LK7: 80/60 | LM7: 0.8 | ME7: 0.7 | MG7: 0.4 | MI7: Профнастил | MJ7: Дополнительная изоляция стен | MK7: Толщина листа | MN7: Профнастил | MO7: Каменная вата | MP7: 0.039
B8: Твоздуха в помещении (требуемая) | AX8: =AX41 -> выберите | BG8: ºС | BZ8: °С | KS8: Сотовый поликарбонат | KT8: Толщина материала кровли | KU8: =Интерфейс!KT7 -> 0 | KW8: =Интерфейс!KV7 -> 0 | LA8: 25 | LB8: 2-х скатная25 | LC8: =Интерфейс!KZ7 -> 0 | LD8: -1 | LE8: 200 | LI8: 20 | LK8: 70/50 | LM8: 1 | ME8: 0.75 | MG8: 0.5 | MI8: Спортивный тент | MJ8: =MO8 -> Изоляции между тентами | MK8: Толщина тента | MN8: Спортивный тент | MO8: ='Пирог стены окна'!K102 -> Изоляции между тентами | MP8: ='Пирог стены окна'!M102 -> 
KS9: Профнастил | KT9: Толщина теплоизоляции кровли | KU9: =Интерфейс!KT8 -> 0 | KW9: =Интерфейс!KV8 -> 0 | LA9: 30 | LB9: 2-х скатная30 | LC9: =Интерфейс!KZ8 -> 0 | LD9: -1 | LE9: 250 | LK9: 50/30 | LM9: 1.25 | ME9: 0.8 | MG9: 0.6
KS10: Спортивный тент | KT10: =MO8 -> Изоляции между тентами | KU10: =Интерфейс!KT9 -> 0 | KW10: =Интерфейс!KV9 -> 0 | LA10: 35 | LB10: 2-х скатная35 | LC10: =Интерфейс!KZ9 -> 0 | LD10: -1 | LM10: 1.5 | ME10: 0.85 | MG10: 0.7
V11: выберите | LA11: 38 | LB11: 2-х скатная38 | LD11: -1 | LM11: 2 | LU11: =VLOOKUP(V11,LV11:LW17,2,0) ->  | LV11: =KS4 -> Сэндвич-панель | LW11: =LV11 -> Сэндвич-панель | ME11: 0.9 | MG11: 0.8
LA12: 40 | LB12: 2-х скатная40 | LM12: 2.5 | LV12: =KS5 -> Газобетон | LW12: =LV12 -> Газобетон | ME12: 0.95 | MG12: 0.9
AX13: выберите | KS13: =IF(V11=V11,KS8,IF(V11=KS8,KS8,0)) -> Сотовый поликарбонат | LA13: 45 | LB13: 2-х скатная45 | LM13: 3 | LV13: Каркас | LW13: Каркас | MG13: 1
LM14: 3.5 | LV14: Поризованный камень | LW14: Поризованный камень
AX15: выберите | LB15: шифр | LC15: =CONCATENATE(AX20,AX22) -> выберитевыберите | LD15: =VLOOKUP(LC15,LB4:LD11,3,0) ->  | LM15: 4 | LV15: Сотовый поликарбонат | LW15: Сотовый поликарбонат
LM16: 4.5 | LV16: Профнастил | LW16: Профнастил
AX17: выберите | LM17: 5 | LV17: Спортивный тент | LW17: =LW15 -> Сотовый поликарбонат
LM18: 5.6
LM19: 6
AX20: выберите | KS20: =KS4 -> Сэндвич-панель | KT20: 0.8 | LM20: 7
KS21: =KS5 -> Газобетон | KT21: 0.85 | LM21: 8
AX22: выберите | KS22: Каркас | KT22: 0.9
KS23: Поризованный камень | KT23: 0.85
AX24: выберите | KS24: Сотовый поликарбонат | KT24: 0.65
KS25: Профнастил | KT25: 0.8
KS26: Спортивный тент | KT26: 0.9
AX28: выберите
T31: выберите
AA33: выберите
KL37: выберите | KN37: выберите | KP37: выберите | KS37: выберите
KL38: 0 | KN38: 120/90 | KP38: Нет | KQ38: STANDART | KS38: максимальная
B39: Необходимая тепловая мощность | BJ39: кВт | CF39: Программа подбора водяных тепловентиляторов REVENTON | KL39: 5 | KN39: 90/70 | KP39: Да | KQ39: FARMER | KS39: средняя
KL40: 10 | KN40: 80/60 | KS40: минимальная
B41: Твоздуха в помещении (требуемая) | AX41: выберите | BM41: ºС | KL41: 15 | KN41: 70/50
KL42: 20 | KN42: 50/30
B43: Температура теплоносителя Т1/Т2 | AX43: выберите | BM43: ºС | FE43: =AX39 -> 0
B45: Эксплуатация в агрессивной среде | AX45: выберите | BM45: =VLOOKUP(AX45,KP38:KQ39,2,0) -> 
B47: Скорость тепловентилятора | AX47: выберите | CA47: Построчно отображено количество тепловентиляторов с учётом их мощности
CE51: Модель REVENTON | CU51: Кол-во (шт) | DC51: Розничная цена в руб с НДС | DT51: Мощность агрегата (кВт) | EG51: Дальность струи (м) | ET51: Тем-ра воздуха на выходе (ºC) | FG51: Расход воды (м³/ч) | FT51: Гидрав. сопротивл. (кПа) | GG51: Защита двигателя | GT51: Уровень шума (дБ) | HG51: Рядов теплообменника | HT51: Расход воздуха (м³/ч)
CE53: =Интерфейс!DO25 -> HC20-3S | CU53: =Интерфейс!EK25 -> 0 | DC53: =Интерфейс!FA25 -> 0 | DT53: =Интерфейс!GE25 -> 0 | EG53: =Интерфейс!GF25 ->  | ET53: =Интерфейс!GG25 ->  | FG53: =Интерфейс!GH25 ->  | FT53: =Интерфейс!GI25 ->  | GG53: =Интерфейс!GJ25 -> IP 54 | GT53: =Интерфейс!GK25 ->  | HG53: =Интерфейс!GL25 -> один | HT53: =Интерфейс!GM25 -> 
CE55: =Интерфейс!DO27 -> HC30-3S | CU55: =Интерфейс!EK27 -> 0 | DC55: =Интерфейс!FA27 -> 0 | DT55: =Интерфейс!GE27 -> 0 | EG55: =Интерфейс!GF27 ->  | ET55: =Интерфейс!GG27 ->  | FG55: =Интерфейс!GH27 ->  | FT55: =Интерфейс!GI27 ->  | GG55: =Интерфейс!GJ27 -> IP 54 | GT55: =Интерфейс!GK27 ->  | HG55: =Интерфейс!GL27 -> один | HT55: =Интерфейс!GM27 -> 
CE57: =Интерфейс!DO30 -> HC35-3S | CU57: =Интерфейс!EK30 -> 0 | DC57: =Интерфейс!FA30 -> 0 | DT57: =Интерфейс!GE30 -> 0 | EG57: =Интерфейс!GF30 ->  | ET57: =Интерфейс!GG30 ->  | FG57: =Интерфейс!GH30 ->  | FT57: =Интерфейс!GI30 ->  | GG57: =Интерфейс!GJ30 -> IP 54 | GT57: =Интерфейс!GK30 ->  | HG57: =Интерфейс!GL30 -> два | HT57: =Интерфейс!GM30 -> 
CE59: =Интерфейс!DO32 -> HC45-3S | CU59: =Интерфейс!EK32 -> 0 | DC59: =Интерфейс!FA32 -> 0 | DT59: =Интерфейс!GE32 -> 0 | EG59: =Интерфейс!GF32 ->  | ET59: =Интерфейс!GG32 ->  | FG59: =Интерфейс!GH32 ->  | FT59: =Интерфейс!GI32 ->  | GG59: =Интерфейс!GJ32 -> IP 54 | GT59: =Интерфейс!GK32 ->  | HG59: =Интерфейс!GL32 -> два | HT59: =Интерфейс!GM32 -> 
CE61: =Интерфейс!DO34 -> HC50-3S | CU61: =Интерфейс!EK34 -> 0 | DC61: =Интерфейс!FA34 -> 0 | DT61: =Интерфейс!GE34 -> 0 | EG61: =Интерфейс!GF34 ->  | ET61: =Интерфейс!GG34 ->  | FG61: =Интерфейс!GH34 ->  | FT61: =Интерфейс!GI34 ->  | GG61: =Интерфейс!GJ34 -> IP 54 | GT61: =Интерфейс!GK34 ->  | HG61: =Интерфейс!GL34 -> два | HT61: =Интерфейс!GM34 -> 
CE63: =Интерфейс!DO37 -> HC70-3S | CU63: =Интерфейс!EK37 -> 0 | DC63: =Интерфейс!FA37 -> 0 | DT63: =Интерфейс!GE37 -> 0 | EG63: =Интерфейс!GF37 ->  | ET63: =Интерфейс!GG37 ->  | FG63: =Интерфейс!GH37 ->  | FT63: =Интерфейс!GI37 ->  | GG63: =Интерфейс!GJ37 -> IP 54 | GT63: =Интерфейс!GK37 ->  | HG63: =Интерфейс!GL37 -> три | HT63: =Интерфейс!GM37 -> 
CE65: =Интерфейс!DO39 -> HCF IP54 | CU65: =Интерфейс!EK39 ->  | DC65: =Интерфейс!FA39 ->  | DT65: =Интерфейс!GE39 ->  | EG65: =Интерфейс!GF39 ->  | ET65: =Интерфейс!GG39 ->  | FG65: =Интерфейс!GH39 ->  | FT65: =Интерфейс!GI39 ->  | GG65: =Интерфейс!GJ39 -> IP 54 | GT65: =Интерфейс!GK39 ->  | HG65: =Интерфейс!GL39 -> два | HT65: =Интерфейс!GM39 -> 
CE67: =Интерфейс!DO41 -> HCF IP65 | CU67: =Интерфейс!EK41 ->  | DC67: =Интерфейс!FA41 ->  | DT67: =Интерфейс!GE41 ->  | EG67: =Интерфейс!GF41 ->  | ET67: =Интерфейс!GG41 ->  | FG67: =Интерфейс!GH41 ->  | FT67: =Интерфейс!GI41 ->  | GG67: =Интерфейс!GJ41 -> IP 65 | GT67: =Интерфейс!GK41 ->  | HG67: =Интерфейс!GL41 -> два | HT67: =Интерфейс!GM41 -> 

Sheet Печать (hidden)
B2: Отапливаемая площадь | AC2: =Главный!AC2 -> 0 | AL2: м² | AX2: (от 50 до 5 000 м²) | CE2: Данные на основании (СП 131.13330.2012) "Строительная климатология актуализированная версия СНиП 23-01-99"
B4: Высота стены / потолка | AC4: =Главный!AC4 -> 0 | AL4: м | CE4: Продолжительность отопительного сезона | EL4: =Главный!EL4 -> 0 | EU4: суток | FB4: таблица 3.1 (для периода со сред. сут. температ. воздуха ≤8ºС)
B6: Город | L6: =Главный!L6 -> выберите | BM6: =Главный!BM6 -> 0 | CE6: Температура холодной пятидневки | EL6: =Главный!EL6 -> 0 | EU6: °С | FB6: таблица 3.1 (обеспеченностью 0,92)
B8: Твоздуха в помещении (требуемая) | AX8: =Главный!AX8 -> выберите | BG8: ºС | BM8: =Главный!BM8 -> 0 | BZ8: =Главный!BZ8 -> °С | CE8: Средняя температура за отопительный сезон | EL8: =Главный!EL8 -> 0 | EU8: °С | FB8: таблица 3.1 (для периода со сред. сут. температ. воздуха ≤8ºС)
B11: Стены здания | V11: =Главный!V11 -> выберите | BM11: =Главный!BM11 -> 0 | CE11: Расчёт на основании (СП 23-101-2004) "Проектирование тепловой защиты зданий" | GG11: Коэффициент теплопроводности
B13: =Главный!B13 -> 0 | AX13: =Главный!AX13 -> выберите | BG13: мм | BL13: =Главный!BL13 -> 0 | BM13: =Главный!BM13 -> 0 | BZ13: =Главный!BZ13 -> 0 | CE13: =Главный!CE13 -> 0 | EL13: =Главный!EL13 -> 0 | EU13: м² • °С/Вт | GG13: =V11 -> выберите | HH13: =Главный!HH13 -> 0 | HQ13: Вт/м ºС
B15: =Главный!B15 -> 0 | AX15: =Главный!AX15 -> выберите | BG15: мм | BL15: =Главный!BL15 -> 0 | BM15: =Главный!BM15 -> 0 | BZ15: =Главный!BZ15 -> 0 | CE15: Нормируемое сопротивление теплопередаче | EL15: =Главный!EL15 -> 0 | EU15: м² • °С/Вт | GG15: =Главный!GE15 -> 0 | HH15: =Главный!HH15 -> 0 | HQ15: Вт/м ºС
B17: Принятый коэфф. однородности ( r ) | AX17: =Главный!AX17 -> выберите | CE17: =Главный!CE17 -> 0 | EL17: =Главный!EL17 -> 0 | EU17: =Главный!EU17 -> 0 | FK17: =Главный!FB17 -> 0 | FM17: =Главный!FJ17 -> 0 | HH17: =Главный!HH17 -> 0
B20: Выберите тип стропильной системы | AX20: =Главный!AX20 -> выберите | CE20: Расчёт на основании (СП 23-101-2004) "Проектирование тепловой защиты зданий"
B22: Выберите угол наклона кровли | AX22: =Главный!AX22 -> выберите | BG22: º | BM22: =Главный!BM22 -> 0 | CE22: =Главный!CE22 -> 0 | EL22: =Главный!EL22 -> 0 | EU22: м² • °С/Вт | GG22: Коэффициент теплопроводности
B24: =Главный!B24 -> 0 | AX24: =Главный!AX24 -> выберите | BG24: мм | BL24: =Главный!BL24 -> 0 | BM24: =Главный!BM24 -> 0 | BZ24: =Главный!BZ24 -> 0 | CE24: Нормируемое сопротивление теплопередаче | EL24: =Главный!EL24 -> 0 | EU24: м² • °С/Вт | GG24: =Главный!GF24 -> 0 | HH24: =Главный!HH24 -> 0 | HQ24: Вт/м ºС
BM26: =Главный!BM26 -> 0 | CE26: =Главный!CE26 -> 0 | EL26: =Главный!EL26 -> 0 | EU26: =Главный!EU26 -> 0 | FJ26: =Главный!FB26 -> 0
B28: Толщина теплоизолции фундамента | AX28: =Главный!AX28 -> выберите | BG28: мм | BL28: =Главный!BL28 -> 0 | BM28: =Главный!BM28 -> 0 | BZ28: =Главный!BZ28 -> 0 | CE28: =Главный!CE28 -> 0 | EL28: =Главный!EL28 -> 0 | EU28: =Главный!EU28 -> 0 | GG28: =Главный!GF28 -> 0 | HH28: =Главный!HH28 -> 0 | HQ28: Вт/м ºС
CE30: =Главный!CE29 -> 0 | DB30: =Главный!DC29 -> 0 | DJ30: =Главный!DI29 -> 0 | DY30: =Главный!DY29 -> 0 | EU30: =Главный!EV29 -> 0 | FB30: =Главный!FB29 -> 0 | FL30: =Главный!FJ29 -> 0 | GF30: =Главный!GF29 -> 0 | GN30: =Главный!GO29 -> 0 | GU30: =Главный!GU29 -> 0 | HR30: =Главный!HO29 -> 0 | HZ30: =Главный!HY29 -> 0
B32: Остекление | T32: =Главный!T31 -> выберите | AK32: площадь | AX32: =Главный!AX31 -> 0 | BG32: м² | CE32: Расчёт на основании (СП 23-101-2004). Приведенное сопротивление теплопередаче стеклопакетов
B34: Выберите стеклопакет | AA34: =Главный!AA33 -> выберите | CE34: Фактическое сопротивление теплопередаче | EL34: =IFERROR(Главный!EL33,0) -> 0 | EU34: м² • °С/Вт | FM34: по ГОСТ 24866-99 (таблица 4)
CE36: Нормируемое сопротивление теплопередаче | EL36: =Главный!EL35 -> 0 | EU36: м² • °С/Вт
BM37: =Главный!BM35 -> 0
B38: Кратность воздухообмена | AX38: =Главный!AX37 -> 0 | BL38: =Главный!BL37 -> 0 | BM38: =Главный!BM37 -> 0 | BZ38: =Главный!BZ37 -> 0 | CE38: Объём приточного воздуха | DU38: =Главный!DU37 -> 0 | ED38: м³/час | FA38: =Главный!FC37 -> 0 | HE38: =Главный!HK37 -> 0 | HN38: =Главный!HS37 -> 0
B40: =Главный!B39 -> Необходимая тепловая мощность | AX40: =Главный!AX39 -> 0 | BM40: =Главный!BM39 -> 0 | FA40: =Главный!FC39 -> 0 | HE40: =Главный!HK39 -> 0 | HN40: =Главный!HS39 -> 0
B42: Тпом от доп. источников тепла | AX42: =Главный!AX41 -> выберите | BG42: укажите | BP42: =Главный!BP41 -> 0 | BY42: ºС | CE42: Расчётная тепловая мощность тепловентиляторов | FE42: =Главный!FE41 -> 0 | FM42: кВт | FY42: тепловые потери | HE42: =Главный!HE41 -> 0 | HN42: =Главный!HN41 -> 0
B44: Температура теплоносителя Т1/Т2 | AX44: =Главный!AX43 -> выберите | BH44: ºС | CE44: Принятая тепловая мощность тепловентиляторов | FE44: =Главный!FE43 -> 0 | FM44: кВт | FY44: тепловые потери | HE44: =Главный!HE43 -> 0 | HN44: =Главный!HN43 -> 0
B46: Эксплуатация в агрессивной среде | AX46: =Главный!AX45 -> выберите | CE46: Серия тепловентилятора | DU46: =Главный!DU45 -> 0
B48: Скорость тепловентилятора | AX48: =Главный!AX47 -> выберите | CW48: =Главный!CA47 -> Построчно отображено количество тепловентиляторов с учётом их мощности
B52: =Главный!B51 -> 0 | X52: =Главный!X51 -> 0 | CE52: Модель REVENTON | CU52: Кол-во (шт) | DC52: Розничная цена в руб с НДС | DT52: Мощность агрегата (кВт) | EG52: Макс. дальность струи (м) | ET52: Тем-ра воздуха на выходе (ºC) | FG52: Расход воды (м³/ч) | FT52: Гидрав. сопротивл. (кПа) | GG52: Защита двигателя | GT52: Уровень шума (дБ) | HG52: Рядов теплообменника | HT52: Расход воздуха (м³/ч)
B54: =Главный!B53 -> 0 | X54: =Главный!X53 -> 0 | CE54: =Главный!CE53 -> HC20-3S | CU54: =Главный!CU53 -> 0 | DC54: =Главный!DC53 -> 0 | DT54: =Главный!DT53 -> 0 | EG54: =Главный!EG53 ->  | ET54: =Главный!ET53 ->  | FG54: =Главный!FG53 ->  | FT54: =Главный!FT53 ->  | GG54: =Главный!GG53 -> IP 54 | GT54: =Главный!GT53 ->  | HG54: =Главный!HG53 -> один | HT54: =Главный!HT53 -> 
B56: =Главный!B55 -> 0 | X56: =Главный!X55 -> 0 | CE56: =Главный!CE55 -> HC30-3S | CU56: =Главный!CU55 -> 0 | DC56: =Главный!DC55 -> 0 | DT56: =Главный!DT55 -> 0 | EG56: =Главный!EG55 ->  | ET56: =Главный!ET55 ->  | FG56: =Главный!FG55 ->  | FT56: =Главный!FT55 ->  | GG56: =Главный!GG55 -> IP 54 | GT56: =Главный!GT55 ->  | HG56: =Главный!HG55 -> один | HT56: =Главный!HT55 -> 
CE58: =Главный!CE57 -> HC35-3S | CU58: =Главный!CU57 -> 0 | DC58: =Главный!DC57 -> 0 | DT58: =Главный!DT57 -> 0 | EG58: =Главный!EG57 ->  | ET58: =Главный!ET57 ->  | FG58: =Главный!FG57 ->  | FT58: =Главный!FT57 ->  | GG58: =Главный!GG57 -> IP 54 | GT58: =Главный!GT57 ->  | HG58: =Главный!HG57 -> два | HT58: =Главный!HT57 -> 
B60: =Главный!B59 -> 0 | CE60: =Главный!CE59 -> HC45-3S | CU60: =Главный!CU59 -> 0 | DC60: =Главный!DC59 -> 0 | DT60: =Главный!DT59 -> 0 | EG60: =Главный!EG59 ->  | ET60: =Главный!ET59 ->  | FG60: =Главный!FG59 ->  | FT60: =Главный!FT59 ->  | GG60: =Главный!GG59 -> IP 54 | GT60: =Главный!GT59 ->  | HG60: =Главный!HG59 -> два | HT60: =Главный!HT59 -> 
B62: =Главный!B61 -> 0 | CE62: =Главный!CE61 -> HC50-3S | CU62: =Главный!CU61 -> 0 | DC62: =Главный!DC61 -> 0 | DT62: =Главный!DT61 -> 0 | EG62: =Главный!EG61 ->  | ET62: =Главный!ET61 ->  | FG62: =Главный!FG61 ->  | FT62: =Главный!FT61 ->  | GG62: =Главный!GG61 -> IP 54 | GT62: =Главный!GT61 ->  | HG62: =Главный!HG61 -> два | HT62: =Главный!HT61 -> 
B64: =Главный!B63 -> 0 | CE64: =Главный!CE63 -> HC70-3S | CU64: =Главный!CU63 -> 0 | DC64: =Главный!DC63 -> 0 | DT64: =Главный!DT63 -> 0 | EG64: =Главный!EG63 ->  | ET64: =Главный!ET63 ->  | FG64: =Главный!FG63 ->  | FT64: =Главный!FT63 ->  | GG64: =Главный!GG63 -> IP 54 | GT64: =Главный!GT63 ->  | HG64: =Главный!HG63 -> три | HT64: =Главный!HT63 -> 
CE66: =Главный!CE65 -> HCF IP54 | CU66: =Главный!CU65 ->  | DC66: =Главный!DC65 ->  | DT66: =Главный!DT65 ->  | EG66: =Главный!EG65 ->  | ET66: =Главный!ET65 ->  | FG66: =Главный!FG65 ->  | FT66: =Главный!FT65 ->  | GG66: =Главный!GG65 -> IP 54 | GT66: =Главный!GT65 ->  | HG66: =Главный!HG65 -> два | HT66: =Главный!HT65 -> 
CE68: =Главный!CE67 -> HCF IP65 | CU68: =Главный!CU67 ->  | DC68: =Главный!DC67 ->  | DT68: =Главный!DT67 ->  | EG68: =Главный!EG67 ->  | ET68: =Главный!ET67 ->  | FG68: =Главный!FG67 ->  | FT68: =Главный!FT67 ->  | GG68: =Главный!GG67 -> IP 65 | GT68: =Главный!GT67 ->  | HG68: =Главный!HG67 -> два | HT68: =Главный!HT67 -> 

Sheet Федя (hidden)

Sheet Расчет (hidden)
A1: Периметр | B1: =(C3*2)+(C4*2) ->  | C1: м | J1: Зол. Сечен | K1: 1.618033989
C2: с учетом толщины стены | D2: с учетом воздушного пространства тента | I2: =J2+K2 -> 14.55365094 | J2: =K2*K1 -> 8.994650943 | K2: 5.559 | W2: хол. Пятидневка | X2: ср. за сезон | Y2: отопит. Сезон
A3: Длина внутри | B3: =VLOOKUP(K4,I6:K4963,2,0) ->  | C3: =(Главный!AX13*2)/1000+(Главный!AX15*2)/1000+Расчет!B3 ->  | D3: =B3 ->  | F3: =IF(Главный!V11=Главный!KS10,C3,B3) ->  | J3: =J2/I2 -> 0.6180339887 | K3: =K2/I2 -> 0.3819660113
A4: Ширина внутри | B4: =VLOOKUP(K4,I6:K4963,3,0) ->  | C4: =(Главный!AX13*2)/1000+(Главный!AX15*2)/1000+Расчет!B4 ->  | D4: =B4 ->  | F4: =IF(Главный!V11=Главный!KS10,C4,B4) ->  | I4: Синхр площ | K4: =LOOKUP(Интерфейс!Z2,I6:I4963) -> 
K5: 0.01010703363
A6: Расчётная высота фронтона/чердака в коньке | F6: ='Пирог крыша пол'!D37 -> 0 | G6: м | I6: 50 | J6: =K6*$K$1 -> 9.011004467 | K6: =K2+K5 -> 5.569107034 | V6: Абакан | W6: -37 | X6: 223 | Y6: -7.9
I7: 50.36556269 | J7: 9.027357991 | K7: 5.579214067 | V7: Агата | W7: -53 | X7: 292 | Y7: -16.7
A8: Площадь фронтона | C8: =C4*Расчет!F6 ->  | I8: =J8*K8 -> 50.5482076 | J8: =K8*$K$1 -> 9.043711515 | K8: =K7+$K$5 -> 5.589321101 | V8: Агзу | W8: -28 | X8: 231 | Y8: -7.9
I9: 50.73118308 | J9: 9.060065039 | K9: 5.599428135 | V9: Агинское | W9: -36 | X9: 238 | Y9: -10.4
A10: Холодная пятидневка | C10: =VLOOKUP(Интерфейс!O16,V6:Y464,2,0) ->  | I10: 50.91448913 | J10: 9.076418563 | K10: 5.609535168 | V10: Акша | W10: -34 | X10: 237 | Y10: -9.6
A11: Средняя температура за сезон | C11: =VLOOKUP(Интерфейс!O16,V6:Y464,4,0) ->  | I11: 51.09812575 | J11: 9.092772087 | K11: 5.619642202 | V11: Алдан | W11: -41 | X11: 263 | Y11: -13.6
I12: 51.28209294 | J12: 9.109125611 | K12: 5.629749235 | V12: Алейск | W12: -38 | X12: 216 | Y12: -7.8
B13: Сопротивление теплопередачи м²oС/Вт | I13: 51.46639071 | J13: 9.125479135 | K13: 5.639856269 | V13: Александров Гай | W13: -28 | X13: 191 | Y13: -5.2
A14: Однокамерный стеклопакет (4-24-4) | B14: 0.34 | I14: 51.65101904 | J14: 9.141832659 | K14: 5.649963303 | V14: Александровский Завод | W14: -38 | X14: 250 | Y14: -12
A15: 2-х камерный стеклопакет (4-10-4-10-k4) | B15: 0.58 | I15: 51.83597795 | J15: 9.158186183 | K15: 5.660070336 | V15: Александровское | W15: -43 | X15: 252 | Y15: -9.5
A16: 2-х камерный энергосберегающий (4-10-4-10-i4) | B16: 0.77 | I16: 52.02126742 | J16: 9.174539707 | K16: 5.67017737 | V16: Александровск-Сахалинский | W16: -27 | X16: 237 | Y16: -6.4
I17: 52.20688747 | J17: 9.19089323 | K17: 5.680284404 | V17: Аллах-Юнь | W17: -54 | X17: 280 | Y17: -21.4
A18: Окно | B18: =Интерфейс!AG27 -> выберите | I18: 52.39283809 | J18: 9.207246754 | K18: 5.690391437 | V18: Алыгджер | W18: -36 | X18: 264 | Y18: -6.4
A19: =VLOOKUP(B18,A14:B16,2,0) ->  | B19: Сопротивление теплопередаче стеклопакета R м²oС/Вт | I19: 52.57911928 | J19: 9.223600278 | K19: 5.700498471 | V19: Амга | W19: -55 | X19: 259 | Y19: -21.3
A20: =1/A19 ->  | B20: К | I20: 52.76573104 | J20: 9.239953802 | K20: 5.710605504 | V20: Анадырь | W20: -38 | X20: 299 | Y20: -11.3
A21: =A20-Федя!M8 ->  | B21: Кок-Кнс | I21: 52.95267338 | J21: 9.256307326 | K21: 5.720712538 | O21: V до потолка | P21: V под фронтоном | Q21: V итого | V21: Анучино | W21: -31 | X21: 203 | Y21: -8.1
I22: 53.13994628 | J22: 9.27266085 | K22: 5.730819572 | N22: =Главный!KY5 -> Плоская | O22: =F3*F4*Интерфейс!Z6 ->  | P22: 0 | Q22: =O22+P22 ->  | R22: м³ | V22: Апука | W22: -28 | X22: 286 | Y22: -5.8
A23: Объём помещения | B23: =VLOOKUP(Главный!AX20,N22:Q24,4,0) ->  | C23: м³ | I23: 53.32754976 | J23: 9.289014374 | K23: 5.740926605 | N23: =Главный!KY6 -> 2-х скатная | O23: =F3*F4*Интерфейс!Z6 ->  | P23: =(('Пирог крыша пол'!D37-Главный!AC4-(Главный!AX24/1000))*F3*F4)/2 ->  | Q23: =O23+P23 ->  | V23: Арзамас | W23: -32 | X23: 216 | Y23: -4.7
A24: Кратность воздухообмена | B24: =Интерфейс!AM44 -> 0 | I24: 53.5154838 | J24: 9.305367898 | K24: 5.751033639 | N24: =Главный!KY7 -> Полукруглая кровля | O24: =(3.14*(F4/2*F4/2))/2*F3 ->  | P24: 0 | Q24: =O24+P24 ->  | V24: Арзгир | W24: -22 | X24: 163 | Y24: 0.1
A25: Воздухообмен | B25: =IF(Главный!BM37>0,Главный!BM37,B23*B24) ->  | C25: м³/ч | I25: 53.70374842 | J25: 9.321721422 | K25: 5.761140673 | V25: Аркагала | W25: -51 | X25: 289 | Y25: -19
I26: 53.89234361 | J26: 9.338074946 | K26: 5.771247706 | V26: Архангельск | W26: -33 | X26: 250 | Y26: -4.5
A27: Площадь крыши | I27: 54.08126937 | J27: 9.35442847 | K27: 5.78135474 | V27: Архангельск | W27: -33 | X27: 250 | Y27: -4.5
A28: S=пRL | B28: =B29*B30*B3 ->  | C28: м² | D28: =B4/2 ->  | I28: 54.2705257 | J28: 9.370781994 | K28: 5.791461774 | V28: Архара | W28: -36 | X28: 211 | Y28: -12.7
A29: Пи | B29: 3.14 | D29: =Главный!AC4 -> 0 | I29: 54.46011261 | J29: 9.387135518 | K29: 5.801568807 | V29: Астраханка | W29: -26 | X29: 202 | Y29: -6.6
A30: Радиус | B30: =Главный!AC4 -> 0 | I30: 54.65003008 | J30: 9.403489042 | K30: 5.811675841 | V30: Астрахань | W30: -21 | X30: 164 | Y30: -0.8
A31: Виртуально площадь стен | B31: 67% | C31: =B28*B31 ->  | I31: 54.84027813 | J31: 9.419842566 | K31: 5.821782874 | V31: Ачинск | W31: -36 | X31: 232 | Y31: -7
A32: Виртуально площадь крыши | B32: 33% | C32: =B28*B32 ->  | I32: 55.03085674 | J32: 9.43619609 | K32: 5.831889908 | V32: Аян | W32: -28 | X32: 278 | Y32: -7.4
I33: 55.22176593 | J33: 9.452549613 | K33: 5.841996942 | V33: Бабаево | W33: -31 | X33: 231 | Y33: -3.8
A34: Плоская | B34: 1 | C34: =VLOOKUP(Интерфейс!BA11,A34:B36,2,0) ->  | I34: 55.41300569 | J34: 9.468903137 | K34: 5.852103975 | V34: Бабушкин | W34: -29 | X34: 250 | Y34: -5.5
A35: 2-х скатная | B35: 1 | I35: 55.60457602 | J35: 9.485256661 | K35: 5.862211009 | V35: Багдарин | W35: -42 | X35: 261 | Y35: -13.4
A36: Полукруглая кровля | B36: 0 | I36: 55.79647692 | J36: 9.501610185 | K36: 5.872318043 | V36: Байдуков | W36: -31 | X36: 255 | Y36: -9
I37: 55.9887084 | J37: 9.517963709 | K37: 5.882425076 | V37: Байкит | W37: -50 | X37: 266 | Y37: -14.1
C38: выбор | I38: 56.18127044 | J38: 9.534317233 | K38: 5.89253211 | V38: Балашов | W38: -29 | X38: 199 | Y38: -4.2
A39: максимальная | B39: 3 | C39: =VLOOKUP(Главный!AX47,A39:B41,2,0) ->  | I39: 56.37416306 | J39: 9.550670757 | K39: 5.902639143 | V39: Барабинск | W39: -39 | X39: 230 | Y39: -9
A40: средняя | B40: 2 | I40: 56.56738624 | J40: 9.567024281 | K40: 5.912746177 | V40: Баргузин | W40: -41 | X40: 240 | Y40: -11.7
A41: минимальная | B41: 1 | I41: 56.76094 | J41: 9.583377805 | K41: 5.922853211 | V41: Барнаул | W41: -36 | X41: 213 | Y41: -7.5
I42: 56.95482433 | J42: 9.599731329 | K42: 5.932960244 | V42: Батамай | W42: -52 | X42: 265 | Y42: -20.8
I43: 57.14903923 | J43: 9.616084853 | K43: 5.943067278 | V43: Бежецк | W43: -31 | X43: 222 | Y43: -3.4
I44: 57.3435847 | J44: 9.632438377 | K44: 5.953174312 | V44: Белгород | W44: -23 | X44: 191 | Y44: -1.9
I45: 57.53846075 | J45: 9.648791901 | K45: 5.963281345 | V45: Белогорск | W45: -37 | X45: 223 | Y45: -11.9
I46: 57.73366736 | J46: 9.665145425 | K46: 5.973388379 | V46: Белорецк | W46: -34 | X46: 231 | Y46: -6.5
I47: 57.92920455 | J47: 9.681498949 | K47: 5.983495412 | V47: Беля | W47: -23 | X47: 223 | Y47: -2.7
I48: 58.1250723 | J48: 9.697852473 | K48: 5.993602446 | V48: Бердигястях | W48: -54 | X48: 268 | Y48: -19.6
I49: 58.32127063 | J49: 9.714205997 | K49: 6.00370948 | V49: Березово | W49: -42 | X49: 266 | Y49: -9.9
I50: 58.51779953 | J50: 9.73055952 | K50: 6.013816513 | V50: Березово | W50: -50 | X50: 296 | Y50: -13.6
I51: 58.714659 | J51: 9.746913044 | K51: 6.023923547 | V51: Бийск-Зональная | W51: -35 | X51: 213 | Y51: -7.6
I52: 58.91184904 | J52: 9.763266568 | K52: 6.034030581 | V52: Бикин | W52: -32 | X52: 208 | Y52: -9.1
I53: 59.10936965 | J53: 9.779620092 | K53: 6.044137614 | V53: Бира | W53: -31 | X53: 220 | Y53: -9.1
I54: 59.30722084 | J54: 9.795973616 | K54: 6.054244648 | V54: Биробиджан | W54: -32 | X54: 219 | Y54: -10.4
I55: 59.50540259 | J55: 9.81232714 | K55: 6.064351682 | V55: Бисер | W55: -35 | X55: 250 | Y55: -6.7
I56: 59.70391492 | J56: 9.828680664 | K56: 6.074458715 | V56: Благовещенск | W56: -33 | X56: 210 | Y56: -10.7
I57: 59.90275782 | J57: 9.845034188 | K57: 6.084565749 | V57: Богополь | W57: -21 | X57: 208 | Y57: -4.2
I58: 60.10193128 | J58: 9.861387712 | K58: 6.094672782 | V58: Боготол | W58: -39 | X58: 239 | Y58: -7.6
I59: 60.30143533 | J59: 9.877741236 | K59: 6.104779816 | V59: Богучаны | W59: -45 | X59: 244 | Y59: -10.7
I60: 60.50126994 | J60: 9.89409476 | K60: 6.11488685 | V60: Бодайбо | W60: -46 | X60: 253 | Y60: -14.1
I61: 60.70143512 | J61: 9.910448284 | K61: 6.124993883 | V61: Болотное | W61: -39 | X61: 228 | Y61: -7.9
I62: 60.90193087 | J62: 9.926801808 | K62: 6.135100917 | V62: Бомнак | W62: -40 | X62: 240 | Y62: -14.7
I63: 61.1027572 | J63: 9.943155332 | K63: 6.145207951 | V63: Борзя | W63: -38 | X63: 232 | Y63: -12.4
I64: 61.30391409 | J64: 9.959508856 | K64: 6.155314984 | V64: Борковская | W64: -42 | X64: 277 | Y64: -6.6
I65: 61.50540156 | J65: 9.97586238 | K65: 6.165422018 | V65: Борковская | W65: -42 | X65: 277 | Y65: -6.6
I66: 61.7072196 | J66: 9.992215903 | K66: 6.175529051 | V66: Боровичи | W66: -29 | X66: 220 | Y66: -2.8
I67: 61.90936821 | J67: 10.00856943 | K67: 6.185636085 | V67: Братолюбовка | W67: -37 | X67: 229 | Y67: -12.4
I68: 62.11184739 | J68: 10.02492295 | K68: 6.195743119 | V68: Братск | W68: -43 | X68: 249 | Y68: -8.6
I69: 62.31465714 | J69: 10.04127648 | K69: 6.205850152 | V69: Брохово | W69: -35 | X69: 278 | Y69: -9.3
I70: 62.51779747 | J70: 10.05763 | K70: 6.215957186 | V70: Брянск | W70: -24 | X70: 199 | Y70: -2
I71: 62.72126836 | J71: =K71*$K$1 -> 10.07398352 | K71: 6.22606422 | V71: Бугульма | W71: -33 | X71: 221 | Y71: -5.8
I72: =J72*K72 -> 62.92506983 | J72: 10.09033705 | K72: =K71+$K$5 -> 6.236171253 | V72: Буяга | W72: -52 | X72: 266 | Y72: -18.2
I73: 63.12920187 | J73: 10.10669057 | K73: 6.246278287 | V73: Бысса | W73: -41 | X73: 236 | Y73: -13.6
I74: 63.33366447 | J74: 10.12304409 | K74: 6.256385321 | V74: Вайда-Губа | W74: -16 | X74: 287 | Y74: -0.8
I75: 63.53845765 | J75: 10.13939762 | K75: 6.266492354 | V75: Ванавара | W75: -50 | X75: 260 | Y75: -14
I76: 63.74358141 | J76: 10.15575114 | K76: 6.276599388 | V76: Варандей | W76: -36 | X76: 323 | Y76: -7.3
I77: 63.94903573 | J77: 10.17210467 | K77: 6.286706421 | V77: Великие Луки | W77: -27 | X77: 208 | Y77: -1.5
I78: 64.15482062 | J78: 10.18845819 | K78: 6.296813455 | V78: Великий Новгород | W78: -27 | X78: 221 | Y78: -2.3
I79: 64.36093609 | J79: 10.20481171 | K79: 6.306920489 | V79: Вельмо | W79: -49 | X79: 264 | Y79: -12.5
I80: 64.56738212 | J80: 10.22116524 | K80: 6.317027522 | V80: Вендинга | W80: -39 | X80: 257 | Y80: -5.9
I81: 64.77415873 | J81: 10.23751876 | K81: 6.327134556 | V81: Верхнеимбатск | W81: -48 | X81: 265 | Y81: -11.7
I82: 64.98126591 | J82: 10.25387229 | K82: 6.33724159 | V82: Верхнеуральск | W82: -34 | X82: 221 | Y82: -7.5
I83: 65.18870366 | J83: 10.27022581 | K83: 6.347348623 | V83: Верхний Баскунчак | W83: -24 | X83: 174 | Y83: -2.5
I84: 65.39647198 | J84: 10.28657933 | K84: 6.357455657 | V84: Верхняя Гутара | W84: -35 | X84: 267 | Y84: -7.7
I85: 65.60457087 | J85: 10.30293286 | K85: 6.36756269 | V85: Верхотурье | W85: -36 | X85: 233 | Y85: -6.4
I86: 65.81300033 | J86: 10.31928638 | K86: 6.377669724 | V86: Верхоянск | W86: -58 | X86: 272 | Y86: -25
I87: 66.02176037 | J87: 10.33563991 | K87: 6.387776758 | V87: Вилюйск | W87: -51 | X87: 259 | Y87: -18.8
I88: 66.23085097 | J88: 10.35199343 | K88: 6.397883791 | V88: Витим | W88: -50 | X88: 255 | Y88: -13.8
I89: 66.44027215 | J89: 10.36834695 | K89: 6.407990825 | V89: Владивосток | W89: -23 | X89: 198 | Y89: -4.3
I90: 66.6500239 | J90: 10.38470048 | K90: 6.418097859 | V90: Владикавказ | W90: -13 | X90: 169 | Y90: 0.7
I91: 66.86010622 | J91: 10.401054 | K91: 6.428204892 | V91: Владимир | W91: -28 | X91: 213 | Y91: -3.5
I92: 67.07051911 | J92: 10.41740753 | K92: 6.438311926 | V92: Волгоград | W92: -22 | X92: 176 | Y92: -2.3
I93: 67.28126257 | J93: 10.43376105 | K93: 6.448418959 | V93: Вологда | W93: -32 | X93: 228 | Y93: -4
I94: 67.49233661 | J94: 10.45011457 | K94: 6.458525993 | V94: Волочанка | W94: -49 | X94: 300 | Y94: -17
I95: 67.70374121 | J95: 10.4664681 | K95: 6.468633027 | V95: Воркута | W95: -41 | X95: 306 | Y95: -9.1
I96: 67.91547639 | J96: 10.48282162 | K96: 6.47874006 | V96: Воронеж | W96: -24 | X96: 190 | Y96: -2.5
I97: 68.12754213 | J97: 10.49917515 | K97: 6.488847094 | V97: Воронцово | W97: -51 | X97: 297 | Y97: -19.6
I98: 68.33993845 | J98: 10.51552867 | K98: 6.498954128 | V98: Выкса | W98: -30 | X98: 212 | Y98: -4
I99: 68.55266534 | J99: 10.53188219 | K99: 6.509061161 | V99: Вытегра | W99: -32 | X99: 230 | Y99: -3.4
I100: 68.7657228 | J100: 10.54823572 | K100: 6.519168195 | V100: Вяземский | W100: -31 | X100: 213 | Y100: -9.3
I101: 68.97911083 | J101: 10.56458924 | K101: 6.529275229 | V101: Вязьма | W101: -27 | X101: 217 | Y101: -2.8
I102: 69.19282944 | J102: 10.58094277 | K102: 6.539382262 | V102: Вятка | W102: -33 | X102: 231 | Y102: -5.4
I103: 69.40687861 | J103: 10.59729629 | K103: 6.549489296 | V103: Гвасюги | W103: -35 | X103: 228 | Y103: -10.4
I104: 69.62125836 | J104: 10.61364981 | K104: 6.559596329 | V104: Глазов | W104: -35 | X104: 231 | Y104: -6
I105: 69.83596867 | J105: 10.63000334 | K105: 6.569703363 | V105: Гош | W105: -42 | X105: 233 | Y105: -14
I106: 70.05100956 | J106: 10.64635686 | K106: 6.579810397 | V106: Грозный | W106: -17 | X106: 159 | Y106: 0.9
I107: 70.26638102 | J107: 10.66271038 | K107: 6.58991743 | V107: Гроссевичи | W107: -22 | X107: 248 | Y107: -4.3
I108: 70.48208305 | J108: 10.67906391 | K108: 6.600024464 | V108: Дальнереченск | W108: -29 | X108: 199 | Y108: -8.7
I109: 70.69811565 | J109: 10.69541743 | K109: 6.610131498 | V109: Дамбуки | W109: -43 | X109: 244 | Y109: -14.3
I110: 70.91447883 | J110: 10.71177096 | K110: 6.620238531 | V110: Дарасун | W110: -34 | X110: 247 | Y110: -9.5
I111: 71.13117257 | J111: 10.72812448 | K111: 6.630345565 | V111: Де-Кастри | W111: -27 | X111: 256 | Y111: -6.9
I112: 71.34819689 | J112: 10.744478 | K112: 6.640452598 | V112: Демьянское | W112: -40 | X112: 241 | Y112: -8
I113: 71.56555177 | J113: 10.76083153 | K113: 6.650559632 | V113: Дербент | W113: -9 | X113: 138 | Y113: 3.7
I114: 71.78323723 | J114: 10.77718505 | K114: 6.660666666 | V114: Джалинда | W114: -56 | X114: 296 | Y114: -19.5
I115: 72.00125326 | J115: 10.79353858 | K115: 6.670773699 | V115: Джаорэ | W115: -30 | X115: 252 | Y115: -7.9
I116: 72.21959986 | J116: 10.8098921 | K116: 6.680880733 | V116: Джарджан | W116: -54 | X116: 283 | Y116: -19.8
I117: 72.43827703 | J117: 10.82624562 | K117: 6.690987767 | V117: Джикимда | W117: -51 | X117: 256 | Y117: -16.6
I118: 72.65728477 | J118: 10.84259915 | K118: 6.7010948 | V118: Диксон | W118: -40 | X118: 365 | Y118: -11.5
I119: 72.87662309 | J119: 10.85895267 | K119: 6.711201834 | V119: Дмитров | W119: -28 | X119: 216 | Y119: -3.1
I120: 73.09629197 | J120: 10.8753062 | K120: 6.721308868 | V120: Долинск | W120: -24 | X120: 231 | Y120: -4
I121: 73.31629143 | J121: 10.89165972 | K121: 6.731415901 | V121: Дружина | W121: -52 | X121: 284 | Y121: -20.2
I122: 73.53662146 | J122: 10.90801324 | K122: 6.741522935 | V122: Дубровское | W122: -50 | X122: 257 | Y122: -12.3
I123: 73.75728206 | J123: 10.92436677 | K123: 6.751629968 | V123: Дуван | W123: -34 | X123: 224 | Y123: -6
I124: 73.97827323 | J124: 10.94072029 | K124: 6.761737002 | V124: Дудинка | W124: -46 | X124: 296 | Y124: -15.2
I125: 74.19959497 | J125: 10.95707382 | K125: 6.771844036 | V125: Екатеринбург | W125: -32 | X125: 221 | Y125: -5.4
I126: 74.42124728 | J126: 10.97342734 | K126: 6.781951069 | V126: Екатерино-Никольское | W126: -29 | X126: 204 | Y126: -9.3
I127: 74.64323017 | J127: 10.98978086 | K127: 6.792058103 | V127: Екючю | W127: -58 | X127: 281 | Y127: -23
I128: 74.86554362 | J128: 11.00613439 | K128: 6.802165137 | V128: Елабуга | W128: -32 | X128: 209 | Y128: -5.2
I129: 75.08818765 | J129: 11.02248791 | K129: 6.81227217 | V129: Емецк | W129: -33 | X129: 249 | Y129: -4.7
I130: 75.31116224 | J130: 11.03884144 | K130: 6.822379204 | V130: Енисейск | W130: -46 | X130: 245 | Y130: -9.6
I131: 75.53446741 | J131: 11.05519496 | K131: 6.832486237 | V131: Ербогачен | W131: -51 | X131: 261 | Y131: -15.3
I132: 75.75810315 | J132: 11.07154848 | K132: 6.842593271 | V132: Ерофей Павлович | W132: -38 | X132: 245 | Y132: -12.7
I133: 75.98206946 | J133: 11.08790201 | K133: 6.852700305 | V133: Ессей | W133: -55 | X133: 296 | Y133: -18.4
I134: 76.20636635 | J134: 11.10425553 | K134: 6.862807338 | V134: Жигалово | W134: -44 | X134: 249 | Y134: -12.3
I135: 76.4309938 | J135: =K135*$K$1 -> 11.12060906 | K135: 6.872914372 | V135: Жиганск | W135: -52 | X135: 275 | Y135: -20
I136: =J136*K136 -> 76.65595183 | J136: 11.13696258 | K136: =K135+$K$5 -> 6.883021406 | V136: Завитинск | W136: -36 | X136: 226 | Y136: -11.8
I137: 76.88124042 | J137: 11.1533161 | K137: 6.893128439 | V137: Земетчино | W137: -28 | X137: 200 | Y137: -3.8
I138: 77.10685959 | J138: 11.16966963 | K138: 6.903235473 | V138: Зея | W138: -42 | X138: 238 | Y138: -13.8
I139: 77.33280933 | J139: 11.18602315 | K139: 6.913342506 | V139: Зима | W139: -42 | X139: 239 | Y139: -9.7
I140: 77.55908964 | J140: 11.20237667 | K140: 6.92344954 | V140: Змеиногорск | W140: -36 | X140: 211 | Y140: -6.7
I141: 77.78570052 | J141: 11.2187302 | K141: 6.933556574 | V141: Зырянка | W141: -50 | X141: 265 | Y141: -20.4
I142: 78.01264197 | J142: 11.23508372 | K142: 6.943663607 | V142: Иваново | W142: -30 | X142: 219 | Y142: -3.9
I143: 78.239914 | J143: 11.25143725 | K143: 6.953770641 | V143: Ивдель | W143: -39 | X143: 245 | Y143: -7.6
I144: 78.46751659 | J144: 11.26779077 | K144: 6.963877675 | V144: Игарка | W144: -49 | X144: 292 | Y144: -16.7
I145: 78.69544976 | J145: 11.28414429 | K145: 6.973984708 | V145: Ижевск | W145: -33 | X145: 219 | Y145: -5.6
I146: 78.92371349 | J146: 11.30049782 | K146: 6.984091742 | V146: Ика | W146: -50 | X146: 263 | Y146: -13.8
I147: 79.1523078 | J147: 11.31685134 | K147: 6.994198776 | V147: Илимск | W147: -45 | X147: 255 | Y147: -11
I148: 79.38123268 | J148: 11.33320487 | K148: 7.004305809 | V148: Им | W148: -40 | X148: 232 | Y148: -12.5
I149: 79.61048813 | J149: 11.34955839 | K149: 7.014412843 | V149: Индига | W149: -34 | X149: 298 | Y149: -5.6
I150: 79.84007416 | J150: 11.36591191 | K150: 7.024519876 | V150: Иркутск | W150: -33 | X150: 232 | Y150: -7.7
I151: 80.06999075 | J151: 11.38226544 | K151: 7.03462691 | V151: Исиль-Куль | W151: -36 | X151: 225 | Y151: -8.6
I152: 80.30023791 | J152: 11.39861896 | K152: 7.044733944 | V152: Исить | W152: -49 | X152: 255 | Y152: -17.9
I153: 80.53081565 | J153: 11.41497249 | K153: 7.054840977 | V153: Ича | W153: -26 | X153: 276 | Y153: -4.1
I154: 80.76172396 | J154: 11.43132601 | K154: 7.064948011 | V154: Ичера | W154: -50 | X154: 254 | Y154: -12.9
I155: 80.99296284 | J155: 11.44767953 | K155: 7.075055045 | V155: Иэма | W155: -57 | X155: 292 | Y155: -22.9
I156: 81.22453229 | J156: 11.46403306 | K156: 7.085162078 | V156: Йошкар-Ола | W156: -33 | X156: 215 | Y156: -4.9
I157: 81.45643231 | J157: 11.48038658 | K157: 7.095269112 | V157: Казань | W157: -31 | X157: 208 | Y157: -4.8
I158: 81.6886629 | J158: 11.49674011 | K158: 7.105376145 | V158: Калакан | W158: -45 | X158: 257 | Y158: -16.3
I159: 81.92122406 | J159: 11.51309363 | K159: 7.115483179 | V159: Калуга | W159: -27 | X159: 210 | Y159: -2.9
I160: 82.1541158 | J160: 11.52944715 | K160: 7.125590213 | V160: Каменск-Уральский | W160: -35 | X160: 222 | Y160: -6.9
I161: 82.3873381 | J161: 11.54580068 | K161: 7.135697246 | V161: Камышин | W161: -26 | X161: 188 | Y161: -4.1
I162: 82.62089098 | J162: 11.5621542 | K162: 7.14580428 | V162: Кандалакша | W162: -30 | X162: 265 | Y162: -4.6
I163: 82.85477443 | J163: 11.57850773 | K163: 7.155911314 | V163: Канин Нос | W163: -23 | X163: 316 | Y163: -2.4
I164: 83.08898845 | J164: 11.59486125 | K164: 7.166018347 | V164: Канск | W164: -42 | X164: 237 | Y164: -8.8
I165: 83.32353304 | J165: 11.61121477 | K165: 7.176125381 | V165: Карасук | W165: -37 | X165: 218 | Y165: -8.9
I166: 83.5584082 | J166: 11.6275683 | K166: 7.186232415 | V166: Катанда | W166: -40 | X166: 237 | Y166: -9.2
I167: 83.79361393 | J167: 11.64392182 | K167: 7.196339448 | V167: Кашира | W167: -27 | X167: 212 | Y167: -3.4
I168: 84.02915024 | J168: 11.66027535 | K168: 7.206446482 | V168: Кежма | W168: -48 | X168: 252 | Y168: -12.3
I169: 84.26501711 | J169: 11.67662887 | K169: 7.216553515 | V169: Кемерово | W169: -39 | X169: 227 | Y169: -8
I170: 84.50121456 | J170: 11.69298239 | K170: 7.226660549 | V170: Кемь | W170: -28 | X170: 255 | Y170: -3.5
I171: 84.73774258 | J171: 11.70933592 | K171: 7.236767583 | V171: Кинешма | W171: -31 | X171: 221 | Y171: -4.1
I172: 84.97460117 | J172: 11.72568944 | K172: 7.246874616 | V172: Киренск | W172: -49 | X172: 251 | Y172: -12.8
I173: 85.21179033 | J173: 11.74204296 | K173: 7.25698165 | V173: Кировский | W173: -31 | X173: 201 | Y173: -8.8
I174: 85.44931006 | J174: 11.75839649 | K174: 7.267088684 | V174: Кировское | W174: -36 | X174: 246 | Y174: -9.2
I175: 85.68716036 | J175: 11.77475001 | K175: 7.277195717 | V175: Киселевск | W175: -39 | X175: 227 | Y175: -7.3
I176: 85.92534124 | J176: 11.79110354 | K176: 7.287302751 | V176: Кисловодск | W176: -16 | X176: 179 | Y176: 0.4
I177: 86.16385268 | J177: 11.80745706 | K177: 7.297409784 | V177: Ключи | W177: -33 | X177: 251 | Y177: -6.6
I178: 86.4026947 | J178: 11.82381058 | K178: 7.307516818 | V178: Ключи | W178: -39 | X178: 240 | Y178: -7.4
I179: 86.64186729 | J179: 11.84016411 | K179: 7.317623852 | V179: Ковдор | W179: -35 | X179: 271 | Y179: -4.9
I180: 86.88137045 | J180: 11.85651763 | K180: 7.327730885 | V180: Козыревск | W180: -37 | X180: 256 | Y180: -7.3
I181: 87.12120418 | J181: 11.87287116 | K181: 7.337837919 | V181: Койнас | W181: -41 | X181: 262 | Y181: -6.2
I182: 87.36136848 | J182: 11.88922468 | K182: 7.347944953 | V182: Колпашево | W182: -42 | X182: 243 | Y182: -8.8
I183: 87.60186335 | J183: 11.9055782 | K183: 7.358051986 | V183: Комсомольск-на-Амуре | W183: -35 | X183: 223 | Y183: -10.8
I184: 87.8426888 | J184: 11.92193173 | K184: 7.36815902 | V184: Кондинское | W184: -40 | X184: 238 | Y184: -8.6
I185: 88.08384481 | J185: 11.93828525 | K185: 7.378266053 | V185: Кондома | W185: -40 | X185: 236 | Y185: -7.8
I186: 88.3253314 | J186: 11.95463878 | K186: 7.388373087 | V186: Корсаков | W186: -20 | X186: 232 | Y186: -2.7
I187: 88.56714856 | J187: 11.9709923 | K187: 7.398480121 | V187: Корф | W187: -29 | X187: 270 | Y187: -7.1
I188: 88.80929629 | J188: 11.98734582 | K188: 7.408587154 | V188: Кострома | W188: -31 | X188: 222 | Y188: -3.9
I189: 89.05177459 | J189: 12.00369935 | K189: 7.418694188 | V189: Костычевка | W189: -26 | X189: 190 | Y189: -3.9
I190: 89.29458346 | J190: 12.02005287 | K190: 7.428801222 | V190: Котельниково | W190: -24 | X190: 176 | Y190: -1.6
I191: 89.5377229 | J191: 12.0364064 | K191: 7.438908255 | V191: Коткино | W191: -41 | X191: 285 | Y191: -7.1
I192: 89.78119292 | J192: 12.05275992 | K192: 7.449015289 | V192: Котлас | W192: -31 | X192: 237 | Y192: -5
I193: 90.0249935 | J193: 12.06911344 | K193: 7.459122323 | V193: Кочки | W193: -39 | X193: 228 | Y193: -8.9
I194: 90.26912466 | J194: 12.08546697 | K194: 7.469229356 | V194: Кош-Агач | W194: -42 | X194: 256 | Y194: -12
I195: 90.51358639 | J195: 12.10182049 | K195: 7.47933639 | V195: Красная Поляна | W195: -9 | X195: 155 | Y195: 3
I196: 90.75837868 | J196: 12.11817402 | K196: 7.489443423 | V196: Краснодар | W196: -14 | X196: 145 | Y196: 2.5
I197: 91.00350155 | J197: 12.13452754 | K197: 7.499550457 | V197: Краснощелье | W197: -35 | X197: 279 | Y197: -5.4
I198: 91.248955 | J198: 12.15088106 | K198: 7.509657491 | V198: Красноярск | W198: -37 | X198: 233 | Y198: -6.7
I199: 91.49473901 | J199: =K199*$K$1 -> 12.16723459 | K199: 7.519764524 | V199: Красный Чикой | W199: -37 | X199: 240 | Y199: -11.2
I200: =J200*K200 -> 91.74085359 | J200: 12.18358811 | K200: =K199+$K$5 -> 7.529871558 | V200: Красный Яр | W200: -34 | X200: 217 | Y200: -10
... 4763 more rows

Sheet Пирог крыша пол (hidden)

Sheet Федя догрев (hidden)

Sheet Матрица (hidden)
C1: шифр | D1: =CONCATENATE(Интерфейс!BA8,Интерфейс!AG41,Расчет!C39) ->  | F1: =CONCATENATE(Интерфейс!BA8,Интерфейс!AG41) -> выберитевыберите
A3: HC20-3S | D3: 90/70 | I3: 80/60 | N3: 70/50 | S3: 50/30 | X3: 120/90
A4: температура воздуха на входе ºC | B4: 0 | C4: 5 | D4: 10 | E4: 15 | F4: 20 | G4: 0 | H4: 5 | I4: 10 | J4: 15 | K4: 20 | L4: 0 | M4: 5 | N4: 10 | O4: 15 | P4: 20 | Q4: 0 | R4: 5 | S4: 10 | T4: 15 | U4: 20 | V4: 0 | W4: 5 | X4: 10 | Y4: 15 | Z4: 20
A5: тепловая мощность кВт 3-я | B5: 21.4 | C5: 19.7 | D5: 18 | E5: 16.4 | F5: 14.7 | G5: 18.1 | H5: 16.4 | I5: 14.7 | J5: 13.1 | K5: 11.5 | L5: 14.7 | M5: 13.1 | N5: 11.5 | O5: 9.9 | P5: 8.37 | Q5: 7.95 | R5: 6.44 | S5: 4.98 | T5: 3.55 | U5: 2.18 | V5: 28.4 | W5: 26.6 | X5: 24.8 | Y5: 23.1 | Z5: 21.4
A6: 2-я | B6: 17.3 | C6: 15.9 | D6: 14.6 | E6: 13.2 | F6: 12 | G6: 14.7 | H6: 13.3 | I6: 12 | J6: 10.7 | K6: 9.39 | L6: 12 | M6: 10.6 | N6: 9.34 | O6: 8.07 | P6: 6.84 | Q6: 6.56 | R6: 5.33 | S6: 4.13 | T6: 2.98 | U6: 1.86 | V6: 23 | W6: 21.5 | X6: 20.1 | Y6: 18.7 | Z6: 17.3
A7: 1-я | B7: 13.3 | C7: 12.2 | D7: 11.2 | E7: 10.2 | F7: 9.14 | G7: 11.3 | H7: 10.2 | I7: 9.18 | J7: 8.2 | K7: 7.23 | L7: 9.21 | M7: 8.2 | N7: 7.21 | O7: 6.25 | P7: 5.31 | Q7: 5.12 | R7: 4.18 | S7: 3.26 | T7: 2.37 | U7: 1.51 | V7: 17.6 | W7: 16.5 | X7: 15.4 | Y7: 14.3 | Z7: 13.3
A8: температура воздуха на выходе ºC 3-я | B8: 18.6 | C8: 22.4 | D8: 26.2 | E8: 30 | F8: 33.8 | G8: 15.7 | H8: 19.5 | I8: 23.3 | J8: 27 | K8: 30.8 | L8: 12.8 | M8: 16.6 | N8: 20.3 | O8: 24.1 | P8: 27.8 | Q8: 6.9 | R8: 10.7 | S8: 14.5 | T8: 18.3 | U8: 22 | V8: 24.7 | W8: 28.5 | X8: 32.4 | Y8: 36.2 | Z8: 40
A9: 2-я | B9: 22.4 | C9: 26 | D9: 29.6 | E9: 33.1 | F9: 36.6 | G9: 19 | H9: 22.5 | I9: 26.1 | J9: 29.5 | K9: 33 | L9: 15.5 | M9: 19 | N9: 22.5 | O9: 26 | P9: 29.5 | Q9: 8.5 | R9: 12 | S9: 15.5 | T9: 19.1 | U9: 22.6 | V9: 29.7 | W9: 33.3 | X9: 36.9 | Y9: 40.5 | Z9: 44.1
A10: 1-я | B10: 27.4 | C10: 30.6 | D10: 33.8 | E10: 37.1 | F10: 40.2 | G10: 23.2 | H10: 26.4 | I10: 29.6 | J10: 32.8 | K10: 36 | L10: 19 | M10: 22.2 | N10: 25.4 | O10: 28.6 | P10: 31.7 | Q10: 10.6 | R10: 13.8 | S10: 17 | T10: 20.2 | U10: 23.3 | V10: 36.2 | W10: 39.6 | X10: 42.8 | Y10: 43.1 | Z10: 49.3
A11: расход воды м³/ч 3-я | B11: 0.94 | C11: 0.87 | D11: 0.79 | E11: 0.72 | F11: 0.65 | G11: 0.79 | H11: 0.72 | I11: 0.65 | J11: 0.58 | K11: 0.51 | L11: 0.64 | M11: 0.57 | N11: 0.5 | O11: 0.43 | P11: 0.37 | Q11: 0.35 | R11: 0.28 | S11: 0.22 | T11: 0.15 | U11: 0.09 | V11: 0.84 | W11: 0.78 | X11: 0.73 | Y11: 0.68 | Z11: 0.63
A12: 2-я | B12: 0.76 | C12: 0.7 | D12: 0.64 | E12: 0.58 | F12: 0.53 | G12: 0.64 | H12: 0.58 | I12: 0.53 | J12: 0.47 | K12: 0.41 | L12: 0.52 | M12: 0.47 | N12: 0.41 | O12: 0.35 | P12: 0.3 | Q12: 0.28 | R12: 0.23 | S12: 0.18 | T12: 0.13 | U12: 0.08 | V12: 0.68 | W12: 0.64 | X12: 0.59 | Y12: 0.55 | Z12: 0.51
A13: 1-я | B13: 0.58 | C13: 0.54 | D13: 0.49 | E13: 0.45 | F13: 0.4 | G13: 0.49 | H13: 0.45 | I13: 0.4 | J13: 0.36 | K13: 0.32 | L13: 0.4 | M13: 0.36 | N13: 0.32 | O13: 0.27 | P13: 0.23 | Q13: 0.22 | R13: 0.18 | S13: 0.14 | T13: 0.1 | U13: 0.07 | V13: 0.52 | W13: 0.49 | X13: 0.45 | Y13: 0.42 | Z13: 0.39
A14: гидравлическое сопротивление кПа 3-я | B14: 6 | C14: 5 | D14: 4 | E14: 5 | F14: 4 | G14: 4 | H14: 5 | I14: 4 | J14: 3 | K14: 3 | L14: 4 | M14: 3 | N14: 3 | O14: 4 | P14: 3 | Q14: 3 | R14: 2 | S14: 4 | T14: 4 | U14: 1 | V14: 4 | W14: 4 | X14: 5 | Y14: 4 | Z14: 4
A15: 2-я | B15: 4 | C15: 3 | D15: 3 | E15: 2 | F15: 2 | G15: 3 | H15: 2 | I15: 2 | J15: 2 | K15: 1 | L15: 2 | M15: 2 | N15: 1 | O15: 1 | P15: 1 | Q15: 1 | R15: 0 | S15: 0 | T15: 0 | U15: 0 | V15: 3 | W15: 3 | X15: 2 | Y15: 2 | Z15: 2
A16: 1-я | B16: 2 | C16: 2 | D16: 2 | E16: 1 | F16: 1 | G16: 2 | H16: 1 | I16: 1 | J16: 1 | K16: 1 | L16: 1 | M16: 1 | N16: 1 | O16: 1 | P16: 0 | Q16: 0 | R16: 0 | S16: 0 | T16: 0 | U16: 0 | V16: 2 | W16: 2 | X16: 1 | Y16: 1 | Z16: 1
A18: тепловая мощность кВт 3-я | B18: 090/703 | C18: 590/703 | D18: 1090/703 | E18: 1590/703 | F18: 2090/703 | G18: 080/603 | H18: 580/603 | I18: 1080/603 | J18: 1580/603 | K18: 2080/603 | L18: 070/503 | M18: 570/503 | N18: 1070/503 | O18: 1570/503 | P18: 2070/503 | Q18: 050/303 | R18: 550/303 | S18: 1050/303 | T18: 1550/303 | U18: 2050/303 | V18: 0120/903 | W18: 5120/903 | X18: 10120/903 | Y18: 15120/903 | Z18: 20120/903
A19: 2-я | B19: 090/702 | C19: 590/702 | D19: 1090/702 | E19: 1590/702 | F19: 2090/702 | G19: 080/602 | H19: 580/602 | I19: 1080/602 | J19: 1580/602 | K19: 2080/602 | L19: 070/502 | M19: 570/502 | N19: 1070/502 | O19: 1570/502 | P19: 2070/502 | Q19: 050/302 | R19: 550/302 | S19: 1050/302 | T19: 1550/302 | U19: 2050/302 | V19: 0120/902 | W19: 5120/902 | X19: 10120/902 | Y19: 15120/902 | Z19: 20120/902
A20: 1-я | B20: 090/701 | C20: 590/701 | D20: 1090/701 | E20: 1590/701 | F20: 2090/701 | G20: 080/601 | H20: 580/601 | I20: 1080/601 | J20: 1580/601 | K20: 2080/601 | L20: 070/501 | M20: 570/501 | N20: 1070/501 | O20: 1570/501 | P20: 2070/501 | Q20: 050/301 | R20: 550/301 | S20: 1050/301 | T20: 1550/301 | U20: 2050/301 | V20: 0120/901 | W20: 5120/901 | X20: 10120/901 | Y20: 15120/901 | Z20: 20120/901
B21: 090/70 | C21: 590/70 | D21: 1090/70 | E21: 1590/70 | F21: 2090/70 | G21: 080/60 | H21: 580/60 | I21: 1080/60 | J21: 1580/60 | K21: 2080/60 | L21: 070/50 | M21: 570/50 | N21: 1070/50 | O21: 1570/50 | P21: 2070/50 | Q21: 050/30 | R21: 550/30 | S21: 1050/30 | T21: 1550/30 | U21: 2050/30 | V21: 0120/90 | W21: 5120/90 | X21: 10120/90 | Y21: 15120/90 | Z21: 20120/90
B22: 090/70 | C22: 590/70 | D22: 1090/70 | E22: 1590/70 | F22: 2090/70 | G22: 080/60 | H22: 580/60 | I22: 1080/60 | J22: 1580/60 | K22: 2080/60 | L22: 070/50 | M22: 570/50 | N22: 1070/50 | O22: 1570/50 | P22: 2070/50 | Q22: 050/30 | R22: 550/30 | S22: 1050/30 | T22: 1550/30 | U22: 2050/30 | V22: 0120/90 | W22: 5120/90 | X22: 10120/90 | Y22: 15120/90 | Z22: 20120/90
B23: 090/70 | C23: 590/70 | D23: 1090/70 | E23: 1590/70 | F23: 2090/70 | G23: 080/60 | H23: 580/60 | I23: 1080/60 | J23: 1580/60 | K23: 2080/60 | L23: 070/50 | M23: 570/50 | N23: 1070/50 | O23: 1570/50 | P23: 2070/50 | Q23: 050/30 | R23: 550/30 | S23: 1050/30 | T23: 1550/30 | U23: 2050/30 | V23: 0120/90 | W23: 5120/90 | X23: 10120/90 | Y23: 15120/90 | Z23: 20120/90
AA24: =A3 -> HC20-3S
A25: тепловая мощность кВт 3-я | B25: =IF(B18=$D$1,B5,0) ->  | C25: =IF(C18=$D$1,C5,0) ->  | J25: =IF(J18=$D$1,J5,0) ->  | L25: =IF(L18=$D$1,L5,0) ->  | T25: =IF(T18=$D$1,T5,0) ->  | Y25: =IF(Y18=$D$1,Y5,0) ->  | AA25: =MAX(B25:Z25) ->  | AB25: =MAX(AA25:AA27) -> 
A26: 2-я | B26: =IF(B19=$D$1,B6,0) ->  | V26: =IF(V19=$D$1,V6,0) ->  | AA26: =MAX(B26:Z26) -> 
A27: 1-я | B27: =IF(B20=$D$1,B7,0) ->  | V27: =IF(V20=$D$1,V7,0) -> 
A28: температура воздуха на выходе ºC 3-я | B28: =IF(B18=$D$1,B8,0) ->  | C28: =IF(C18=$D$1,C8,0) ->  | H28: =IF(H18=$D$1,H8,0) ->  | L28: =IF(L18=$D$1,L8,0) ->  | M28: =IF(M18=$D$1,M8,0) ->  | V28: =IF(V18=$D$1,V8,0) ->  | AB28: =MAX(AA28:AA30) -> 
A29: 2-я | B29: =IF(B19=$D$1,B9,0) ->  | C29: =IF(C19=$D$1,C9,0) ->  | D29: =IF(D19=$D$1,D9,0) ->  | E29: =IF(E19=$D$1,E9,0) ->  | F29: =IF(F19=$D$1,F9,0) ->  | G29: =IF(G19=$D$1,G9,0) ->  | H29: =IF(H19=$D$1,H9,0) ->  | R29: =IF(R19=$D$1,R9,0) ->  | W29: =IF(W19=$D$1,W9,0) -> 
A30: 1-я | B30: =IF(B20=$D$1,B10,0) ->  | C30: =IF(C20=$D$1,C10,0) ->  | G30: =IF(G20=$D$1,G10,0) ->  | H30: =IF(H20=$D$1,H10,0) ->  | R30: =IF(R20=$D$1,R10,0) ->  | W30: =IF(W20=$D$1,W10,0) -> 
A31: расход воды м³/ч 3-я | B31: =IF(B18=$D$1,B11,0) ->  | C31: =IF(C18=$D$1,C11,0) ->  | G31: =IF(G18=$D$1,G11,0) ->  | H31: =IF(H18=$D$1,H11,0) ->  | L31: =IF(L18=$D$1,L11,0) ->  | M31: =IF(M18=$D$1,M11,0) ->  | Q31: =IF(Q18=$D$1,Q11,0) ->  | R31: =IF(R18=$D$1,R11,0) ->  | V31: =IF(V18=$D$1,V11,0) ->  | W31: =IF(W18=$D$1,W11,0) ->  | AB31: =MAX(AA31:AA33) -> 
A32: 2-я | B32: =IF(B19=$D$1,B12,0) ->  | G32: =IF(G19=$D$1,G12,0) ->  | Q32: =IF(Q19=$D$1,Q12,0) ->  | V32: =IF(V19=$D$1,V12,0) -> 
A33: 1-я | G33: =IF(G20=$D$1,G13,0) ->  | Q33: =IF(Q20=$D$1,Q13,0) ->  | V33: =IF(V20=$D$1,V13,0) -> 
A34: гидравлическое сопротивление кПа 3-я | B34: =IF(B18=$D$1,B14,0) ->  | C34: =IF(C18=$D$1,C14,0) ->  | L34: =IF(L18=$D$1,L14,0) ->  | M34: =IF(M18=$D$1,M14,0) ->  | V34: =IF(V18=$D$1,V14,0) ->  | AB34: =MAX(AA34:AA36) -> 
A35: 2-я | B35: =IF(B19=$D$1,B15,0) ->  | L35: =IF(L19=$D$1,L15,0) ->  | V35: =IF(V19=$D$1,V15,0) -> 
A36: 1-я | L36: =IF(L20=$D$1,L16,0) ->  | V36: =IF(V20=$D$1,V16,0) -> 
A39: HC30-3S | D39: 90/70 | I39: 80/60 | N39: 70/50 | S39: 50/30 | X39: 120/90
A40: температура воздуха на входе ºC | B40: 0 | C40: 5 | D40: 10 | E40: 15 | F40: 20 | G40: 0 | H40: 5 | I40: 10 | J40: 15 | K40: 20 | L40: 0 | M40: 5 | N40: 10 | O40: 15 | P40: 20 | Q40: 0 | R40: 5 | S40: 10 | T40: 15 | U40: 20 | V40: 0 | W40: 5 | X40: 10 | Y40: 15 | Z40: 20
A41: тепловая мощность кВт 3-я | B41: 26.4 | C41: 24.2 | D41: 22.1 | E41: 20.1 | F41: 18.1 | G41: 22.2 | H41: 20.1 | I41: 18.1 | J41: 16.1 | K41: 14.2 | L41: 18 | M41: 16 | N41: 14 | O41: 12.1 | P41: 10.2 | Q41: 9.68 | R41: 7.82 | S41: 6 | T41: 4.25 | U41: 2.58 | V41: 34.9 | W41: 32.7 | X41: 30.6 | Y41: 28.4 | Z41: 26.3
A42: 2-я | B42: 20.3 | C42: 18.7 | D42: 17.1 | E42: 15.5 | F42: 14 | G42: 17.2 | H42: 15.6 | I42: 14 | J42: 12.5 | K42: 11 | L42: 14 | M42: 12.5 | N42: 10.9 | O42: 9.43 | P42: 8 | Q42: 7.64 | R42: 6.2 | S42: 4.79 | T42: 3.43 | U42: 2.13 | V42: 27 | W42: 25.2 | X42: 23.6 | Y42: 21.9 | Z42: 20.3
A43: 1-я | B43: 15.5 | C43: 14.3 | D43: 13.1 | E43: 11.9 | F43: 10.7 | G43: 13.2 | H43: 11.9 | I43: 10.7 | J43: 9.57 | K43: 8.44 | L43: 10.8 | M43: 9.58 | N43: 8.42 | O43: 7.29 | P43: 6.19 | Q43: 5.98 | R43: 4.87 | S43: 3.8 | T43: 2.75 | U43: 1.73 | V43: 20.6 | W43: 19.3 | X43: 18 | Y43: 16.7 | Z43: 15.5
A44: температура воздуха на выходе ºC 3-я | B44: 23.7 | C44: 27.1 | D44: 30.6 | E44: 34 | F44: 37.4 | G44: 19.9 | H44: 23.4 | I44: 26.8 | J44: 30.2 | K44: 33.6 | L44: 18 | M44: 16 | N44: 14 | O44: 12.1 | P44: 10.2 | Q44: 8.7 | R44: 12.1 | S44: 15.6 | T44: 19 | U44: 22.5 | V44: 31.4 | W44: 34.9 | X44: 38.4 | Y44: 41.9 | Z44: 45.4
A45: 2-я | B45: 29 | C45: 32.2 | D45: 35.3 | E45: 38.3 | F45: 41.4 | G45: 24.5 | H45: 27.6 | I45: 30.7 | J45: 33.8 | K45: 36.8 | L45: 20 | M45: 23.1 | N45: 26.1 | O45: 29.2 | P45: 32.2 | Q45: 10.9 | R45: 14 | S45: 17.1 | T45: 20.2 | U45: 23.3 | V45: 38.5 | W45: 41.7 | X45: 44.9 | Y45: 48 | Z45: 51.1
A46: 1-я | B46: 34.6 | C46: 37.3 | D46: 40.1 | E46: 42.8 | F46: 45.5 | G46: 29.3 | H46: 32 | I46: 34.8 | J46: 37.5 | K46: 40.2 | L46: 24 | M46: 26.7 | N46: 29.4 | O46: 32.1 | P46: 34.8 | Q46: 13.3 | R46: 16 | S46: 18.8 | T46: 21.5 | U46: 24.1 | V46: 45.8 | W46: 48.7 | X46: 51.5 | Y46: 54.3 | Z46: 57
A47: расход воды м³/ч 3-я | B47: 1.16 | C47: 1.07 | D47: 0.98 | E47: 0.89 | F47: 0.8 | G47: 0.97 | H47: 0.88 | I47: 0.79 | J47: 0.71 | K47: 0.62 | L47: 0.79 | M47: 0.7 | N47: 0.61 | O47: 0.53 | P47: 0.45 | Q47: 0.42 | R47: 0.34 | S47: 0.26 | T47: 0.18 | U47: 0.11 | V47: 1.03 | W47: 0.97 | X47: 0.9 | Y47: 0.84 | Z47: 0.78
A48: 2-я | B48: 0.9 | C48: 0.82 | D48: 0.75 | E48: 0.68 | F48: 0.62 | G48: 0.75 | H48: 0.68 | I48: 0.62 | J48: 0.55 | K48: 0.48 | L48: 0.61 | M48: 0.55 | N48: 0.48 | O48: 0.41 | P48: 0.35 | Q48: 0.33 | R48: 0.27 | S48: 0.21 | T48: 0.15 | U48: 0.09 | V48: 0.8 | W48: 0.75 | X48: 0.7 | Y48: 0.65 | Z48: 0.6
A49: 1-я | B49: 0.68 | C49: 0.63 | D49: 0.58 | E49: 0.52 | F49: 0.47 | G49: 0.58 | H49: 0.52 | I49: 0.47 | J49: 0.42 | K49: 0.37 | L49: 0.47 | M49: 0.42 | N49: 0.37 | O49: 0.32 | P49: 0.27 | Q49: 0.26 | R49: 0.21 | S49: 0.16 | T49: 0.12 | U49: 0.08 | V49: 0.61 | W49: 0.57 | X49: 0.53 | Y49: 0.49 | Z49: 0.46
A50: гидравлическое сопротивление кПа 3-я | B50: 7 | C50: 7 | D50: 6 | E50: 5 | F50: 4 | G50: 6 | H50: 5 | I50: 4 | J50: 5 | K50: 4 | L50: 4 | M50: 5 | N50: 4 | O50: 3 | P50: 4 | Q50: 4 | R50: 3 | S50: 2 | T50: 5 | U50: 2 | V50: 6 | W50: 6 | X50: 5 | Y50: 4 | Z50: 4
A51: 2-я | B51: 5 | C51: 4 | D51: 4 | E51: 3 | F51: 3 | G51: 4 | H51: 3 | I51: 3 | J51: 2 | K51: 2 | L51: 3 | M51: 2 | N51: 2 | O51: 1 | P51: 1 | Q51: 1 | R51: 1 | S51: 0 | T51: 0 | U51: 0 | V51: 4 | W51: 4 | X51: 3 | Y51: 3 | Z51: 2
A52: 1-я | B52: 3 | C52: 3 | D52: 2 | E52: 2 | F52: 2 | G52: 2 | H52: 2 | I52: 2 | J52: 1 | K52: 1 | L52: 2 | M52: 1 | N52: 1 | O52: 1 | P52: 1 | Q52: 1 | R52: 0 | S52: 0 | T52: 0 | U52: 0 | V52: 2 | W52: 2 | X52: 2 | Y52: 2 | Z52: 1
A54: тепловая мощность кВт 3-я | B54: 090/703 | C54: 590/703 | D54: 1090/703 | E54: 1590/703 | F54: 2090/703 | G54: 080/603 | H54: 580/603 | I54: 1080/603 | J54: 1580/603 | K54: 2080/603 | L54: 070/503 | M54: 570/503 | N54: 1070/503 | O54: 1570/503 | P54: 2070/503 | Q54: 050/303 | R54: 550/303 | S54: 1050/303 | T54: 1550/303 | U54: 2050/303 | V54: 0120/903 | W54: 5120/903 | X54: 10120/903 | Y54: 15120/903 | Z54: 20120/903
A55: 2-я | B55: 090/702 | C55: 590/702 | D55: 1090/702 | E55: 1590/702 | F55: 2090/702 | G55: 080/602 | H55: 580/602 | I55: 1080/602 | J55: 1580/602 | K55: 2080/602 | L55: 070/502 | M55: 570/502 | N55: 1070/502 | O55: 1570/502 | P55: 2070/502 | Q55: 050/302 | R55: 550/302 | S55: 1050/302 | T55: 1550/302 | U55: 2050/302 | V55: 0120/902 | W55: 5120/902 | X55: 10120/902 | Y55: 15120/902 | Z55: 20120/902
A56: 1-я | B56: 090/701 | C56: 590/701 | D56: 1090/701 | E56: 1590/701 | F56: 2090/701 | G56: 080/601 | H56: 580/601 | I56: 1080/601 | J56: 1580/601 | K56: 2080/601 | L56: 070/501 | M56: 570/501 | N56: 1070/501 | O56: 1570/501 | P56: 2070/501 | Q56: 050/301 | R56: 550/301 | S56: 1050/301 | T56: 1550/301 | U56: 2050/301 | V56: 0120/901 | W56: 5120/901 | X56: 10120/901 | Y56: 15120/901 | Z56: 20120/901
B57: 090/70 | C57: 590/70 | D57: 1090/70 | E57: 1590/70 | F57: 2090/70 | G57: 080/60 | H57: 580/60 | I57: 1080/60 | J57: 1580/60 | K57: 2080/60 | L57: 070/50 | M57: 570/50 | N57: 1070/50 | O57: 1570/50 | P57: 2070/50 | Q57: 050/30 | R57: 550/30 | S57: 1050/30 | T57: 1550/30 | U57: 2050/30 | V57: 0120/90 | W57: 5120/90 | X57: 10120/90 | Y57: 15120/90 | Z57: 20120/90
B58: 090/70 | C58: 590/70 | D58: 1090/70 | E58: 1590/70 | F58: 2090/70 | G58: 080/60 | H58: 580/60 | I58: 1080/60 | J58: 1580/60 | K58: 2080/60 | L58: 070/50 | M58: 570/50 | N58: 1070/50 | O58: 1570/50 | P58: 2070/50 | Q58: 050/30 | R58: 550/30 | S58: 1050/30 | T58: 1550/30 | U58: 2050/30 | V58: 0120/90 | W58: 5120/90 | X58: 10120/90 | Y58: 15120/90 | Z58: 20120/90
B59: 090/70 | C59: 590/70 | D59: 1090/70 | E59: 1590/70 | F59: 2090/70 | G59: 080/60 | H59: 580/60 | I59: 1080/60 | J59: 1580/60 | K59: 2080/60 | L59: 070/50 | M59: 570/50 | N59: 1070/50 | O59: 1570/50 | P59: 2070/50 | Q59: 050/30 | R59: 550/30 | S59: 1050/30 | T59: 1550/30 | U59: 2050/30 | V59: 0120/90 | W59: 5120/90 | X59: 10120/90 | Y59: 15120/90 | Z59: 20120/90
AA60: =A39 -> HC30-3S
A61: тепловая мощность кВт 3-я | B61: =IF(B54=$D$1,B41,0) ->  | C61: =IF(C54=$D$1,C41,0) ->  | AA61: =MAX(B61:Z61) ->  | AB61: =MAX(AA61:AA63) -> 
A62: 2-я | B62: =IF(B55=$D$1,B42,0) ->  | AA62: =MAX(B62:Z62) -> 
A63: 1-я | B63: =IF(B56=$D$1,B43,0) -> 
A64: температура воздуха на выходе ºC 3-я | B64: =IF(B54=$D$1,B44,0) ->  | C64: =IF(C54=$D$1,C44,0) ->  | L64: =IF(L54=$D$1,L44,0) ->  | M64: =IF(M54=$D$1,M44,0) ->  | AB64: =MAX(AA64:AA66) -> 
A65: 2-я | B65: =IF(B55=$D$1,B45,0) ->  | C65: =IF(C55=$D$1,C45,0) ->  | D65: =IF(D55=$D$1,D45,0) ->  | E65: =IF(E55=$D$1,E45,0) ->  | F65: =IF(F55=$D$1,F45,0) ->  | G65: =IF(G55=$D$1,G45,0) ->  | H65: =IF(H55=$D$1,H45,0) -> 
A66: 1-я | B66: =IF(B56=$D$1,B46,0) ->  | C66: =IF(C56=$D$1,C46,0) ->  | G66: =IF(G56=$D$1,G46,0) ->  | H66: =IF(H56=$D$1,H46,0) -> 
A67: расход воды м³/ч 3-я | B67: =IF(B54=$D$1,B47,0) ->  | C67: =IF(C54=$D$1,C47,0) ->  | G67: =IF(G54=$D$1,G47,0) ->  | H67: =IF(H54=$D$1,H47,0) ->  | L67: =IF(L54=$D$1,L47,0) ->  | M67: =IF(M54=$D$1,M47,0) ->  | Q67: =IF(Q54=$D$1,Q47,0) ->  | R67: =IF(R54=$D$1,R47,0) ->  | V67: =IF(V54=$D$1,V47,0) ->  | W67: =IF(W54=$D$1,W47,0) ->  | AB67: =MAX(AA67:AA69) -> 
A68: 2-я | B68: =IF(B55=$D$1,B48,0) -> 
A69: 1-я | B69: =IF(B56=$D$1,B49,0) -> 
A70: гидравлическое сопротивление кПа 3-я | B70: =IF(B54=$D$1,B50,0) ->  | C70: =IF(C54=$D$1,C50,0) ->  | L70: =IF(L54=$D$1,L50,0) ->  | M70: =IF(M54=$D$1,M50,0) ->  | AB70: =MAX(AA70:AA72) -> 
A71: 2-я | B71: =IF(B55=$D$1,B51,0) -> 
A72: 1-я | B72: =IF(B56=$D$1,B52,0) -> 
A75: HC35-3S | D75: 90/70 | I75: 80/60 | N75: 70/50 | S75: 50/30 | X75: 120/90
A76: температура воздуха на входе ºC | B76: 0 | C76: 5 | D76: 10 | E76: 15 | F76: 20 | G76: 0 | H76: 5 | I76: 10 | J76: 15 | K76: 20 | L76: 0 | M76: 5 | N76: 10 | O76: 15 | P76: 20 | Q76: 0 | R76: 5 | S76: 10 | T76: 15 | U76: 20 | V76: 0 | W76: 5 | X76: 10 | Y76: 15 | Z76: 20
A77: тепловая мощность кВт 3-я | B77: 30.3 | C77: 27.9 | D77: 25.5 | E77: 23.2 | F77: 20.9 | G77: 25.6 | H77: 23.3 | I77: 21 | J77: 18.7 | K77: 16.5 | L77: 21 | M77: 18.7 | N77: 16.4 | O77: 14.2 | P77: 12.1 | Q77: 11.6 | R77: 9.48 | S77: 7.4 | T77: 5.36 | U77: 3.38 | V77: 40.1 | W77: 37.6 | X77: 35.1 | Y77: 32.7 | Z77: 30.3
A78: 2-я | B78: 22.9 | C78: 21.1 | D78: 19.3 | E78: 17.5 | F78: 15.8 | G78: 19.5 | H78: 17.7 | I78: 15.9 | J78: 14.2 | K78: 12.6 | L78: 16 | M78: 14.3 | N78: 12.6 | O78: 10.9 | P78: 9.27 | Q78: 9.01 | R78: 7.39 | S78: 5.79 | T78: 4.24 | U78: 2.72 | V78: 30.4 | W78: 28.4 | X78: 26.5 | Y78: 24.7 | Z78: 22.9
A79: 1-я | B79: 17.3 | C79: 15.9 | D79: 14.5 | E79: 13.2 | F79: 11.9 | G79: 14.7 | H79: 13.4 | I79: 12 | J79: 10.8 | K79: 9.52 | L79: 12.1 | M79: 10.8 | N79: 9.55 | O79: 8.31 | P79: 7.09 | Q79: 6.94 | R79: 5.71 | S79: 4.51 | T79: 3.34 | U79: 2.18 | V79: 22.9 | W79: 21.4 | X79: 20 | Y79: 18.6 | Z79: 17.3
A80: температура воздуха на выходе ºC 3-я | B80: 31.2 | C80: 34.2 | D80: 37.2 | E80: 40.2 | F80: 43.1 | G80: 26.4 | H80: 29.4 | I80: 32.4 | J80: 35.3 | K80: 38.2 | L80: 21.6 | M80: 24.6 | N80: 27.6 | O80: 30.5 | P80: 33.4 | Q80: 12 | R80: 14.9 | S80: 17.9 | T80: 20.8 | U80: 23.7 | V80: 41.3 | W80: 44.4 | X80: 47.5 | Y80: 50.5 | Z80: 53.5
A81: 2-я | B81: 37.5 | C81: 40.1 | D81: 42.7 | E81: 45.3 | F81: 47.8 | G81: 31.8 | H81: 34.4 | I81: 37 | J81: 39.5 | K81: 42.1 | L81: 26.2 | M81: 28.8 | N81: 31.3 | O81: 33.8 | P81: 36.3 | Q81: 14.8 | R81: 17.3 | S81: 19.8 | T81: 22.3 | U81: 24.8 | V81: 49.7 | W81: 52.4 | X81: 55 | Y81: 57.7 | Z81: 60.3
A82: 1-я | B82: 43.6 | C82: 45.9 | D82: 48.1 | E82: 50.3 | F82: 52.4 | G82: 37.2 | H82: 39.4 | I82: 41.6 | J82: 43.7 | K82: 45.9 | L82: 30.7 | M82: 32.9 | N82: 35 | O82: 37.2 | P82: 39.3 | Q82: 17.5 | R82: 19.7 | S82: 21.8 | T82: 23.9 | U82: 25.9 | V82: 57.8 | W82: 60.2 | X82: 62.4 | Y82: 64.6 | Z82: 66.9
A83: расход воды м³/ч 3-я | B83: 1.33 | C83: 1.23 | D83: 1.12 | E83: 1.02 | F83: 0.92 | G83: 1.13 | H83: 1.02 | I83: 0.92 | J83: 0.82 | K83: 0.72 | L83: 0.92 | M83: 0.82 | N83: 0.72 | O83: 0.62 | P83: 0.53 | Q83: 0.5 | R83: 0.41 | S83: 0.32 | T83: 0.23 | U83: 0.15 | V83: 1.18 | W83: 1.11 | X83: 1.04 | Y83: 0.97 | Z83: 0.89
A84: 2-я | B84: 1.01 | C84: 0.93 | D84: 0.85 | E84: 0.77 | F84: 0.7 | G84: 0.85 | H84: 0.78 | I84: 0.7 | J84: 0.62 | K84: 0.55 | L84: 0.7 | M84: 0.62 | N84: 0.55 | O84: 0.48 | P84: 0.41 | Q84: 0.39 | R84: 0.32 | S84: 0.25 | T84: 0.18 | U84: 0.12 | V84: 0.9 | W84: 0.84 | X84: 0.78 | Y84: 0.73 | Z84: 0.68
A85: 1-я | B85: 0.76 | C85: 0.7 | D85: 0.64 | E85: 0.58 | F85: 0.53 | G85: 0.65 | H85: 0.59 | I85: 0.53 | J85: 0.47 | K85: 0.42 | L85: 0.53 | M85: 0.47 | N85: 0.42 | O85: 0.36 | P85: 0.31 | Q85: 0.3 | R85: 0.25 | S85: 0.2 | T85: 0.14 | U85: 0.09 | V85: 0.68 | W85: 0.63 | X85: 0.59 | Y85: 0.55 | Z85: 0.51
A86: гидравлическое сопротивление кПа 3-я | B86: 4 | C86: 3 | D86: 4 | E86: 4 | F86: 3 | G86: 4 | H86: 4 | I86: 3 | J86: 2 | K86: 4 | L86: 3 | M86: 2 | N86: 4 | O86: 3 | P86: 2 | Q86: 2 | R86: 3 | S86: 2 | T86: 4 | U86: 3 | V86: 3 | W86: 4 | X86: 4 | Y86: 3 | Z86: 3
A87: 2-я | B87: 3 | C87: 3 | D87: 3 | E87: 2 | F87: 2 | G87: 3 | H87: 2 | I87: 2 | J87: 1 | K87: 1 | L87: 2 | M87: 1 | N87: 1 | O87: 1 | P87: 1 | Q87: 1 | R87: 0 | S87: 0 | T87: 0 | U87: 0 | V87: 3 | W87: 2 | X87: 2 | Y87: 2 | Z87: 2
A88: 1-я | B88: 2 | C88: 2 | D88: 1 | E88: 1 | F88: 1 | G88: 2 | H88: 1 | I88: 1 | J88: 1 | K88: 1 | L88: 1 | M88: 1 | N88: 1 | O88: 0 | P88: 0 | Q88: 0 | R88: 0 | S88: 0 | T88: 0 | U88: 0 | V88: 2 | W88: 1 | X88: 1 | Y88: 1 | Z88: 1
A90: тепловая мощность кВт 3-я | B90: 090/703 | C90: 590/703 | D90: 1090/703 | E90: 1590/703 | F90: 2090/703 | G90: 080/603 | H90: 580/603 | I90: 1080/603 | J90: 1580/603 | K90: 2080/603 | L90: 070/503 | M90: 570/503 | N90: 1070/503 | O90: 1570/503 | P90: 2070/503 | Q90: 050/303 | R90: 550/303 | S90: 1050/303 | T90: 1550/303 | U90: 2050/303 | V90: 0120/903 | W90: 5120/903 | X90: 10120/903 | Y90: 15120/903 | Z90: 20120/903
A91: 2-я | B91: 090/702 | C91: 590/702 | D91: 1090/702 | E91: 1590/702 | F91: 2090/702 | G91: 080/602 | H91: 580/602 | I91: 1080/602 | J91: 1580/602 | K91: 2080/602 | L91: 070/502 | M91: 570/502 | N91: 1070/502 | O91: 1570/502 | P91: 2070/502 | Q91: 050/302 | R91: 550/302 | S91: 1050/302 | T91: 1550/302 | U91: 2050/302 | V91: 0120/902 | W91: 5120/902 | X91: 10120/902 | Y91: 15120/902 | Z91: 20120/902
A92: 1-я | B92: 090/701 | C92: 590/701 | D92: 1090/701 | E92: 1590/701 | F92: 2090/701 | G92: 080/601 | H92: 580/601 | I92: 1080/601 | J92: 1580/601 | K92: 2080/601 | L92: 070/501 | M92: 570/501 | N92: 1070/501 | O92: 1570/501 | P92: 2070/501 | Q92: 050/301 | R92: 550/301 | S92: 1050/301 | T92: 1550/301 | U92: 2050/301 | V92: 0120/901 | W92: 5120/901 | X92: 10120/901 | Y92: 15120/901 | Z92: 20120/901
B93: 090/70 | C93: 590/70 | D93: 1090/70 | E93: 1590/70 | F93: 2090/70 | G93: 080/60 | H93: 580/60 | I93: 1080/60 | J93: 1580/60 | K93: 2080/60 | L93: 070/50 | M93: 570/50 | N93: 1070/50 | O93: 1570/50 | P93: 2070/50 | Q93: 050/30 | R93: 550/30 | S93: 1050/30 | T93: 1550/30 | U93: 2050/30 | V93: 0120/90 | W93: 5120/90 | X93: 10120/90 | Y93: 15120/90 | Z93: 20120/90
B94: 090/70 | C94: 590/70 | D94: 1090/70 | E94: 1590/70 | F94: 2090/70 | G94: 080/60 | H94: 580/60 | I94: 1080/60 | J94: 1580/60 | K94: 2080/60 | L94: 070/50 | M94: 570/50 | N94: 1070/50 | O94: 1570/50 | P94: 2070/50 | Q94: 050/30 | R94: 550/30 | S94: 1050/30 | T94: 1550/30 | U94: 2050/30 | V94: 0120/90 | W94: 5120/90 | X94: 10120/90 | Y94: 15120/90 | Z94: 20120/90
B95: 090/70 | C95: 590/70 | D95: 1090/70 | E95: 1590/70 | F95: 2090/70 | G95: 080/60 | H95: 580/60 | I95: 1080/60 | J95: 1580/60 | K95: 2080/60 | L95: 070/50 | M95: 570/50 | N95: 1070/50 | O95: 1570/50 | P95: 2070/50 | Q95: 050/30 | R95: 550/30 | S95: 1050/30 | T95: 1550/30 | U95: 2050/30 | V95: 0120/90 | W95: 5120/90 | X95: 10120/90 | Y95: 15120/90 | Z95: 20120/90
AA96: =A75 -> HC35-3S
A97: тепловая мощность кВт 3-я | B97: =IF(B90=$D$1,B77,0) ->  | C97: =IF(C90=$D$1,C77,0) ->  | AA97: =MAX(B97:Z97) ->  | AB97: =MAX(AA97:AA99) -> 
A98: 2-я | B98: =IF(B91=$D$1,B78,0) ->  | AA98: =MAX(B98:Z98) -> 
A99: 1-я | B99: =IF(B92=$D$1,B79,0) -> 
A100: температура воздуха на выходе ºC 3-я | B100: =IF(B90=$D$1,B80,0) ->  | C100: =IF(C90=$D$1,C80,0) ->  | L100: =IF(L90=$D$1,L80,0) ->  | M100: =IF(M90=$D$1,M80,0) ->  | AB100: =MAX(AA100:AA102) -> 
A101: 2-я | B101: =IF(B91=$D$1,B81,0) ->  | C101: =IF(C91=$D$1,C81,0) ->  | D101: =IF(D91=$D$1,D81,0) ->  | E101: =IF(E91=$D$1,E81,0) ->  | F101: =IF(F91=$D$1,F81,0) ->  | G101: =IF(G91=$D$1,G81,0) ->  | H101: =IF(H91=$D$1,H81,0) -> 
A102: 1-я | B102: =IF(B92=$D$1,B82,0) ->  | C102: =IF(C92=$D$1,C82,0) ->  | G102: =IF(G92=$D$1,G82,0) ->  | H102: =IF(H92=$D$1,H82,0) -> 
A103: расход воды м³/ч 3-я | B103: =IF(B90=$D$1,B83,0) ->  | C103: =IF(C90=$D$1,C83,0) ->  | G103: =IF(G90=$D$1,G83,0) ->  | H103: =IF(H90=$D$1,H83,0) ->  | L103: =IF(L90=$D$1,L83,0) ->  | M103: =IF(M90=$D$1,M83,0) ->  | Q103: =IF(Q90=$D$1,Q83,0) ->  | R103: =IF(R90=$D$1,R83,0) ->  | V103: =IF(V90=$D$1,V83,0) ->  | W103: =IF(W90=$D$1,W83,0) ->  | AB103: =MAX(AA103:AA105) -> 
A104: 2-я | B104: =IF(B91=$D$1,B84,0) -> 
A105: 1-я | B105: =IF(B92=$D$1,B85,0) -> 
A106: гидравлическое сопротивление кПа 3-я | B106: =IF(B90=$D$1,B86,0) ->  | C106: =IF(C90=$D$1,C86,0) ->  | L106: =IF(L90=$D$1,L86,0) ->  | M106: =IF(M90=$D$1,M86,0) ->  | AB106: =MAX(AA106:AA108) -> 
A107: 2-я | B107: =IF(B91=$D$1,B87,0) -> 
A108: 1-я | B108: =IF(B92=$D$1,B88,0) -> 
A111: HC45-3S | D111: 90/70 | I111: 80/60 | N111: 70/50 | S111: 50/30 | X111: 120/90
A112: температура воздуха на входе ºC | B112: 0 | C112: 5 | D112: 10 | E112: 15 | F112: 20 | G112: 0 | H112: 5 | I112: 10 | J112: 15 | K112: 20 | L112: 0 | M112: 5 | N112: 10 | O112: 15 | P112: 20 | Q112: 0 | R112: 5 | S112: 10 | T112: 15 | U112: 20 | V112: 0 | W112: 5 | X112: 10 | Y112: 15 | Z112: 20
A113: тепловая мощность кВт 3-я | B113: 42 | C113: 38.8 | D113: 35.6 | E113: 32.5 | F113: 29.5 | G113: 36.2 | H113: 33 | I113: 29.9 | J113: 26.9 | K113: 24 | L113: 30.3 | M113: 27.2 | N113: 24.2 | O113: 21.2 | P113: 18.3 | Q113: 18.4 | R113: 15.4 | S113: 12.5 | T113: 9.65 | U113: 6.78 | V113: 55.6 | W113: 52.1 | X113: 48.8 | Y113: 45.6 | Z113: 42.4
A114: 2-я | B114: 28.9 | C114: 26.7 | D114: 24.5 | E114: 22.4 | F114: 20.3 | G114: 25 | H114: 22.8 | I114: 20.7 | J114: 18.6 | K114: 16.6 | L114: 21 | M114: 18.9 | N114: 16.8 | O114: 14.8 | P114: 12.8 | Q114: 12.9 | R114: 10.9 | S114: 8.89 | T114: 6.92 | U114: 4.93 | V114: 38.2 | W114: 35.9 | X114: 33.6 | Y114: 31.4 | Z114: 29.2
A115: 1-я | B115: 21.1 | C115: 19.5 | D115: 17.9 | E115: 16.4 | F115: 14.9 | G115: 18.3 | H115: 16.7 | I115: 15.2 | J115: 13.6 | K115: 12.2 | L115: 15.4 | M115: 13.9 | N115: 12.4 | O115: 10.9 | P115: 9.46 | Q115: 9.63 | R115: 8.14 | S115: 6.68 | T115: 5.23 | U115: 3.76 | V115: 27.9 | W115: 26.2 | X115: 24.6 | Y115: 22.9 | Z115: 21.3
A116: температура воздуха на выходе ºC 3-я | B116: 46.7 | C116: 48.9 | D116: 51.1 | E116: 53.2 | F116: 55.2 | G116: 40.3 | H116: 42.4 | I116: 44.5 | J116: 46.6 | K116: 48.6 | L116: 33.7 | M116: 35.8 | N116: 37.9 | O116: 39.9 | P116: 41.9 | Q116: 20.4 | R116: 22.5 | S116: 24.4 | T116: 26.3 | U116: 28.1 | V116: 61.8 | W116: 64.1 | X116: 66.3 | Y116: 68.5 | Z116: 70.7
A117: 2-я | B117: 55.4 | C117: 57.1 | D117: 58.7 | E117: 60.3 | F117: 61.9 | G117: 47.9 | H117: 49.5 | I117: 51.1 | J117: 52.7 | K117: 54.1 | L117: 40.3 | M117: 41.9 | N117: 43.4 | O117: 44.9 | P117: 46.3 | Q117: 24.8 | R117: 26.3 | S117: 27.7 | T117: 29 | U117: 30.2 | V117: 73.3 | W117: 75.1 | X117: 76.8 | Y117: 78.5 | Z117: 80.1
A118: 1-я | B118: 61.8 | C118: 63.1 | D118: 64.3 | E118: 65.5 | F118: 66.7 | G118: 53.5 | H118: 54.8 | I118: 56 | J118: 57.1 | K118: 58.3 | L118: 45.2 | M118: 46.4 | N118: 47.6 | O118: 48.7 | P118: 49.7 | Q118: 28.2 | R118: 29.3 | S118: 30.3 | T118: 31.1 | U118: 31.8 | V118: 81.8 | W118: 83.2 | X118: 84.5 | Y118: 85.8 | Z118: 87
A119: расход воды м³/ч 3-я | B119: 1.85 | C119: 1.71 | D119: 1.57 | E119: 1.43 | F119: 1.3 | G119: 1.59 | H119: 1.45 | I119: 1.31 | J119: 1.18 | K119: 1.05 | L119: 1.33 | M119: 1.19 | N119: 1.06 | O119: 0.93 | P119: 0.8 | Q119: 0.8 | R119: 0.67 | S119: 0.54 | T119: 0.42 | U119: 0.29 | V119: 1.64 | W119: 1.54 | X119: 1.44 | Y119: 1.35 | Z119: 1.25
A120: 2-я | B120: 1.27 | C120: 1.18 | D120: 1.08 | E120: 0.99 | F120: 0.9 | G120: 1.1 | H120: 1 | I120: 0.91 | J120: 0.82 | K120: 0.73 | L120: 0.92 | M120: 0.83 | N120: 0.73 | O120: 0.65 | P120: 0.56 | Q120: 0.56 | R120: 0.47 | S120: 0.39 | T120: 0.3 | U120: 0.21 | V120: 1.13 | W120: 1.06 | X120: 0.99 | Y120: 0.93 | Z120: 0.86
A121: 1-я | B121: 0.93 | C121: 0.86 | D121: 0.79 | E121: 0.72 | F121: 0.66 | G121: 0.8 | H121: 0.73 | I121: 0.67 | J121: 0.6 | K121: 0.54 | L121: 0.68 | M121: 0.61 | N121: 0.54 | O121: 0.48 | P121: 0.41 | Q121: 0.42 | R121: 0.35 | S121: 0.29 | T121: 0.23 | U121: 0.16 | V121: 0.83 | W121: 0.77 | X121: 0.73 | Y121: 0.68 | Z121: 0.63
A122: гидравлическое сопротивление кПа 3-я | B122: 21 | C122: 18 | D122: 16 | E122: 15 | F122: 12 | G122: 17 | H122: 16 | I122: 13 | J122: 11 | K122: 10 | L122: 14 | M122: 11 | N122: 10 | O122: 8 | P122: 6 | Q122: 7 | R122: 6 | S122: 4 | T122: 5 | U122: 2 | V122: 16 | W122: 16 | X122: 15 | Y122: 13 | Z122: 11
A123: 2-я | B123: 14 | C123: 12 | D123: 10 | E123: 9 | F123: 7 | G123: 11 | H123: 9 | I123: 8 | J123: 6 | K123: 5 | L123: 8 | M123: 7 | N123: 5 | O123: 4 | P123: 3 | Q123: 3 | R123: 3 | S123: 2 | T123: 1 | U123: 1 | V123: 11 | W123: 10 | X123: 8 | Y123: 7 | Z123: 6
A124: 1-я | B124: 8 | C124: 7 | D124: 6 | E124: 5 | F124: 4 | G124: 6 | H124: 5 | I124: 4 | J124: 4 | K124: 3 | L124: 5 | M124: 4 | N124: 3 | O124: 2 | P124: 2 | Q124: 2 | R124: 1 | S124: 1 | T124: 1 | U124: 0 | V124: 6 | W124: 5 | X124: 5 | Y124: 4 | Z124: 4
A126: тепловая мощность кВт 3-я | B126: 090/703 | C126: 590/703 | D126: 1090/703 | E126: 1590/703 | F126: 2090/703 | G126: 080/603 | H126: 580/603 | I126: 1080/603 | J126: 1580/603 | K126: 2080/603 | L126: 070/503 | M126: 570/503 | N126: 1070/503 | O126: 1570/503 | P126: 2070/503 | Q126: 050/303 | R126: 550/303 | S126: 1050/303 | T126: 1550/303 | U126: 2050/303 | V126: 0120/903 | W126: 5120/903 | X126: 10120/903 | Y126: 15120/903 | Z126: 20120/903
A127: 2-я | B127: 090/702 | C127: 590/702 | D127: 1090/702 | E127: 1590/702 | F127: 2090/702 | G127: 080/602 | H127: 580/602 | I127: 1080/602 | J127: 1580/602 | K127: 2080/602 | L127: 070/502 | M127: 570/502 | N127: 1070/502 | O127: 1570/502 | P127: 2070/502 | Q127: 050/302 | R127: 550/302 | S127: 1050/302 | T127: 1550/302 | U127: 2050/302 | V127: 0120/902 | W127: 5120/902 | X127: 10120/902 | Y127: 15120/902 | Z127: 20120/902
A128: 1-я | B128: 090/701 | C128: 590/701 | D128: 1090/701 | E128: 1590/701 | F128: 2090/701 | G128: 080/601 | H128: 580/601 | I128: 1080/601 | J128: 1580/601 | K128: 2080/601 | L128: 070/501 | M128: 570/501 | N128: 1070/501 | O128: 1570/501 | P128: 2070/501 | Q128: 050/301 | R128: 550/301 | S128: 1050/301 | T128: 1550/301 | U128: 2050/301 | V128: 0120/901 | W128: 5120/901 | X128: 10120/901 | Y128: 15120/901 | Z128: 20120/901
B129: 090/70 | C129: 590/70 | D129: 1090/70 | E129: 1590/70 | F129: 2090/70 | G129: 080/60 | H129: 580/60 | I129: 1080/60 | J129: 1580/60 | K129: 2080/60 | L129: 070/50 | M129: 570/50 | N129: 1070/50 | O129: 1570/50 | P129: 2070/50 | Q129: 050/30 | R129: 550/30 | S129: 1050/30 | T129: 1550/30 | U129: 2050/30 | V129: 0120/90 | W129: 5120/90 | X129: 10120/90 | Y129: 15120/90 | Z129: 20120/90
B130: 090/70 | C130: 590/70 | D130: 1090/70 | E130: 1590/70 | F130: 2090/70 | G130: 080/60 | H130: 580/60 | I130: 1080/60 | J130: 1580/60 | K130: 2080/60 | L130: 070/50 | M130: 570/50 | N130: 1070/50 | O130: 1570/50 | P130: 2070/50 | Q130: 050/30 | R130: 550/30 | S130: 1050/30 | T130: 1550/30 | U130: 2050/30 | V130: 0120/90 | W130: 5120/90 | X130: 10120/90 | Y130: 15120/90 | Z130: 20120/90
B131: 090/70 | C131: 590/70 | D131: 1090/70 | E131: 1590/70 | F131: 2090/70 | G131: 080/60 | H131: 580/60 | I131: 1080/60 | J131: 1580/60 | K131: 2080/60 | L131: 070/50 | M131: 570/50 | N131: 1070/50 | O131: 1570/50 | P131: 2070/50 | Q131: 050/30 | R131: 550/30 | S131: 1050/30 | T131: 1550/30 | U131: 2050/30 | V131: 0120/90 | W131: 5120/90 | X131: 10120/90 | Y131: 15120/90 | Z131: 20120/90
AA132: =A111 -> HC45-3S
A133: тепловая мощность кВт 3-я | B133: =IF(B126=$D$1,B113,0) ->  | C133: =IF(C126=$D$1,C113,0) ->  | AA133: =MAX(B133:Z133) ->  | AB133: =MAX(AA133:AA135) -> 
A134: 2-я | B134: =IF(B127=$D$1,B114,0) ->  | AA134: =MAX(B134:Z134) -> 
A135: 1-я | B135: =IF(B128=$D$1,B115,0) -> 
A136: температура воздуха на выходе ºC 3-я | B136: =IF(B126=$D$1,B116,0) ->  | C136: =IF(C126=$D$1,C116,0) ->  | L136: =IF(L126=$D$1,L116,0) ->  | M136: =IF(M126=$D$1,M116,0) ->  | AB136: =MAX(AA136:AA138) -> 
A137: 2-я | B137: =IF(B127=$D$1,B117,0) ->  | C137: =IF(C127=$D$1,C117,0) ->  | D137: =IF(D127=$D$1,D117,0) ->  | E137: =IF(E127=$D$1,E117,0) ->  | F137: =IF(F127=$D$1,F117,0) ->  | G137: =IF(G127=$D$1,G117,0) ->  | H137: =IF(H127=$D$1,H117,0) -> 
A138: 1-я | B138: =IF(B128=$D$1,B118,0) ->  | C138: =IF(C128=$D$1,C118,0) ->  | G138: =IF(G128=$D$1,G118,0) ->  | H138: =IF(H128=$D$1,H118,0) -> 
A139: расход воды м³/ч 3-я | B139: =IF(B126=$D$1,B119,0) ->  | C139: =IF(C126=$D$1,C119,0) ->  | G139: =IF(G126=$D$1,G119,0) ->  | H139: =IF(H126=$D$1,H119,0) ->  | L139: =IF(L126=$D$1,L119,0) ->  | M139: =IF(M126=$D$1,M119,0) ->  | Q139: =IF(Q126=$D$1,Q119,0) ->  | R139: =IF(R126=$D$1,R119,0) ->  | V139: =IF(V126=$D$1,V119,0) ->  | W139: =IF(W126=$D$1,W119,0) ->  | AB139: =MAX(AA139:AA141) -> 
A140: 2-я | B140: =IF(B127=$D$1,B120,0) -> 
A141: 1-я | B141: =IF(B128=$D$1,B121,0) -> 
A142: гидравлическое сопротивление кПа 3-я | B142: =IF(B126=$D$1,B122,0) ->  | C142: =IF(C126=$D$1,C122,0) ->  | L142: =IF(L126=$D$1,L122,0) ->  | M142: =IF(M126=$D$1,M122,0) ->  | AB142: =MAX(AA142:AA144) -> 
A143: 2-я | B143: =IF(B127=$D$1,B123,0) -> 
A144: 1-я | B144: =IF(B128=$D$1,B124,0) -> 
A147: HC50-3S | D147: 90/70 | I147: 80/60 | N147: 70/50 | S147: 50/30 | X147: 120/90
A148: температура воздуха на входе ºC | B148: 0 | C148: 5 | D148: 10 | E148: 15 | F148: 20 | G148: 0 | H148: 5 | I148: 10 | J148: 15 | K148: 20 | L148: 0 | M148: 5 | N148: 10 | O148: 15 | P148: 20 | Q148: 0 | R148: 5 | S148: 10 | T148: 15 | U148: 20 | V148: 0 | W148: 5 | X148: 10 | Y148: 15 | Z148: 20
A149: тепловая мощность кВт 3-я | B149: 44.3 | C149: 40.9 | D149: 37.6 | E149: 34.3 | F149: 31.1 | G149: 38 | H149: 34.7 | I149: 31.5 | J149: 28.3 | K149: 25.2 | L149: 31.8 | M149: 28.5 | N149: 25.3 | O149: 22.2 | P149: 19.1 | Q149: 19.1 | R149: 16 | S149: 12.9 | T149: 9.92 | U149: 6.92 | V149: 58.5 | W149: 54.9 | X149: 51.5 | Y149: 48.1 | Z149: 44.7
A150: 2-я | B150: 32.5 | C150: 30 | D150: 27.6 | E150: 25.2 | F150: 22.9 | G150: 28 | H150: 25.6 | I150: 23.2 | J150: 20.8 | K150: 18.6 | L150: 23.4 | M150: 21.1 | N150: 18.7 | O150: 16.4 | P150: 14.2 | Q150: 14.3 | R150: 12 | S150: 9.72 | T150: 7.49 | U150: 5.29 | V150: 43 | W150: 40.4 | X150: 37.8 | Y150: 35.3 | Z150: 32.8
A151: 1-я | B151: 26.5 | C151: 24.5 | D151: 22.5 | E151: 20.5 | F151: 18.6 | G151: 22.8 | H151: 20.9 | I151: 18.9 | J151: 17 | K151: 15.1 | L151: 19.2 | M151: 17.2 | N151: 15.3 | O151: 13.5 | P151: 11.6 | Q151: 11.7 | R151: 9.87 | S151: 8.03 | T151: 6.23 | U151: 4.41 | V151: 35 | W151: 32.9 | X151: 30.8 | Y151: 28.7 | Z151: 26.8
A152: температура воздуха на выходе ºC 3-я | B152: 30.8 | C152: 33.9 | D152: 37.1 | E152: 40.2 | F152: 43.2 | G152: 26.5 | H152: 29.6 | I152: 32.7 | J152: 35.7 | K152: 38.8 | L152: 22.1 | M152: 25.2 | N152: 28.3 | O152: 31.3 | P152: 34.3 | Q152: 13.3 | R152: 16.3 | S152: 19.3 | T152: 22.3 | U152: 25.2 | V152: 40.7 | W152: 43.9 | X152: 47.1 | Y152: 50.3 | Z152: 53.4
A153: 2-я | B153: 37.7 | C153: 40.5 | D153: 43.1 | E153: 45.8 | F153: 48.4 | G153: 32.5 | H153: 35.2 | I153: 37.8 | J153: 40.5 | K153: 43.1 | L153: 27.2 | M153: 29.9 | N153: 32.5 | O153: 35.1 | P153: 37.7 | Q153: 16.5 | R153: 19.1 | S153: 21.7 | T153: 24.2 | U153: 26.6 | V153: 49.8 | W153: 52.6 | X153: 55.4 | Y153: 58.2 | Z153: 60.8
A154: 1-я | B154: 42.2 | C154: 44.6 | D154: 47 | E154: 49.5 | F154: 51.8 | G154: 36.3 | H154: 38.8 | I154: 41.2 | J154: 43.5 | K154: 45.8 | L154: 30.5 | M154: 32.9 | N154: 35.2 | O154: 37.6 | P154: 39.8 | Q154: 18.7 | R154: 21 | S154: 23.2 | T154: 25.5 | U154: 27.5 | V154: 55.7 | W154: 58.2 | X154: 60.7 | Y154: 63.2 | Z154: 65.6
A155: расход воды м³/ч 3-я | B155: 1.95 | C155: 1.8 | D155: 1.66 | E155: 1.51 | F155: 1.37 | G155: 1.67 | H155: 1.52 | I155: 1.38 | J155: 1.24 | K155: 1.11 | L155: 1.39 | M155: 1.25 | N155: 1.11 | O155: 0.97 | P155: 0.84 | Q155: 0.83 | R155: 0.69 | S155: 0.56 | T155: 0.43 | U155: 0.3 | V155: 1.73 | W155: 1.62 | X155: 1.52 | Y155: 1.42 | Z155: 1.32
A156: 2-я | B156: 1.43 | C156: 1.32 | D156: 1.22 | E156: 1.11 | F156: 1.01 | G156: 1.23 | H156: 1.12 | I156: 1.02 | J156: 0.92 | K156: 0.82 | L156: 1.03 | M156: 0.92 | N156: 0.82 | O156: 0.72 | P156: 0.62 | Q156: 0.62 | R156: 0.52 | S156: 0.42 | T156: 0.33 | U156: 0.23 | V156: 1.27 | W156: 1.19 | X156: 1.12 | Y156: 1.04 | Z156: 0.97
A157: 1-я | B157: 1.17 | C157: 1.08 | D157: 0.99 | E157: 0.91 | F157: 0.82 | G157: 1 | H157: 0.92 | I157: 0.83 | J157: 0.75 | K157: 0.67 | L157: 0.84 | M157: 0.75 | N157: 0.67 | O157: 0.59 | P157: 0.51 | Q157: 0.51 | R157: 0.43 | S157: 0.35 | T157: 0.27 | U157: 0.19 | V157: 1.03 | W157: 0.97 | X157: 0.91 | Y157: 0.85 | Z157: 0.79
A158: гидравлическое сопротивление кПа 3-я | B158: 10 | C158: 8 | D158: 7 | E158: 8 | F158: 7 | G158: 8 | H158: 8 | I158: 7 | J158: 6 | K158: 6 | L158: 7 | M158: 6 | N158: 6 | O158: 5 | P158: 4 | Q158: 4 | R158: 4 | S158: 3 | T158: 4 | U158: 2 | V158: 7 | W158: 7 | X158: 8 | Y158: 7 | Z158: 6
A159: 2-я | B159: 10 | C159: 8 | D159: 7 | E159: 6 | F159: 5 | G159: 7 | H159: 6 | I159: 5 | J159: 4 | K159: 3 | L159: 5 | M159: 4 | N159: 4 | O159: 3 | P159: 2 | Q159: 2 | R159: 2 | S159: 1 | T159: 1 | U159: 0 | V159: 7 | W159: 6 | X159: 6 | Y159: 5 | Z159: 4
A160: 1-я | B160: 6 | C160: 6 | D160: 5 | E160: 4 | F160: 3 | G160: 5 | H160: 4 | I160: 4 | J160: 3 | K160: 2 | L160: 4 | M160: 3 | N160: 2 | O160: 2 | P160: 1 | Q160: 2 | R160: 1 | S160: 1 | T160: 0 | U160: 0 | V160: 5 | W160: 4 | X160: 4 | Y160: 3 | Z160: 3
A162: тепловая мощность кВт 3-я | B162: 090/703 | C162: 590/703 | D162: 1090/703 | E162: 1590/703 | F162: 2090/703 | G162: 080/603 | H162: 580/603 | I162: 1080/603 | J162: 1580/603 | K162: 2080/603 | L162: 070/503 | M162: 570/503 | N162: 1070/503 | O162: 1570/503 | P162: 2070/503 | Q162: 050/303 | R162: 550/303 | S162: 1050/303 | T162: 1550/303 | U162: 2050/303 | V162: 0120/903 | W162: 5120/903 | X162: 10120/903 | Y162: 15120/903 | Z162: 20120/903
A163: 2-я | B163: 090/702 | C163: 590/702 | D163: 1090/702 | E163: 1590/702 | F163: 2090/702 | G163: 080/602 | H163: 580/602 | I163: 1080/602 | J163: 1580/602 | K163: 2080/602 | L163: 070/502 | M163: 570/502 | N163: 1070/502 | O163: 1570/502 | P163: 2070/502 | Q163: 050/302 | R163: 550/302 | S163: 1050/302 | T163: 1550/302 | U163: 2050/302 | V163: 0120/902 | W163: 5120/902 | X163: 10120/902 | Y163: 15120/902 | Z163: 20120/902
A164: 1-я | B164: 090/701 | C164: 590/701 | D164: 1090/701 | E164: 1590/701 | F164: 2090/701 | G164: 080/601 | H164: 580/601 | I164: 1080/601 | J164: 1580/601 | K164: 2080/601 | L164: 070/501 | M164: 570/501 | N164: 1070/501 | O164: 1570/501 | P164: 2070/501 | Q164: 050/301 | R164: 550/301 | S164: 1050/301 | T164: 1550/301 | U164: 2050/301 | V164: 0120/901 | W164: 5120/901 | X164: 10120/901 | Y164: 15120/901 | Z164: 20120/901
B165: 090/70 | C165: 590/70 | D165: 1090/70 | E165: 1590/70 | F165: 2090/70 | G165: 080/60 | H165: 580/60 | I165: 1080/60 | J165: 1580/60 | K165: 2080/60 | L165: 070/50 | M165: 570/50 | N165: 1070/50 | O165: 1570/50 | P165: 2070/50 | Q165: 050/30 | R165: 550/30 | S165: 1050/30 | T165: 1550/30 | U165: 2050/30 | V165: 0120/90 | W165: 5120/90 | X165: 10120/90 | Y165: 15120/90 | Z165: 20120/90
B166: 090/70 | C166: 590/70 | D166: 1090/70 | E166: 1590/70 | F166: 2090/70 | G166: 080/60 | H166: 580/60 | I166: 1080/60 | J166: 1580/60 | K166: 2080/60 | L166: 070/50 | M166: 570/50 | N166: 1070/50 | O166: 1570/50 | P166: 2070/50 | Q166: 050/30 | R166: 550/30 | S166: 1050/30 | T166: 1550/30 | U166: 2050/30 | V166: 0120/90 | W166: 5120/90 | X166: 10120/90 | Y166: 15120/90 | Z166: 20120/90
B167: 090/70 | C167: 590/70 | D167: 1090/70 | E167: 1590/70 | F167: 2090/70 | G167: 080/60 | H167: 580/60 | I167: 1080/60 | J167: 1580/60 | K167: 2080/60 | L167: 070/50 | M167: 570/50 | N167: 1070/50 | O167: 1570/50 | P167: 2070/50 | Q167: 050/30 | R167: 550/30 | S167: 1050/30 | T167: 1550/30 | U167: 2050/30 | V167: 0120/90 | W167: 5120/90 | X167: 10120/90 | Y167: 15120/90 | Z167: 20120/90
AA168: =A147 -> HC50-3S
A169: тепловая мощность кВт 3-я | B169: =IF(B162=$D$1,B149,0) ->  | C169: =IF(C162=$D$1,C149,0) ->  | AA169: =MAX(B169:Z169) ->  | AB169: =MAX(AA169:AA171) -> 
A170: 2-я | B170: =IF(B163=$D$1,B150,0) ->  | AA170: =MAX(B170:Z170) -> 
A171: 1-я | B171: =IF(B164=$D$1,B151,0) -> 
A172: температура воздуха на выходе ºC 3-я | B172: =IF(B162=$D$1,B152,0) ->  | C172: =IF(C162=$D$1,C152,0) ->  | L172: =IF(L162=$D$1,L152,0) ->  | M172: =IF(M162=$D$1,M152,0) ->  | AB172: =MAX(AA172:AA174) -> 
A173: 2-я | B173: =IF(B163=$D$1,B153,0) ->  | C173: =IF(C163=$D$1,C153,0) ->  | D173: =IF(D163=$D$1,D153,0) ->  | E173: =IF(E163=$D$1,E153,0) ->  | F173: =IF(F163=$D$1,F153,0) ->  | G173: =IF(G163=$D$1,G153,0) ->  | H173: =IF(H163=$D$1,H153,0) -> 
A174: 1-я | B174: =IF(B164=$D$1,B154,0) ->  | C174: =IF(C164=$D$1,C154,0) ->  | G174: =IF(G164=$D$1,G154,0) ->  | H174: =IF(H164=$D$1,H154,0) -> 
A175: расход воды м³/ч 3-я | B175: =IF(B162=$D$1,B155,0) ->  | C175: =IF(C162=$D$1,C155,0) ->  | G175: =IF(G162=$D$1,G155,0) ->  | H175: =IF(H162=$D$1,H155,0) ->  | L175: =IF(L162=$D$1,L155,0) ->  | M175: =IF(M162=$D$1,M155,0) ->  | Q175: =IF(Q162=$D$1,Q155,0) ->  | R175: =IF(R162=$D$1,R155,0) ->  | V175: =IF(V162=$D$1,V155,0) ->  | W175: =IF(W162=$D$1,W155,0) ->  | AB175: =MAX(AA175:AA177) -> 
A176: 2-я | B176: =IF(B163=$D$1,B156,0) -> 
A177: 1-я | B177: =IF(B164=$D$1,B157,0) -> 
A178: гидравлическое сопротивление кПа 3-я | B178: =IF(B162=$D$1,B158,0) ->  | C178: =IF(C162=$D$1,C158,0) ->  | L178: =IF(L162=$D$1,L158,0) ->  | M178: =IF(M162=$D$1,M158,0) ->  | AB178: =MAX(AA178:AA180) -> 
A179: 2-я | B179: =IF(B163=$D$1,B159,0) -> 
A180: 1-я | B180: =IF(B164=$D$1,B160,0) -> 
A183: HC70-3S | D183: 90/70 | I183: 80/60 | N183: 70/50 | S183: 50/30 | X183: 120/90
A184: температура воздуха на входе ºC | B184: 0 | C184: 5 | D184: 10 | E184: 15 | F184: 20 | G184: 0 | H184: 5 | I184: 10 | J184: 15 | K184: 20 | L184: 0 | M184: 5 | N184: 10 | O184: 15 | P184: 20 | Q184: 0 | R184: 5 | S184: 10 | T184: 15 | U184: 20 | V184: 0 | W184: 5 | X184: 10 | Y184: 15 | Z184: 20
A185: тепловая мощность кВт 3-я | B185: 60.6 | C185: 55.9 | D185: 51.4 | E185: 46.9 | F185: 42.6 | G185: 52.2 | H185: 47.6 | I185: 43.2 | J185: 38.8 | K185: 34.6 | L185: 43.8 | M185: 39.3 | N185: 35 | O185: 30.7 | P185: 26.6 | Q185: 26.7 | R185: 22.4 | S185: 18.3 | T185: 14.1 | U185: 9.94 | V185: 80.1 | W185: 75.2 | X185: 70.5 | Y185: 65.8 | Z185: 61.2
A186: 2-я | B186: 40.1 | C186: 37.1 | D186: 34 | E186: 31.1 | F186: 28.3 | G186: 34.7 | H186: 31.7 | I186: 28.8 | J186: 25.9 | K186: 23.1 | L186: 29.2 | M186: 26.3 | N186: 23.5 | O186: 20.6 | P186: 17.9 | Q186: 18.1 | R186: 15.3 | S186: 12.5 | T186: 9.76 | U186: 6.99 | V186: 53.2 | W186: 49.9 | X186: 46.7 | Y186: 43.6 | Z186: 40.6
A187: 1-я | B187: 32.7 | C187: 30.2 | D187: 27.8 | E187: 25.4 | F187: 23.1 | G187: 28.3 | H187: 25.9 | I187: 23.5 | J187: 21.2 | K187: 18.9 | L187: 23.9 | M187: 21.6 | N187: 19.2 | O187: 16.9 | P187: 14.7 | Q187: 15 | R187: 12.7 | S187: 10.4 | T187: 8.15 | U187: 5.86 | V187: 43.3 | W187: 40.7 | X187: 38.1 | Y187: 35.6 | Z187: 33.1
A188: температура воздуха на выходе ºC 3-я | B188: 49.6 | C188: 51.6 | D188: 53.6 | E188: 55.5 | F188: 57.4 | G188: 42.7 | H188: 44.7 | I188: 46.7 | J188: 48.5 | K188: 50.4 | L188: 35.8 | M188: 37.8 | N188: 39.7 | O188: 41.5 | P188: 43.3 | Q188: 21.9 | R188: 23.7 | S188: 25.5 | T188: 27.1 | U188: 28.7 | V188: 65.6 | W188: 67.7 | X188: 69.8 | Y188: 71.8 | Z188: 73.7
A189: 2-я | B189: 58.8 | C189: 60.2 | D189: 61.7 | E189: 63.1 | F189: 64.4 | G189: 50.8 | H189: 52.3 | I189: 53.7 | J189: 55 | K189: 56.3 | L189: 42.8 | M189: 44.2 | N189: 45.6 | O189: 46.9 | P189: 48.1 | Q189: 26.6 | R189: 27.8 | S189: 29 | T189: 30.1 | U189: 31 | V189: 77.9 | W189: 79.4 | X189: 80.9 | Y189: 82.3 | Z189: 83.8
A190: 1-я | B190: 62.8 | C190: 64 | D190: 65.2 | E190: 66.4 | F190: 67.5 | G190: 54.4 | H190: 55.6 | I190: 56.8 | J190: 57.9 | K190: 58.9 | L190: 45.9 | M190: 47.1 | N190: 48.2 | O190: 49.3 | P190: 50.3 | Q190: 28.7 | R190: 29.7 | S190: 30.7 | T190: 31.5 | U190: 32.1 | V190: 83.1 | W190: 84.5 | X190: 85.8 | Y190: 87 | Z190: 88.2
A191: расход воды м³/ч 3-я | B191: 2.67 | C191: 2.46 | D191: 2.26 | E191: 2.07 | F191: 1.88 | G191: 2.29 | H191: 2.09 | I191: 1.9 | J191: 1.71 | K191: 1.52 | L191: 1.92 | M191: 1.72 | N191: 1.53 | O191: 1.34 | P191: 1.16 | Q191: 1.16 | R191: 0.97 | S191: 0.79 | T191: 0.61 | U191: 0.43 | V191: 2.37 | W191: 2.22 | X191: 2.08 | Y191: 1.94 | Z191: 1.81
A192: 2-я | B192: 1.77 | C192: 1.63 | D192: 1.5 | E192: 1.37 | F192: 1.25 | G192: 1.52 | H192: 1.39 | I192: 1.26 | J192: 1.14 | K192: 1.02 | L192: 1.28 | M192: 1.15 | N192: 1.03 | O192: 0.9 | P192: 0.78 | Q192: 0.79 | R192: 0.66 | S192: 0.54 | T192: 0.42 | U192: 0.3 | V192: 1.57 | W192: 1.47 | X192: 1.38 | Y192: 1.29 | Z192: 1.2
A193: 1-я | B193: 1.44 | C193: 1.33 | D193: 1.22 | E193: 1.12 | F193: 1.02 | G193: 1.25 | H193: 1.14 | I193: 1.03 | J193: 0.93 | K193: 0.83 | L193: 1.05 | M193: 0.94 | N193: 0.84 | O193: 0.74 | P193: 0.64 | Q193: 0.65 | R193: 0.55 | S193: 0.45 | T193: 0.35 | U193: 0.25 | V193: 1.28 | W193: 1.2 | X193: 1.12 | Y193: 1.05 | Z193: 0.98
A194: гидравлическое сопротивление кПа 3-я | B194: 8 | C194: 8 | D194: 7 | E194: 6 | F194: 5 | G194: 7 | H194: 6 | I194: 5 | J194: 4 | K194: 5 | L194: 5 | M194: 5 | N194: 5 | O194: 4 | P194: 3 | Q194: 3 | R194: 4 | S194: 3 | T194: 3 | U194: 4 | V194: 7 | W194: 7 | X194: 6 | Y194: 5 | Z194: 5
A195: 2-я | B195: 10 | C195: 9 | D195: 8 | E195: 6 | F195: 5 | G195: 8 | H195: 7 | I195: 6 | J195: 5 | K195: 4 | L195: 6 | M195: 5 | N195: 4 | O195: 3 | P195: 2 | Q195: 2 | R195: 2 | S195: 1 | T195: 1 | U195: 0 | V195: 8 | W195: 7 | X195: 6 | Y195: 6 | Z195: 5
A196: 1-я | B196: 7 | C196: 6 | D196: 5 | E196: 4 | F196: 4 | G196: 5 | H196: 5 | I196: 4 | J196: 3 | K196: 3 | L196: 4 | M196: 3 | N196: 3 | O196: 2 | P196: 2 | Q196: 2 | R196: 1 | S196: 1 | T196: 1 | U196: 0 | V196: 5 | W196: 5 | X196: 4 | Y196: 4 | Z196: 3
A198: тепловая мощность кВт 3-я | B198: 090/703 | C198: 590/703 | D198: 1090/703 | E198: 1590/703 | F198: 2090/703 | G198: 080/603 | H198: 580/603 | I198: 1080/603 | J198: 1580/603 | K198: 2080/603 | L198: 070/503 | M198: 570/503 | N198: 1070/503 | O198: 1570/503 | P198: 2070/503 | Q198: 050/303 | R198: 550/303 | S198: 1050/303 | T198: 1550/303 | U198: 2050/303 | V198: 0120/903 | W198: 5120/903 | X198: 10120/903 | Y198: 15120/903 | Z198: 20120/903
A199: 2-я | B199: 090/702 | C199: 590/702 | D199: 1090/702 | E199: 1590/702 | F199: 2090/702 | G199: 080/602 | H199: 580/602 | I199: 1080/602 | J199: 1580/602 | K199: 2080/602 | L199: 070/502 | M199: 570/502 | N199: 1070/502 | O199: 1570/502 | P199: 2070/502 | Q199: 050/302 | R199: 550/302 | S199: 1050/302 | T199: 1550/302 | U199: 2050/302 | V199: 0120/902 | W199: 5120/902 | X199: 10120/902 | Y199: 15120/902 | Z199: 20120/902
A200: 1-я | B200: 090/701 | C200: 590/701 | D200: 1090/701 | E200: 1590/701 | F200: 2090/701 | G200: 080/601 | H200: 580/601 | I200: 1080/601 | J200: 1580/601 | K200: 2080/601 | L200: 070/501 | M200: 570/501 | N200: 1070/501 | O200: 1570/501 | P200: 2070/501 | Q200: 050/301 | R200: 550/301 | S200: 1050/301 | T200: 1550/301 | U200: 2050/301 | V200: 0120/901 | W200: 5120/901 | X200: 10120/901 | Y200: 15120/901 | Z200: 20120/901
B201: 090/70 | C201: 590/70 | D201: 1090/70 | E201: 1590/70 | F201: 2090/70 | G201: 080/60 | H201: 580/60 | I201: 1080/60 | J201: 1580/60 | K201: 2080/60 | L201: 070/50 | M201: 570/50 | N201: 1070/50 | O201: 1570/50 | P201: 2070/50 | Q201: 050/30 | R201: 550/30 | S201: 1050/30 | T201: 1550/30 | U201: 2050/30 | V201: 0120/90 | W201: 5120/90 | X201: 10120/90 | Y201: 15120/90 | Z201: 20120/90
B202: 090/70 | C202: 590/70 | D202: 1090/70 | E202: 1590/70 | F202: 2090/70 | G202: 080/60 | H202: 580/60 | I202: 1080/60 | J202: 1580/60 | K202: 2080/60 | L202: 070/50 | M202: 570/50 | N202: 1070/50 | O202: 1570/50 | P202: 2070/50 | Q202: 050/30 | R202: 550/30 | S202: 1050/30 | T202: 1550/30 | U202: 2050/30 | V202: 0120/90 | W202: 5120/90 | X202: 10120/90 | Y202: 15120/90 | Z202: 20120/90
B203: 090/70 | C203: 590/70 | D203: 1090/70 | E203: 1590/70 | F203: 2090/70 | G203: 080/60 | H203: 580/60 | I203: 1080/60 | J203: 1580/60 | K203: 2080/60 | L203: 070/50 | M203: 570/50 | N203: 1070/50 | O203: 1570/50 | P203: 2070/50 | Q203: 050/30 | R203: 550/30 | S203: 1050/30 | T203: 1550/30 | U203: 2050/30 | V203: 0120/90 | W203: 5120/90 | X203: 10120/90 | Y203: 15120/90 | Z203: 20120/90
AA204: =A183 -> HC70-3S
A205: тепловая мощность кВт 3-я | B205: =IF(B198=$D$1,B185,0) ->  | C205: =IF(C198=$D$1,C185,0) ->  | AA205: =MAX(B205:Z205) ->  | AB205: =MAX(AA205:AA207) -> 
A206: 2-я | B206: =IF(B199=$D$1,B186,0) ->  | AA206: =MAX(B206:Z206) -> 
A207: 1-я | B207: =IF(B200=$D$1,B187,0) -> 
A208: температура воздуха на выходе ºC 3-я | B208: =IF(B198=$D$1,B188,0) ->  | C208: =IF(C198=$D$1,C188,0) ->  | L208: =IF(L198=$D$1,L188,0) ->  | M208: =IF(M198=$D$1,M188,0) ->  | AB208: =MAX(AA208:AA210) -> 
A209: 2-я | B209: =IF(B199=$D$1,B189,0) ->  | C209: =IF(C199=$D$1,C189,0) ->  | D209: =IF(D199=$D$1,D189,0) ->  | E209: =IF(E199=$D$1,E189,0) ->  | F209: =IF(F199=$D$1,F189,0) ->  | G209: =IF(G199=$D$1,G189,0) ->  | H209: =IF(H199=$D$1,H189,0) -> 
A210: 1-я | B210: =IF(B200=$D$1,B190,0) ->  | C210: =IF(C200=$D$1,C190,0) ->  | G210: =IF(G200=$D$1,G190,0) ->  | H210: =IF(H200=$D$1,H190,0) -> 
A211: расход воды м³/ч 3-я | B211: =IF(B198=$D$1,B191,0) ->  | C211: =IF(C198=$D$1,C191,0) ->  | G211: =IF(G198=$D$1,G191,0) ->  | H211: =IF(H198=$D$1,H191,0) ->  | L211: =IF(L198=$D$1,L191,0) ->  | M211: =IF(M198=$D$1,M191,0) ->  | Q211: =IF(Q198=$D$1,Q191,0) ->  | R211: =IF(R198=$D$1,R191,0) ->  | V211: =IF(V198=$D$1,V191,0) ->  | W211: =IF(W198=$D$1,W191,0) ->  | AB211: =MAX(AA211:AA213) -> 
A212: 2-я | B212: =IF(B199=$D$1,B192,0) -> 
A213: 1-я | B213: =IF(B200=$D$1,B193,0) -> 
A214: гидравлическое сопротивление кПа 3-я | B214: =IF(B198=$D$1,B194,0) ->  | C214: =IF(C198=$D$1,C194,0) ->  | L214: =IF(L198=$D$1,L194,0) ->  | M214: =IF(M198=$D$1,M194,0) ->  | AB214: =MAX(AA214:AA216) -> 
A215: 2-я | B215: =IF(B199=$D$1,B195,0) -> 
A216: 1-я | B216: =IF(B200=$D$1,B196,0) -> 
A219: HCF IP65 | D219: 90/70 | I219: 80/60 | N219: 70/50 | S219: 50/30 | X219: 120/90
... 83 more rows

Sheet Пирог стены окна (hidden)
J2: =Q4 -> Сэндвич-панель | Y2: пенополистирол | Z2: 0.034
J3: номер слоя, м | K3: Материал слоя | L3: толщина слоя, м | M3: коэффициент теплопроводности λ, Вт/м С | N3: Термическое сопротивление каждого слоя, Rn,(м2 0С)/Вт | R3: Коэффициент теплопередачи ограждающей конструкции, К, Вт/(м2 0С) | S3: Фактическое сопротивления теплопередачи | T3: Условие стены | X3: коэффициент теплопроводности λ, Вт/м С | Y3: Каменная вата | Z3: 0.038
J4: 1 | K4: Пенополистирол | L4: =IF(J2=Интерфейс!AG18,Интерфейс!AG20/1000,0) -> 0 | M4: =IF(Главный!$BM$13>0,Главный!$BM$13,0.034) -> 0.034 | N4: =L4/M4 -> 0 | Q4: =Главный!KS4 -> Сэндвич-панель | R4: =N11 -> 0 | S4: =N10 ->  | W4: =Q4 -> Сэндвич-панель | X4: 0.034 | Y4: Каменная вата | Z4: =Z3 -> 0.038
J5: 2 | K5: Rockwool Фас Батс | L5: =Интерфейс!AG22/1000 ->  | M5: =IF(Главный!$BM$15>0,Главный!$BM$15,0.038) -> 0.038 | N5: =L5/M5 ->  | Q5: =Главный!KS5 -> Газобетон | R5: =N25 -> 0 | S5: =N24 ->  | W5: =Q5 -> Газобетон | X5: 0.117 | Y5: Каменная вата | Z5: =Z3 -> 0.038
J6: 3 | K6: Лист ОСП | L6: 0.012 | M6: 0.13 | N6: =L6/M6 -> 0.09230769231 | Q6: =Главный!KS6 -> Каркас | R6: =N39 -> 0 | S6: =N38 ->  | T6: =VLOOKUP(K6,Q17:T20,2,0) ->  | U6: =VLOOKUP(K6,Q17:T20,3,0) ->  | W6: Каркас | X6: 0.037 | Y6: Каменная вата | Z6: =Z3 -> 0.038
J7: Термическое сопротивление ограждающей конструкции,Rк, (м2 0С)/Вт | N7: =SUM(N4:N6) ->  | Q7: =Главный!KS7 -> Поризованный камень | R7: =N54 -> 0 | S7: =N53 ->  | W7: Поризованный камень | X7: 0.136 | Y7: Каменная вата | Z7: =Z3 -> 0.038
J8: 1/αн | L8: 1 | M8: 23 | N8: =L8/M8 -> 0.04347826087 | Q8: =Главный!KS8 -> Сотовый поликарбонат | R8: =N66 -> 0 | S8: =N65 ->  | W8: Сотовый поликарбонат | X8: 0.21
J9: 1/αв | L9: 1 | M9: 8.7 | N9: =L9/M9 -> 0.1149425287 | Q9: =Главный!KS9 -> Профнастил | R9: =N80 -> 0 | S9: =N79 ->  | W9: Профнастил | X9: 58 | Y9: =K75 -> Пенополистирол | Z9: =Z2 -> 0.034
J10: Сопротивление теплопередаче Rо, (м2 0С)/Вт ограждающей конструкции с учетом коэффициента неоднородности стен 0,95 | M10: =Главный!AX17 -> выберите | N10: =SUM(N7:N9)*M10 ->  | Q10: =Главный!KS10 -> Спортивный тент | R10: =N107 -> 0 | S10: =N106 ->  | W10: Спортивный тент | X10: 0.16 | Y10: =K102 -> Изоляции между тентами | Z10: =VLOOKUP(Главный!AX15,W12:X17,2,0) -> 
J11: Коэффициент теплопередачи ограждающей конструкции, К, Вт/(м2 0С) | N11: =IF(L4=0,0,1/N10) -> 0
W12: =Материалы!C39 -> 0 | X12: =Z4 -> 0.038
W13: =Материалы!D39 -> 0 | X13: =Z4 -> 0.038
J14: =Q5 -> Газобетон | W14: =Материалы!E39 -> 0 | X14: =Z4 -> 0.038
J15: номер слоя, м | K15: Материал слоя | L15: толщина слоя, м | M15: коэффициент теплопроводности λ, Вт/м С | N15: Термическое сопротивление каждого слоя, Rn,(м2 0С)/Вт | W15: =Материалы!F39 -> 0 | X15: =Z4 -> 0.038
J16: 1 | K16: Газобетон | L16: =IF(J14=Интерфейс!AG18,Интерфейс!AG20/1000,0) -> 0 | M16: =IF(Главный!$BM$13>0,Главный!$BM$13,0.117) -> 0.117 | N16: =L16/M16 -> 0 | R16: Толщина (мм) | S16: λ, Вт/м С | W16: =Материалы!G39 -> 0 | X16: 0.022
J17: 2 | K17: Штукатурка внутри | L17: 0.01 | M17: 0.2 | N17: =L17/M17 -> 0.05 | Q17: Нет | R17: 20 | S17: 0.93 | W17: =Материалы!H39 -> 0 | X17: 0.022
J18: 3 | K18: Гипсокартон | L18: 0.01 | M18: 0.28 | N18: =L18/M18 -> 0.03571428571 | Q18: Мокрый фасад | R18: 120 | S18: 0.15
J19: 4 | K19: Rockwool Фас Батс | L19: =Интерфейс!AG22/1000 ->  | M19: =IF(Главный!$BM$15>0,Главный!$BM$15,0.038) -> 0.038 | N19: =L19/M19 ->  | Q19: Фасадный кирпич | R19: 30 | S19: 0.2
J20: 5 | Q20: Окраска наружных стен | R20: 5 | S20: 0.2 | T20: =VLOOKUP(K20,Q17:T20,2,0) ->  | U20: =VLOOKUP(K20,Q17:T20,3,0) -> 
J21: Термическое сопротивление ограждающей конструкции,Rк, (м2 0С)/Вт | N21: =SUM(N16:N20) -> 
J22: 1/αн | L22: 1 | M22: 23 | N22: =L22/M22 -> 0.04347826087
J23: 1/αв | L23: 1 | M23: 8.7 | N23: =L23/M23 -> 0.1149425287
J24: Сопротивление теплопередаче Rо, (м2 0С)/Вт ограждающей конструкции с учетом коэффициента неоднородности стен 0,95 | M24: =Главный!AX17 -> выберите | N24: =SUM(N21:N23)*M24 -> 
J25: Коэффициент теплопередачи ограждающей конструкции, К, Вт/(м2 0С) | N25: =IF(L16=0,0,1/N24) -> 0
J28: =Q6 -> Каркас
J29: номер слоя, м | K29: Материал слоя | L29: толщина слоя, м | M29: коэффициент теплопроводности λ, Вт/м С | N29: Термическое сопротивление каждого слоя, Rn,(м2 0С)/Вт
J30: 1 | K30: Теплоизоляция | L30: =IF(J28=Интерфейс!AG18,Интерфейс!AG20/1000,0) -> 0 | M30: =IF(Главный!$BM$13>0,Главный!$BM$13,0.037) -> 0.037 | N30: =L30/M30 -> 0
J31: 2 | K31: Фанера | L31: 0.015 | M31: 0.18 | N31: =L31/M31 -> 0.08333333333
J32: 3 | K32: Штукатурка внутри | L32: 0.01 | M32: 0.2 | N32: =L32/M32 -> 0.05
J33: 4 | T33: =VLOOKUP(K33,Q17:T20,2,0) ->  | U33: =VLOOKUP(K33,Q17:T20,3,0) -> 
J34: 5 | K34: Rockwool Фас Батс | L34: =Интерфейс!AG22/1000 ->  | M34: =IF(Главный!$BM$15>0,Главный!$BM$15,0.038) -> 0.038 | N34: =L34/M34 -> 
J35: Термическое сопротивление ограждающей конструкции,Rк, (м2 0С)/Вт | N35: =SUM(N30:N34) -> 
J36: 1/αн | L36: 1 | M36: 23 | N36: =L36/M36 -> 0.04347826087
J37: 1/αв | L37: 1 | M37: 8.7 | N37: =L37/M37 -> 0.1149425287
J38: Сопротивление теплопередаче Rо, (м2 0С)/Вт ограждающей конструкции с учетом коэффициента неоднородности стен 0,95 | M38: =Главный!AX17 -> выберите | N38: =SUM(N35:N37)*M38 -> 
J39: Коэффициент теплопередачи ограждающей конструкции, К, Вт/(м2 0С) | N39: =IF(L30=0,0,1/N38) -> 0
J43: =Q7 -> Поризованный камень
J44: номер слоя, м | K44: Материал слоя | L44: толщина слоя, м | M44: коэффициент теплопроводности λ, Вт/м С | N44: Термическое сопротивление каждого слоя, Rn,(м2 0С)/Вт
J45: 1 | K45: Паризованный кирпич | L45: =IF(J43=Интерфейс!AG18,Интерфейс!AG20/1000,0) -> 0 | M45: =IF(Главный!$BM$13>0,Главный!$BM$13,0.136) -> 0.136 | N45: =L45/M45 -> 0
J46: 2 | K46: Штукатурка внутри | L46: 0.01 | M46: 0.2 | N46: =L46/M46 -> 0.05
J47: 3 | K47: Гипсокартон | L47: 0.01 | M47: 0.28 | N47: =L47/M47 -> 0.03571428571
J48: 4 | K48: Rockwool Фас Батс | L48: =Интерфейс!AG22/1000 ->  | M48: =IF(Главный!$BM$15>0,Главный!$BM$15,0.038) -> 0.038 | N48: =L48/M48 -> 
J49: 5 | T49: =VLOOKUP(K49,Q17:T20,2,0) ->  | U49: =VLOOKUP(K49,Q17:T20,3,0) -> 
J50: Термическое сопротивление ограждающей конструкции,Rк, (м2 0С)/Вт | N50: =SUM(N45:N49) -> 
J51: 1/αн | L51: 1 | M51: 23 | N51: =L51/M51 -> 0.04347826087
J52: 1/αв | L52: 1 | M52: 8.7 | N52: =L52/M52 -> 0.1149425287
J53: Сопротивление теплопередаче Rо, (м2 0С)/Вт ограждающей конструкции с учетом коэффициента неоднородности стен 0,95 | M53: =Главный!AX17 -> выберите | N53: =SUM(N50:N52)*M53 -> 
J54: Коэффициент теплопередачи ограждающей конструкции, К, Вт/(м2 0С) | N54: =IF(L45=0,0,1/N53) -> 0
J57: =Q8 -> Сотовый поликарбонат
J58: номер слоя, м | K58: Материал слоя | L58: толщина слоя, м | M58: коэффициент теплопроводности λ, Вт/м С | N58: Термическое сопротивление каждого слоя, Rn,(м2 0С)/Вт
J59: 1 | K59: Сотовый поликорбанат | L59: =IF(J57=Интерфейс!AG18,Интерфейс!AG20/1000,0) -> 0 | M59: =IF(Главный!$BM$15>0,Главный!$BM$15,0.21) -> 0.21 | N59: =L59/M59 -> 0
J60: 2
J61: 3 | T61: =VLOOKUP(K61,Q17:T20,2,0) ->  | U61: =VLOOKUP(K61,Q17:T20,3,0) -> 
J62: Термическое сопротивление ограждающей конструкции,Rк, (м2 0С)/Вт | N62: =SUM(N59:N61) -> 0
J63: 1/αн | L63: 1 | M63: 23 | N63: =L63/M63 -> 0.04347826087
J64: 1/αв | L64: 1 | M64: 8.7 | N64: =L64/M64 -> 0.1149425287
J65: Сопротивление теплопередаче Rо, (м2 0С)/Вт ограждающей конструкции с учетом коэффициента неоднородности стен | M65: =Главный!AX17 -> выберите | N65: =SUM(N62:N64)*M65 -> 
J66: Коэффициент теплопередачи ограждающей конструкции, К, Вт/(м2 0С) | N66: =IF(L59=0,0,1/N65) -> 0
J69: =Q9 -> Профнастил
J70: номер слоя, м | K70: Материал слоя | L70: толщина слоя, м | M70: коэффициент теплопроводности λ, Вт/м С | N70: Термическое сопротивление каждого слоя, Rn,(м2 0С)/Вт
J71: 1 | K71: Профнастил стальной | L71: =IF(J69=Интерфейс!AG18,Интерфейс!AG20/1000,0) -> 0 | M71: =IF(Главный!$BM$13>0,Главный!$BM$13,58) -> 58 | N71: =L71/M71 -> 0
J72: 2 | K72: Листо ОСП | L72: 0.012 | M72: 0.13 | N72: =L72/M72 -> 0.09230769231
J73: 3
J74: 4 | T74: =VLOOKUP(K74,Q17:T20,2,0) ->  | U74: =VLOOKUP(K74,Q17:T20,3,0) -> 
J75: 5 | K75: Пенополистирол | L75: =Интерфейс!AG22/1000 ->  | M75: =IF(Главный!$BM$15>0,Главный!$BM$15,0.034) -> 0.034 | N75: =L75/M75 -> 
J76: Термическое сопротивление ограждающей конструкции,Rк, (м2 0С)/Вт | N76: =SUM(N71:N75) -> 
J77: 1/αн | L77: 1 | M77: 23 | N77: =L77/M77 -> 0.04347826087
J78: 1/αв | L78: 1 | M78: 8.7 | N78: =L78/M78 -> 0.1149425287
J79: Сопротивление теплопередаче Rо, (м2 0С)/Вт ограждающей конструкции с учетом коэффициента неоднородности стен | M79: =Главный!AX17 -> выберите | N79: =SUM(N76:N78)*M79 -> 
J80: Коэффициент теплопередачи ограждающей конструкции, К, Вт/(м2 0С) | N80: =IF(L71=0,0,1/N79) -> 0
J83: Приведенное сопротивление теплопередаче различных стеклопакетов м²oС/Вт (по ГОСТ 24866-99)
L84: Сопротивление теплопередачи м²oС/Вт
K85: Однокамерный стеклопакет (4-24-4) | L85: 0.34
K86: 2-х камерный стеклопакет (4-10-4-10-k4) | L86: 0.58
K87: 2-х камерный энергосберегающий (4-10-4-10-i4) | L87: 0.77
J90: Окно | K90: 0
J91: =VLOOKUP(Интерфейс!AG27,K85:L87,2,0) ->  | K91: Сопротивление теплопередаче стеклопакета R м²oС/Вт
J92: =1/J91 ->  | K92: К
J93: =J92-Федя!M8 ->  | K93: Кок-Кнс
J96: =Q10 -> Спортивный тент
J97: номер слоя, м | K97: Материал слоя | L97: толщина слоя, м | M97: коэффициент теплопроводности λ, Вт/м С | N97: Термическое сопротивление каждого слоя, Rn,(м2 0С)/Вт
J98: 1 | K98: Спортивный тент | L98: =IF(J96=Интерфейс!AG18,Интерфейс!AG20/1000,0) -> 0 | M98: =IF(Главный!$BM$13>0,Главный!$BM$13,0.16) -> 0.16 | N98: =L98/M98 -> 0
J99: 2 | K99: =K98 -> Спортивный тент | L99: =L98 -> 0 | M99: =M98 -> 0.16 | N99: =L99/M99 -> 0
J100: 3 | Q100: =Материалы!C24 -> 0 | R100: 0
J101: 4 | Q101: =Материалы!D24 -> 0 | R101: 0
J102: 5 | K102: Изоляции между тентами | L102: =Интерфейс!AG22/1000 ->  | M102: =IF(Главный!$BM$15>0,Главный!$BM$15,Z10) ->  | N102: =L102/M102 ->  | Q102: =Материалы!E24 -> 0 | R102: 0
J103: Термическое сопротивление ограждающей конструкции,Rк, (м2 0С)/Вт | N103: =SUM(N98:N102) ->  | Q103: =Материалы!F24 -> 0 | R103: 0
J104: 1/αн | L104: 1 | M104: 23 | N104: =L104/M104 -> 0.04347826087 | Q104: =Материалы!G24 -> 0 | R104: 1
J105: 1/αв | L105: 1 | M105: 8.7 | N105: =L105/M105 -> 0.1149425287 | Q105: =Материалы!H24 -> 0 | R105: 1
J106: Сопротивление теплопередаче Rо, (м2 0С)/Вт ограждающей конструкции с учетом коэффициента неоднородности стен | M106: =Главный!AX17 -> выберите | N106: =IF(R107=1,((N103+N104+N105)*M106)*N109,(N103+N104+N105)*M106) -> 
J107: Коэффициент теплопередачи ограждающей конструкции, К, Вт/(м2 0С) | N107: =IF(L98=0,0,1/N106) -> 0 | Q107: Подбор | R107: =IF(Главный!AX15<800,0,1) -> 1
M109: Понижающий коэффициент | N109: 0.01125

Sheet HC20-3S (hidden)
C2: Модель REVENTON | D2: Название | H2: Артикул | I2: Кол-во | J2: Розница | K2: Итого | Y2: артикул производителя | Z2: наименование | AA2: размер | AB2: розница
C3: =Главный!CE53 -> HC20-3S | D3: =VLOOKUP(C3,$X$3:$AB$23,3,0) -> Водяной тепловентилятор HC20-3S 22кВт | H3: =VLOOKUP(C3,$X$3:$AB$23,2,0) -> WHHC20-3S-1759 | I3: =Главный!CU53 -> 0 | J3: =VLOOKUP(C3,$X$3:$AB$34,5,0) -> 21391.76285 | K3: =I3*J3 -> 0 | X3: HC20-3S | Y3: WHHC20-3S-1759 | Z3: Водяной тепловентилятор HC20-3S 22кВт | AA3: 22 кВт 230В | AB3: =Матрица!H292 -> 21391.76285
C4: RHHC2030 | D4: =VLOOKUP(C4,$X$3:$AB$23,3,0) -> Поворотный кронштейн HC20-45 | H4: =VLOOKUP(C4,$X$3:$AB$23,2,0) -> RHHC2030-1518 | I4: =I3 -> 0 | J4: =VLOOKUP(C4,$X$3:$AB$34,5,0) -> 1121.7767 | K4: =I4*J4 -> 0 | X4: HC30-3S | Y4: WHHC30-3S-1760 | Z4: Водяной тепловентилятор HC30-3S 26кВт | AA4: 26 кВт 230В | AB4: =Матрица!H293 -> 23673.55088
C6: Дополнительное оборудование | D6: Название | H6: Артикул | I6: Кол-во | J6: Розница | K6: Итого | X6: RHHCF-1528 | Y6: RHHCF-1528 | Z6: Поворотный кронштейн Farmer | AB6: 1304.675075
C7: HC3S1779 | D7: =VLOOKUP(C7,$X$3:$AB$23,3,0) -> 3-х ступенчатый регулятор скорости с комнатным термостатом HC3S | H7: =VLOOKUP(C7,$X$3:$AB$23,2,0) -> RTHC3S-1779 | I7: 1 | J7: =VLOOKUP(C7,$X$3:$AB$34,5,0) -> 2389.8721 | K7: 2389.8721 | X7: HC35-3S | Y7: WHHC35-3S-1761 | Z7: Водяной тепловентилятор HC35-3S 34кВт | AA7: 34 кВт 230В | AB7: =Матрица!H294 -> 28427.27596
C8: LP5244 | D8: =VLOOKUP(C8,$X$3:$AB$23,3,0) -> Механический термостат | H8: =VLOOKUP(C8,$X$3:$AB$23,2,0) -> Caem LP5244 | I8: 1 | J8: 2059.54655 | K8: 2059.54655 | X8: HC45-3S | Y8: WHHC45-3S-1762 | Z8: Водяной тепловентилятор HC45-3S 43кВт | AA8: 43 кВт 230В | AB8: =Матрица!H295 -> 30328.76599
C9: FS3HC1521 | D9: Регулятор скорости HC 3,0A | H9: FS3HC-1521 | I9: 1 | J9: 6096.6125 | K9: 6096.6125 | X9: HC50-3S | Y9: WHHC50-3S-1763 | Z9: Водяной тепловентилятор HC50-3S 47кВт | AA9: 47 кВт 230В | AB9: =Матрица!H296 -> 32800.70303
C10: FS5HC1607 | D10: Регулятор скорости HC 5,0A | H10: FS5HC-1607 | I10: 1 | J10: 12834.58863 | K10: 12834.58863 | X10: HC70-3S | Y10: WHHC70-3S-1764 | Z10: Водяной тепловентилятор HC70-3S 69кВт | AA10: 69 кВт 230В | AB10: =Матрица!H297 -> 36033.23608
C11: PRTHC1522 | D11: Программируемый термостат HC | H11: PRTHC-1522 | I11: 1 | J11: 4133.559581 | K11: 4133.559581 | X11: HCF IP54 | Y11: WHHCF47-3S-1765 | Z11: Водяной тепловентилятор Farmer HCF IP54-3S 47кВт | AA11: 47 кВт 230В | AB11: =Матрица!H299 -> 52195.90135
C12: RTHC1523 | D12: Термостат комнатный HC | H12: RTHC-1523 | I12: 1 | J12: 1120.965739 | K12: 1120.965739 | X12: HCF IP65 | Y12: WHHCF53-1527 | Z12: Водяной тепловентилятор Farmer HCF IP65 53кВт | AA12: 53 кВт 230В | AB12: =Матрица!H298 -> 68929.01362
C13: VAHC1524 | D13: Клапан с сервоприводом HC 3/4'' | H13: VAHC-1524 | I13: 1 | J13: 4659.031273 | K13: 4659.031273 | X13: RHHC2030 | Y13: RHHC2030-1518 | Z13: Поворотный кронштейн HC20-45 | AB13: 1121.7767
C14: RM16A1786 | D14: Модуль реле RM-16A | H14: RM16A-1786 | I14: 1 | J14: 2802.414347 | K14: 2802.414347 | X14: HC3S1779 | Y14: RTHC3S-1779 | Z14: 3-х ступенчатый регулятор скорости с комнатным термостатом HC3S | AB14: 2389.8721
X15: LP5244 | Y15: Caem LP5244 | Z15: Механический термостат | AB15: 2059.54655
X16: FS3HC1521 | Y16: FS3HC-1521 | Z16: Регулятор скорости HC 3,0A | AA16: 3,0A | AB16: 6096.6125
D17: Регуляторы скорости, совместимость оборудования | X17: RHHC5070 | Y17: RHHC5070-1518 | Z17: Поворотный кронштейн HC50-70 | AB17: 1304.675075
C18: =C2 -> Модель REVENTON | D18: =Y24 -> HC 3S | E18: =AA24 -> HC 3A | F18: HC 5A | G18: RM 16A | X18: FS5HC1607 | Y18: FS5HC-1607 | Z18: Регулятор скорости HC 5,0A | AA18: 5,0A | AB18: 12834.58863
D19: =Y25 -> HC3S1779 | E19: FS3HC1521 | F19: FS5HC1607 | G19: RM16A1786 | X19: PRTHC1522 | Y19: PRTHC-1522 | Z19: Программируемый термостат HC | AB19: 4133.559581
C20: =C3 -> HC20-3S | D20: =VLOOKUP($C$20,$X$24:$AC$33,2,0) -> 3 | E20: =VLOOKUP($C$20,$X$24:$AC$33,4,0) -> 3 | F20: =VLOOKUP($C$20,$X$24:$AC$33,5,0) -> 5 | G20: =VLOOKUP($C$20,$X$24:$AC$33,6,0) -> 19 | X20: RTHC1523 | Y20: RTHC-1523 | Z20: Термостат комнатный HC | AB20: 1120.965739
X21: VAHC1524 | Y21: VAHC-1524 | Z21: Клапан с сервоприводом HC 3/4'' | AB21: 4659.031273
X22: RM16A1786 | Y22: RM16A-1786 | Z22: Модуль реле RM-16A | AB22: 2802.414347
Y24: HC 3S | Z24: Caem LP5244 | AA24: HC 3A | AB24: HC 5A | AC24: RM 16A
Y25: =C7 -> HC3S1779 | Z25: =C8 -> LP5244 | AA25: =C9 -> FS3HC1521 | AB25: =C10 -> FS5HC1607 | AC25: =C14 -> RM16A1786
X26: =Матрица!A292 -> HC20-3S | Y26: 3 | Z26: 1 | AA26: 3 | AB26: 5 | AC26: 19
X27: =Матрица!A293 -> HC30-3S | Y27: 3 | Z27: 1 | AA27: 3 | AB27: 5 | AC27: 19
X28: =Матрица!A294 -> HC35-3S | Y28: 3 | Z28: 1 | AA28: 3 | AB28: 5 | AC28: 19
X29: =Матрица!A295 -> HC45-3S | Y29: 3 | Z29: 1 | AA29: 2 | AB29: 5 | AC29: 19
X30: =Матрица!A296 -> HC50-3S | Y30: 2 | Z30: 1 | AA30: 2 | AB30: 4 | AC30: 14
X31: =Матрица!A297 -> HC70-3S | Y31: 2 | Z31: 1 | AA31: 2 | AB31: 4 | AC31: 14
X32: =Матрица!A298 -> HCF IP65 | Y32: 2 | Z32: 1 | AA32: 2 | AB32: 4 | AC32: 14
X33: =Матрица!A299 -> HCF IP54 | Y33: 1 | Z33: 1 | AA33: 1 | AB33: 2 | AC33: 7

Sheet HC30-3S (hidden)
C2: Модель REVENTON | D2: Название | H2: Артикул | I2: Кол-во | J2: Розница | K2: Итого | Y2: артикул производителя | Z2: наименование | AA2: размер | AB2: розница
C3: =Главный!CE55 -> HC30-3S | D3: =VLOOKUP(C3,$X$3:$AB$23,3,0) -> Водяной тепловентилятор HC30-3S 26кВт | H3: =VLOOKUP(C3,$X$3:$AB$23,2,0) -> WHHC30-3S-1760 | I3: =Главный!CU55 -> 0 | J3: =VLOOKUP(C3,$X$3:$AB$34,5,0) -> 23673.55088 | K3: =I3*J3 -> 0 | X3: HC20-3S | Y3: WHHC20-3S-1759 | Z3: Водяной тепловентилятор HC20-3S 22кВт | AA3: 22 кВт 230В | AB3: =Матрица!H292 -> 21391.76285
C4: RHHC2030 | D4: =VLOOKUP(C4,$X$3:$AB$23,3,0) -> Поворотный кронштейн HC20-45 | H4: =VLOOKUP(C4,$X$3:$AB$23,2,0) -> RHHC2030-1518 | I4: =I3 -> 0 | J4: =VLOOKUP(C4,$X$3:$AB$34,5,0) -> 1121.7767 | K4: =I4*J4 -> 0 | X4: HC30-3S | Y4: WHHC30-3S-1760 | Z4: Водяной тепловентилятор HC30-3S 26кВт | AA4: 26 кВт 230В | AB4: =Матрица!H293 -> 23673.55088
C6: Дополнительное оборудование | D6: Название | H6: Артикул | I6: Кол-во | J6: Розница | K6: Итого | X6: RHHCF-1528 | Y6: RHHCF-1528 | Z6: Поворотный кронштейн Farmer | AB6: 1304.675075
C7: HC3S1779 | D7: =VLOOKUP(C7,$X$3:$AB$23,3,0) -> 3-х ступенчатый регулятор скорости с комнатным термостатом HC3S | H7: =VLOOKUP(C7,$X$3:$AB$23,2,0) -> RTHC3S-1779 | I7: 1 | J7: =VLOOKUP(C7,$X$3:$AB$34,5,0) -> 2389.8721 | K7: 2389.8721 | X7: HC35-3S | Y7: WHHC35-3S-1761 | Z7: Водяной тепловентилятор HC35-3S 34кВт | AA7: 34 кВт 230В | AB7: =Матрица!H294 -> 28427.27596
C8: LP5244 | D8: =VLOOKUP(C8,$X$3:$AB$23,3,0) -> Механический термостат | H8: =VLOOKUP(C8,$X$3:$AB$23,2,0) -> Caem LP5244 | I8: 1 | J8: 2059.54655 | K8: 2059.54655 | X8: HC45-3S | Y8: WHHC45-3S-1762 | Z8: Водяной тепловентилятор HC45-3S 43кВт | AA8: 43 кВт 230В | AB8: =Матрица!H295 -> 30328.76599
C9: FS3HC1521 | D9: Регулятор скорости HC 3,0A | H9: FS3HC-1521 | I9: 1 | J9: 6096.6125 | K9: 6096.6125 | X9: HC50-3S | Y9: WHHC50-3S-1763 | Z9: Водяной тепловентилятор HC50-3S 47кВт | AA9: 47 кВт 230В | AB9: =Матрица!H296 -> 32800.70303
C10: FS5HC1607 | D10: Регулятор скорости HC 5,0A | H10: FS5HC-1607 | I10: 1 | J10: 12834.58863 | K10: 12834.58863 | X10: HC70-3S | Y10: WHHC70-3S-1764 | Z10: Водяной тепловентилятор HC70-3S 69кВт | AA10: 69 кВт 230В | AB10: =Матрица!H297 -> 36033.23608
C11: PRTHC1522 | D11: Программируемый термостат HC | H11: PRTHC-1522 | I11: 1 | J11: 4133.559581 | K11: 4133.559581 | X11: HCF IP54 | Y11: WHHCF47-3S-1765 | Z11: Водяной тепловентилятор Farmer HCF IP54-3S 47кВт | AA11: 47 кВт 230В | AB11: =Матрица!H299 -> 52195.90135
C12: RTHC1523 | D12: Термостат комнатный HC | H12: RTHC-1523 | I12: 1 | J12: 1120.965739 | K12: 1120.965739 | X12: HCF IP65 | Y12: WHHCF53-1527 | Z12: Водяной тепловентилятор Farmer HCF IP65 53кВт | AA12: 53 кВт 230В | AB12: =Матрица!H298 -> 68929.01362
C13: VAHC1524 | D13: Клапан с сервоприводом HC 3/4'' | H13: VAHC-1524 | I13: 1 | J13: 4659.031273 | K13: 4659.031273 | X13: RHHC2030 | Y13: RHHC2030-1518 | Z13: Поворотный кронштейн HC20-45 | AB13: 1121.7767
C14: RM16A1786 | D14: Модуль реле RM-16A | H14: RM16A-1786 | I14: 1 | J14: 2802.414347 | K14: 2802.414347 | X14: HC3S1779 | Y14: RTHC3S-1779 | Z14: 3-х ступенчатый регулятор скорости с комнатным термостатом HC3S | AB14: 2389.8721
X15: LP5244 | Y15: Caem LP5244 | Z15: Механический термостат | AB15: 2059.54655
X16: FS3HC1521 | Y16: FS3HC-1521 | Z16: Регулятор скорости HC 3,0A | AA16: 3,0A | AB16: 6096.6125
D17: Регуляторы скорости, совместимость оборудования | X17: RHHC5070 | Y17: RHHC5070-1518 | Z17: Поворотный кронштейн HC50-70 | AB17: 1304.675075
C18: =C2 -> Модель REVENTON | D18: =Y24 -> HC 3S | E18: =AA24 -> HC 3A | F18: HC 5A | G18: RM 16A | X18: FS5HC1607 | Y18: FS5HC-1607 | Z18: Регулятор скорости HC 5,0A | AA18: 5,0A | AB18: 12834.58863
D19: =Y25 -> HC3S1779 | E19: FS3HC1521 | F19: FS5HC1607 | G19: RM16A1786 | X19: PRTHC1522 | Y19: PRTHC-1522 | Z19: Программируемый термостат HC | AB19: 4133.559581
C20: =C3 -> HC30-3S | D20: =VLOOKUP($C$20,$X$24:$AC$33,2,0) -> 3 | E20: =VLOOKUP($C$20,$X$24:$AC$33,4,0) -> 3 | F20: =VLOOKUP($C$20,$X$24:$AC$33,5,0) -> 5 | G20: =VLOOKUP($C$20,$X$24:$AC$33,6,0) -> 19 | X20: RTHC1523 | Y20: RTHC-1523 | Z20: Термостат комнатный HC | AB20: 1120.965739
X21: VAHC1524 | Y21: VAHC-1524 | Z21: Клапан с сервоприводом HC 3/4'' | AB21: 4659.031273
X22: RM16A1786 | Y22: RM16A-1786 | Z22: Модуль реле RM-16A | AB22: 2802.414347
Y24: HC 3S | Z24: Caem LP5244 | AA24: HC 3A | AB24: HC 5A | AC24: RM 16A
Y25: =C7 -> HC3S1779 | Z25: =C8 -> LP5244 | AA25: =C9 -> FS3HC1521 | AB25: =C10 -> FS5HC1607 | AC25: =C14 -> RM16A1786
X26: =Матрица!A292 -> HC20-3S | Y26: 3 | Z26: 1 | AA26: 3 | AB26: 5 | AC26: 19
X27: =Матрица!A293 -> HC30-3S | Y27: 3 | Z27: 1 | AA27: 3 | AB27: 5 | AC27: 19
X28: =Матрица!A294 -> HC35-3S | Y28: 3 | Z28: 1 | AA28: 3 | AB28: 5 | AC28: 19
X29: =Матрица!A295 -> HC45-3S | Y29: 3 | Z29: 1 | AA29: 2 | AB29: 5 | AC29: 19
X30: =Матрица!A296 -> HC50-3S | Y30: 2 | Z30: 1 | AA30: 2 | AB30: 4 | AC30: 14
X31: =Матрица!A297 -> HC70-3S | Y31: 2 | Z31: 1 | AA31: 2 | AB31: 4 | AC31: 14
X32: =Матрица!A298 -> HCF IP65 | Y32: 2 | Z32: 1 | AA32: 2 | AB32: 4 | AC32: 14
X33: =Матрица!A299 -> HCF IP54 | Y33: 1 | Z33: 1 | AA33: 1 | AB33: 2 | AC33: 7

Sheet HC35-3S (hidden)
C2: Модель REVENTON | D2: Название | H2: Артикул | I2: Кол-во | J2: Розница | K2: Итого | Y2: артикул производителя | Z2: наименование | AA2: размер | AB2: розница
C3: =Главный!CE57 -> HC35-3S | D3: =VLOOKUP(C3,$X$3:$AB$23,3,0) -> Водяной тепловентилятор HC35-3S 34кВт | H3: =VLOOKUP(C3,$X$3:$AB$23,2,0) -> WHHC35-3S-1761 | I3: =Главный!CU57 -> 0 | J3: =VLOOKUP(C3,$X$3:$AB$34,5,0) -> 28427.27596 | K3: =I3*J3 -> 0 | X3: HC20-3S | Y3: WHHC20-3S-1759 | Z3: Водяной тепловентилятор HC20-3S 22кВт | AA3: 22 кВт 230В | AB3: =Матрица!H292 -> 21391.76285
C4: RHHC2030 | D4: =VLOOKUP(C4,$X$3:$AB$23,3,0) -> Поворотный кронштейн HC20-45 | H4: =VLOOKUP(C4,$X$3:$AB$23,2,0) -> RHHC2030-1518 | I4: =I3 -> 0 | J4: =VLOOKUP(C4,$X$3:$AB$34,5,0) -> 1121.7767 | K4: =I4*J4 -> 0 | X4: HC30-3S | Y4: WHHC30-3S-1760 | Z4: Водяной тепловентилятор HC30-3S 26кВт | AA4: 26 кВт 230В | AB4: =Матрица!H293 -> 23673.55088
C6: Дополнительное оборудование | D6: Название | H6: Артикул | I6: Кол-во | J6: Розница | K6: Итого | X6: RHHCF-1528 | Y6: RHHCF-1528 | Z6: Поворотный кронштейн Farmer | AB6: 1304.675075
C7: HC3S1779 | D7: =VLOOKUP(C7,$X$3:$AB$23,3,0) -> 3-х ступенчатый регулятор скорости с комнатным термостатом HC3S | H7: =VLOOKUP(C7,$X$3:$AB$23,2,0) -> RTHC3S-1779 | I7: 1 | J7: =VLOOKUP(C7,$X$3:$AB$34,5,0) -> 2389.8721 | K7: 2389.8721 | X7: HC35-3S | Y7: WHHC35-3S-1761 | Z7: Водяной тепловентилятор HC35-3S 34кВт | AA7: 34 кВт 230В | AB7: =Матрица!H294 -> 28427.27596
C8: FSHC1520 | D8: =VLOOKUP(C8,$X$3:$AB$23,3,0) -> Регулятор скорости HC 1,2A | H8: =VLOOKUP(C8,$X$3:$AB$23,2,0) -> FSHC-1520 | I8: 1 | J8: 2059.54655 | K8: 2059.54655 | X8: HC45-3S | Y8: WHHC45-3S-1762 | Z8: Водяной тепловентилятор HC45-3S 43кВт | AA8: 43 кВт 230В | AB8: =Матрица!H295 -> 30328.76599
C9: FS3HC1521 | D9: Регулятор скорости HC 3,0A | H9: FS3HC-1521 | I9: 1 | J9: 6096.6125 | K9: 6096.6125 | X9: HC50-3S | Y9: WHHC50-3S-1763 | Z9: Водяной тепловентилятор HC50-3S 47кВт | AA9: 47 кВт 230В | AB9: =Матрица!H296 -> 32800.70303
C10: FS5HC1607 | D10: Регулятор скорости HC 5,0A | H10: FS5HC-1607 | I10: 1 | J10: 12834.58863 | K10: 12834.58863 | X10: HC70-3S | Y10: WHHC70-3S-1764 | Z10: Водяной тепловентилятор HC70-3S 69кВт | AA10: 69 кВт 230В | AB10: =Матрица!H297 -> 36033.23608
C11: PRTHC1522 | D11: Программируемый термостат HC | H11: PRTHC-1522 | I11: 1 | J11: 4133.559581 | K11: 4133.559581 | X11: HCF IP54 | Y11: WHHCF47-3S-1765 | Z11: Водяной тепловентилятор Farmer HCF IP54-3S 47кВт | AA11: 47 кВт 230В | AB11: =Матрица!H299 -> 52195.90135
C12: RTHC1523 | D12: Термостат комнатный HC | H12: RTHC-1523 | I12: 1 | J12: 1120.965739 | K12: 1120.965739 | X12: HCF IP65 | Y12: WHHCF53-1527 | Z12: Водяной тепловентилятор Farmer HCF IP65 53кВт | AA12: 53 кВт 230В | AB12: =Матрица!H298 -> 68929.01362
C13: VAHC1524 | D13: Клапан с сервоприводом HC 3/4'' | H13: VAHC-1524 | I13: 1 | J13: 4659.031273 | K13: 4659.031273 | X13: RHHC2030 | Y13: RHHC2030-1518 | Z13: Поворотный кронштейн HC20-45 | AB13: 1121.7767
C14: RM16A1786 | D14: Модуль реле RM-16A | H14: RM16A-1786 | I14: 1 | J14: 2802.414347 | K14: 2802.414347 | X14: HC3S1779 | Y14: RTHC3S-1779 | Z14: 3-х ступенчатый регулятор скорости с комнатным термостатом HC3S | AB14: 2389.8721
X15: FSHC1520 | Y15: FSHC-1520 | Z15: Регулятор скорости HC 1,2A | AA15: 1,2A | AB15: 2059.54655
X16: FS3HC1521 | Y16: FS3HC-1521 | Z16: Регулятор скорости HC 3,0A | AA16: 3,0A | AB16: 6096.6125
D17: Регуляторы скорости, совместимость оборудования | X17: RHHC5070 | Y17: RHHC5070-1518 | Z17: Поворотный кронштейн HC50-70 | AB17: 1304.675075
C18: =C2 -> Модель REVENTON | D18: =Y24 -> HC 3S | E18: =AA24 -> HC 3A | F18: HC 5A | G18: RM 16A | X18: FS5HC1607 | Y18: FS5HC-1607 | Z18: Регулятор скорости HC 5,0A | AA18: 5,0A | AB18: 12834.58863
D19: =Y25 -> HC3S1779 | E19: FS3HC1521 | F19: FS5HC1607 | G19: RM16A1786 | X19: PRTHC1522 | Y19: PRTHC-1522 | Z19: Программируемый термостат HC | AB19: 4133.559581
C20: =C3 -> HC35-3S | D20: =VLOOKUP($C$20,$X$24:$AC$33,2,0) -> 3 | E20: =VLOOKUP($C$20,$X$24:$AC$33,4,0) -> 3 | F20: =VLOOKUP($C$20,$X$24:$AC$33,5,0) -> 5 | G20: =VLOOKUP($C$20,$X$24:$AC$33,6,0) -> 19 | X20: RTHC1523 | Y20: RTHC-1523 | Z20: Термостат комнатный HC | AB20: 1120.965739
X21: VAHC1524 | Y21: VAHC-1524 | Z21: Клапан с сервоприводом HC 3/4'' | AB21: 4659.031273
X22: RM16A1786 | Y22: RM16A-1786 | Z22: Модуль реле RM-16A | AB22: 2802.414347
Y24: HC 3S | Z24: HC 1,2A | AA24: HC 3A | AB24: HC 5A | AC24: RM 16A
Y25: =C7 -> HC3S1779 | Z25: =C8 -> FSHC1520 | AA25: =C9 -> FS3HC1521 | AB25: =C10 -> FS5HC1607 | AC25: =C14 -> RM16A1786
X26: =Матрица!A292 -> HC20-3S | Y26: 3 | Z26: 1 | AA26: 3 | AB26: 5 | AC26: 19
X27: =Матрица!A293 -> HC30-3S | Y27: 3 | Z27: 1 | AA27: 3 | AB27: 5 | AC27: 19
X28: =Матрица!A294 -> HC35-3S | Y28: 3 | Z28: 1 | AA28: 3 | AB28: 5 | AC28: 19
X29: =Матрица!A295 -> HC45-3S | Y29: 3 | Z29: 1 | AA29: 2 | AB29: 5 | AC29: 19
X30: =Матрица!A296 -> HC50-3S | Y30: 2 | Z30: 1 | AA30: 2 | AB30: 4 | AC30: 14
X31: =Матрица!A297 -> HC70-3S | Y31: 2 | Z31: 1 | AA31: 2 | AB31: 4 | AC31: 14
X32: =Матрица!A298 -> HCF IP65 | Y32: 2 | Z32: 1 | AA32: 2 | AB32: 4 | AC32: 14
X33: =Матрица!A299 -> HCF IP54 | Y33: 1 | Z33: 1 | AA33: 1 | AB33: 2 | AC33: 7

Sheet HC45-3S (hidden)
C2: Модель REVENTON | D2: Название | H2: Артикул | I2: Кол-во | J2: Розница | K2: Итого | Y2: артикул производителя | Z2: наименование | AA2: размер | AB2: розница
C3: =Главный!CE59 -> HC45-3S | D3: =VLOOKUP(C3,$X$3:$AB$23,3,0) -> Водяной тепловентилятор HC45-3S 43кВт | H3: =VLOOKUP(C3,$X$3:$AB$23,2,0) -> WHHC45-3S-1762 | I3: =Главный!CU59 -> 0 | J3: =VLOOKUP(C3,$X$3:$AB$34,5,0) -> 30328.76599 | K3: =I3*J3 -> 0 | X3: HC20-3S | Y3: WHHC20-3S-1759 | Z3: Водяной тепловентилятор HC20-3S 22кВт | AA3: 22 кВт 230В | AB3: =Матрица!H292 -> 21391.76285
C4: RHHC2030 | D4: =VLOOKUP(C4,$X$3:$AB$23,3,0) -> Поворотный кронштейн HC20-45 | H4: =VLOOKUP(C4,$X$3:$AB$23,2,0) -> RHHC2030-1518 | I4: =I3 -> 0 | J4: =VLOOKUP(C4,$X$3:$AB$34,5,0) -> 1121.7767 | K4: =I4*J4 -> 0 | X4: HC30-3S | Y4: WHHC30-3S-1760 | Z4: Водяной тепловентилятор HC30-3S 26кВт | AA4: 26 кВт 230В | AB4: =Матрица!H293 -> 23673.55088
C6: Дополнительное оборудование | D6: Название | H6: Артикул | I6: Кол-во | J6: Розница | K6: Итого | X6: RHHCF-1528 | Y6: RHHCF-1528 | Z6: Поворотный кронштейн Farmer | AB6: 1304.675075
C7: HC3S1779 | D7: =VLOOKUP(C7,$X$3:$AB$23,3,0) -> 3-х ступенчатый регулятор скорости с комнатным термостатом HC3S | H7: =VLOOKUP(C7,$X$3:$AB$23,2,0) -> RTHC3S-1779 | I7: 1 | J7: =VLOOKUP(C7,$X$3:$AB$34,5,0) -> 2389.8721 | K7: 2389.8721 | X7: HC35-3S | Y7: WHHC35-3S-1761 | Z7: Водяной тепловентилятор HC35-3S 34кВт | AA7: 34 кВт 230В | AB7: =Матрица!H294 -> 28427.27596
C8: FSHC1520 | D8: =VLOOKUP(C8,$X$3:$AB$23,3,0) -> Регулятор скорости HC 1,2A | H8: =VLOOKUP(C8,$X$3:$AB$23,2,0) -> FSHC-1520 | I8: 1 | J8: 2059.54655 | K8: 2059.54655 | X8: HC45-3S | Y8: WHHC45-3S-1762 | Z8: Водяной тепловентилятор HC45-3S 43кВт | AA8: 43 кВт 230В | AB8: =Матрица!H295 -> 30328.76599
C9: FS3HC1521 | D9: Регулятор скорости HC 3,0A | H9: FS3HC-1521 | I9: 1 | J9: 6096.6125 | K9: 6096.6125 | X9: HC50-3S | Y9: WHHC50-3S-1763 | Z9: Водяной тепловентилятор HC50-3S 47кВт | AA9: 47 кВт 230В | AB9: =Матрица!H296 -> 32800.70303
C10: FS5HC1607 | D10: Регулятор скорости HC 5,0A | H10: FS5HC-1607 | I10: 1 | J10: 12834.58863 | K10: 12834.58863 | X10: HC70-3S | Y10: WHHC70-3S-1764 | Z10: Водяной тепловентилятор HC70-3S 69кВт | AA10: 69 кВт 230В | AB10: =Матрица!H297 -> 36033.23608
C11: PRTHC1522 | D11: Программируемый термостат HC | H11: PRTHC-1522 | I11: 1 | J11: 4133.559581 | K11: 4133.559581 | X11: HCF IP54 | Y11: WHHCF47-3S-1765 | Z11: Водяной тепловентилятор Farmer HCF IP54-3S 47кВт | AA11: 47 кВт 230В | AB11: =Матрица!H299 -> 52195.90135
C12: RTHC1523 | D12: Термостат комнатный HC | H12: RTHC-1523 | I12: 1 | J12: 1120.965739 | K12: 1120.965739 | X12: HCF IP65 | Y12: WHHCF53-1527 | Z12: Водяной тепловентилятор Farmer HCF IP65 53кВт | AA12: 53 кВт 230В | AB12: =Матрица!H298 -> 68929.01362
C13: VAHC1524 | D13: Клапан с сервоприводом HC 3/4'' | H13: VAHC-1524 | I13: 1 | J13: 4659.031273 | K13: 4659.031273 | X13: RHHC2030 | Y13: RHHC2030-1518 | Z13: Поворотный кронштейн HC20-45 | AB13: 1121.7767
C14: RM16A1786 | D14: Модуль реле RM-16A | H14: RM16A-1786 | I14: 1 | J14: 2802.414347 | K14: 2802.414347 | X14: HC3S1779 | Y14: RTHC3S-1779 | Z14: 3-х ступенчатый регулятор скорости с комнатным термостатом HC3S | AB14: 2389.8721
X15: FSHC1520 | Y15: FSHC-1520 | Z15: Регулятор скорости HC 1,2A | AA15: 1,2A | AB15: 2059.54655
X16: FS3HC1521 | Y16: FS3HC-1521 | Z16: Регулятор скорости HC 3,0A | AA16: 3,0A | AB16: 6096.6125
D17: Регуляторы скорости, совместимость оборудования | X17: RHHC5070 | Y17: RHHC5070-1518 | Z17: Поворотный кронштейн HC50-70 | AB17: 1304.675075
C18: =C2 -> Модель REVENTON | D18: =Y24 -> HC 3S | E18: =AA24 -> HC 3A | F18: HC 5A | G18: RM 16A | X18: FS5HC1607 | Y18: FS5HC-1607 | Z18: Регулятор скорости HC 5,0A | AA18: 5,0A | AB18: 12834.58863
D19: =Y25 -> HC3S1779 | E19: FS3HC1521 | F19: FS5HC1607 | G19: RM16A1786 | X19: PRTHC1522 | Y19: PRTHC-1522 | Z19: Программируемый термостат HC | AB19: 4133.559581
C20: =C3 -> HC45-3S | D20: =VLOOKUP($C$20,$X$24:$AC$33,2,0) -> 3 | E20: =VLOOKUP($C$20,$X$24:$AC$33,4,0) -> 2 | F20: =VLOOKUP($C$20,$X$24:$AC$33,5,0) -> 5 | G20: =VLOOKUP($C$20,$X$24:$AC$33,6,0) -> 19 | X20: RTHC1523 | Y20: RTHC-1523 | Z20: Термостат комнатный HC | AB20: 1120.965739
X21: VAHC1524 | Y21: VAHC-1524 | Z21: Клапан с сервоприводом HC 3/4'' | AB21: 4659.031273
X22: RM16A1786 | Y22: RM16A-1786 | Z22: Модуль реле RM-16A | AB22: 2802.414347
Y24: HC 3S | Z24: HC 1,2A | AA24: HC 3A | AB24: HC 5A | AC24: RM 16A
Y25: =C7 -> HC3S1779 | Z25: =C8 -> FSHC1520 | AA25: =C9 -> FS3HC1521 | AB25: =C10 -> FS5HC1607 | AC25: =C14 -> RM16A1786
X26: =Матрица!A292 -> HC20-3S | Y26: 3 | Z26: 1 | AA26: 3 | AB26: 5 | AC26: 19
X27: =Матрица!A293 -> HC30-3S | Y27: 3 | Z27: 1 | AA27: 3 | AB27: 5 | AC27: 19
X28: =Матрица!A294 -> HC35-3S | Y28: 3 | Z28: 1 | AA28: 3 | AB28: 5 | AC28: 19
X29: =Матрица!A295 -> HC45-3S | Y29: 3 | Z29: 1 | AA29: 2 | AB29: 5 | AC29: 19
X30: =Матрица!A296 -> HC50-3S | Y30: 2 | Z30: 1 | AA30: 2 | AB30: 4 | AC30: 14
X31: =Матрица!A297 -> HC70-3S | Y31: 2 | Z31: 1 | AA31: 2 | AB31: 4 | AC31: 14
X32: =Матрица!A298 -> HCF IP65 | Y32: 2 | Z32: 1 | AA32: 2 | AB32: 4 | AC32: 14
X33: =Матрица!A299 -> HCF IP54 | Y33: 1 | Z33: 1 | AA33: 1 | AB33: 2 | AC33: 7

Sheet HC50-3S (hidden)
C2: Модель REVENTON | D2: Название | H2: Артикул | I2: Кол-во | J2: Розница | K2: Итого | Y2: артикул производителя | Z2: наименование | AA2: размер | AB2: розница
C3: =Главный!CE61 -> HC50-3S | D3: =VLOOKUP(C3,$X$3:$AB$23,3,0) -> Водяной тепловентилятор HC50-3S 47кВт | H3: =VLOOKUP(C3,$X$3:$AB$23,2,0) -> WHHC50-3S-1763 | I3: =Главный!CU61 -> 0 | J3: =VLOOKUP(C3,$X$3:$AB$34,5,0) -> 32800.70303 | K3: =I3*J3 -> 0 | X3: HC20-3S | Y3: WHHC20-3S-1759 | Z3: Водяной тепловентилятор HC20-3S 22кВт | AA3: 22 кВт 230В | AB3: =Матрица!H292 -> 21391.76285
C4: RHHC5070 | D4: =VLOOKUP(C4,$X$3:$AB$23,3,0) -> Поворотный кронштейн HC50-70 | H4: =VLOOKUP(C4,$X$3:$AB$23,2,0) -> RHHC5070-1518 | I4: =I3 -> 0 | J4: =VLOOKUP(C4,$X$3:$AB$34,5,0) -> 1304.675075 | K4: =I4*J4 -> 0 | X4: HC30-3S | Y4: WHHC30-3S-1760 | Z4: Водяной тепловентилятор HC30-3S 26кВт | AA4: 26 кВт 230В | AB4: =Матрица!H293 -> 23673.55088
C6: Дополнительное оборудование | D6: Название | H6: Артикул | I6: Кол-во | J6: Розница | K6: Итого | X6: RHHCF-1528 | Y6: RHHCF-1528 | Z6: Поворотный кронштейн Farmer | AB6: 1304.675075
C7: HC3S1779 | D7: =VLOOKUP(C7,$X$3:$AB$23,3,0) -> 3-х ступенчатый регулятор скорости с комнатным термостатом HC3S | H7: =VLOOKUP(C7,$X$3:$AB$23,2,0) -> RTHC3S-1779 | I7: 1 | J7: =VLOOKUP(C7,$X$3:$AB$34,5,0) -> 2389.8721 | K7: 2389.8721 | X7: HC35-3S | Y7: WHHC35-3S-1761 | Z7: Водяной тепловентилятор HC35-3S 34кВт | AA7: 34 кВт 230В | AB7: =Матрица!H294 -> 28427.27596
C8: FSHC1520 | D8: =VLOOKUP(C8,$X$3:$AB$23,3,0) -> Регулятор скорости HC 1,2A | H8: =VLOOKUP(C8,$X$3:$AB$23,2,0) -> FSHC-1520 | I8: 1 | J8: 2059.54655 | K8: 2059.54655 | X8: HC45-3S | Y8: WHHC45-3S-1762 | Z8: Водяной тепловентилятор HC45-3S 43кВт | AA8: 43 кВт 230В | AB8: =Матрица!H295 -> 30328.76599
C9: FS3HC1521 | D9: Регулятор скорости HC 3,0A | H9: FS3HC-1521 | I9: 1 | J9: 6096.6125 | K9: 6096.6125 | X9: HC50-3S | Y9: WHHC50-3S-1763 | Z9: Водяной тепловентилятор HC50-3S 47кВт | AA9: 47 кВт 230В | AB9: =Матрица!H296 -> 32800.70303
C10: FS5HC1607 | D10: Регулятор скорости HC 5,0A | H10: FS5HC-1607 | I10: 1 | J10: 12834.58863 | K10: 12834.58863 | X10: HC70-3S | Y10: WHHC70-3S-1764 | Z10: Водяной тепловентилятор HC70-3S 69кВт | AA10: 69 кВт 230В | AB10: =Матрица!H297 -> 36033.23608
C11: PRTHC1522 | D11: Программируемый термостат HC | H11: PRTHC-1522 | I11: 1 | J11: 4133.559581 | K11: 4133.559581 | X11: HCF IP54 | Y11: WHHCF47-3S-1765 | Z11: Водяной тепловентилятор Farmer HCF IP54-3S 47кВт | AA11: 47 кВт 230В | AB11: =Матрица!H299 -> 52195.90135
C12: RTHC1523 | D12: Термостат комнатный HC | H12: RTHC-1523 | I12: 1 | J12: 1120.965739 | K12: 1120.965739 | X12: HCF IP65 | Y12: WHHCF53-1527 | Z12: Водяной тепловентилятор Farmer HCF IP65 53кВт | AA12: 53 кВт 230В | AB12: =Матрица!H298 -> 68929.01362
C13: VAHC1524 | D13: Клапан с сервоприводом HC 3/4'' | H13: VAHC-1524 | I13: 1 | J13: 4659.031273 | K13: 4659.031273 | X13: RHHC2030 | Y13: RHHC2030-1518 | Z13: Поворотный кронштейн HC20-45 | AB13: 1121.7767
C14: RM16A1786 | D14: Модуль реле RM-16A | H14: RM16A-1786 | I14: 1 | J14: 2802.414347 | K14: 2802.414347 | X14: HC3S1779 | Y14: RTHC3S-1779 | Z14: 3-х ступенчатый регулятор скорости с комнатным термостатом HC3S | AB14: 2389.8721
X15: FSHC1520 | Y15: FSHC-1520 | Z15: Регулятор скорости HC 1,2A | AA15: 1,2A | AB15: 2059.54655
X16: FS3HC1521 | Y16: FS3HC-1521 | Z16: Регулятор скорости HC 3,0A | AA16: 3,0A | AB16: 6096.6125
D17: Регуляторы скорости, совместимость оборудования | X17: RHHC5070 | Y17: RHHC5070-1518 | Z17: Поворотный кронштейн HC50-70 | AB17: 1304.675075
C18: =C2 -> Модель REVENTON | D18: =Y24 -> HC 3S | E18: =AA24 -> HC 3A | F18: HC 5A | G18: RM 16A | X18: FS5HC1607 | Y18: FS5HC-1607 | Z18: Регулятор скорости HC 5,0A | AA18: 5,0A | AB18: 12834.58863
D19: =Y25 -> HC3S1779 | E19: FS3HC1521 | F19: FS5HC1607 | G19: RM16A1786 | X19: PRTHC1522 | Y19: PRTHC-1522 | Z19: Программируемый термостат HC | AB19: 4133.559581
C20: =C3 -> HC50-3S | D20: =VLOOKUP($C$20,$X$24:$AC$33,2,0) -> 2 | E20: =VLOOKUP($C$20,$X$24:$AC$33,4,0) -> 2 | F20: =VLOOKUP($C$20,$X$24:$AC$33,5,0) -> 4 | G20: =VLOOKUP($C$20,$X$24:$AC$33,6,0) -> 14 | X20: RTHC1523 | Y20: RTHC-1523 | Z20: Термостат комнатный HC | AB20: 1120.965739
X21: VAHC1524 | Y21: VAHC-1524 | Z21: Клапан с сервоприводом HC 3/4'' | AB21: 4659.031273
X22: RM16A1786 | Y22: RM16A-1786 | Z22: Модуль реле RM-16A | AB22: 2802.414347
Y24: HC 3S | Z24: HC 1,2A | AA24: HC 3A | AB24: HC 5A | AC24: RM 16A
Y25: =C7 -> HC3S1779 | Z25: =C8 -> FSHC1520 | AA25: =C9 -> FS3HC1521 | AB25: =C10 -> FS5HC1607 | AC25: =C14 -> RM16A1786
X26: =Матрица!A292 -> HC20-3S | Y26: 3 | Z26: 1 | AA26: 3 | AB26: 5 | AC26: 19
X27: =Матрица!A293 -> HC30-3S | Y27: 3 | Z27: 1 | AA27: 3 | AB27: 5 | AC27: 19
X28: =Матрица!A294 -> HC35-3S | Y28: 3 | Z28: 1 | AA28: 3 | AB28: 5 | AC28: 19
X29: =Матрица!A295 -> HC45-3S | Y29: 3 | Z29: 1 | AA29: 2 | AB29: 5 | AC29: 19
X30: =Матрица!A296 -> HC50-3S | Y30: 2 | Z30: 1 | AA30: 2 | AB30: 4 | AC30: 14
X31: =Матрица!A297 -> HC70-3S | Y31: 2 | Z31: 1 | AA31: 2 | AB31: 4 | AC31: 14
X32: =Матрица!A298 -> HCF IP65 | Y32: 2 | Z32: 1 | AA32: 2 | AB32: 4 | AC32: 14
X33: =Матрица!A299 -> HCF IP54 | Y33: 1 | Z33: 1 | AA33: 1 | AB33: 2 | AC33: 7

Sheet HC70-3S (hidden)
C2: Модель REVENTON | D2: Название | H2: Артикул | I2: Кол-во | J2: Розница | K2: Итого | Y2: артикул производителя | Z2: наименование | AA2: размер | AB2: розница
C3: =Главный!CE63 -> HC70-3S | D3: =VLOOKUP(C3,$X$3:$AB$23,3,0) -> Водяной тепловентилятор HC70-3S 69кВт | H3: =VLOOKUP(C3,$X$3:$AB$23,2,0) -> WHHC70-3S-1764 | I3: =Главный!CU63 -> 0 | J3: =VLOOKUP(C3,$X$3:$AB$34,5,0) -> 36033.23608 | K3: =I3*J3 -> 0 | X3: HC20-3S | Y3: WHHC20-3S-1759 | Z3: Водяной тепловентилятор HC20-3S 22кВт | AA3: 22 кВт 230В | AB3: =Матрица!H292 -> 21391.76285
C4: RHHC5070 | D4: =VLOOKUP(C4,$X$3:$AB$23,3,0) -> Поворотный кронштейн HC50-70 | H4: =VLOOKUP(C4,$X$3:$AB$23,2,0) -> RHHC5070-1518 | I4: =I3 -> 0 | J4: =VLOOKUP(C4,$X$3:$AB$34,5,0) -> 1304.675075 | K4: =I4*J4 -> 0 | X4: HC30-3S | Y4: WHHC30-3S-1760 | Z4: Водяной тепловентилятор HC30-3S 26кВт | AA4: 26 кВт 230В | AB4: =Матрица!H293 -> 23673.55088
C6: Дополнительное оборудование | D6: Название | H6: Артикул | I6: Кол-во | J6: Розница | K6: Итого | X6: RHHCF-1528 | Y6: RHHCF-1528 | Z6: Поворотный кронштейн Farmer | AB6: 1304.675075
C7: HC3S1779 | D7: =VLOOKUP(C7,$X$3:$AB$23,3,0) -> 3-х ступенчатый регулятор скорости с комнатным термостатом HC3S | H7: =VLOOKUP(C7,$X$3:$AB$23,2,0) -> RTHC3S-1779 | I7: 1 | J7: =VLOOKUP(C7,$X$3:$AB$34,5,0) -> 2389.8721 | K7: 2389.8721 | X7: HC35-3S | Y7: WHHC35-3S-1761 | Z7: Водяной тепловентилятор HC35-3S 34кВт | AA7: 34 кВт 230В | AB7: =Матрица!H294 -> 28427.27596
C8: FSHC1520 | D8: =VLOOKUP(C8,$X$3:$AB$23,3,0) -> Регулятор скорости HC 1,2A | H8: =VLOOKUP(C8,$X$3:$AB$23,2,0) -> FSHC-1520 | I8: 1 | J8: 2059.54655 | K8: 2059.54655 | X8: HC45-3S | Y8: WHHC45-3S-1762 | Z8: Водяной тепловентилятор HC45-3S 43кВт | AA8: 43 кВт 230В | AB8: =Матрица!H295 -> 30328.76599
C9: FS3HC1521 | D9: Регулятор скорости HC 3,0A | H9: FS3HC-1521 | I9: 1 | J9: 6096.6125 | K9: 6096.6125 | X9: HC50-3S | Y9: WHHC50-3S-1763 | Z9: Водяной тепловентилятор HC50-3S 47кВт | AA9: 47 кВт 230В | AB9: =Матрица!H296 -> 32800.70303
C10: FS5HC1607 | D10: Регулятор скорости HC 5,0A | H10: FS5HC-1607 | I10: 1 | J10: 12834.58863 | K10: 12834.58863 | X10: HC70-3S | Y10: WHHC70-3S-1764 | Z10: Водяной тепловентилятор HC70-3S 69кВт | AA10: 69 кВт 230В | AB10: =Матрица!H297 -> 36033.23608
C11: PRTHC1522 | D11: Программируемый термостат HC | H11: PRTHC-1522 | I11: 1 | J11: 4133.559581 | K11: 4133.559581 | X11: HCF IP54 | Y11: WHHCF47-3S-1765 | Z11: Водяной тепловентилятор Farmer HCF IP54-3S 47кВт | AA11: 47 кВт 230В | AB11: =Матрица!H299 -> 52195.90135
C12: RTHC1523 | D12: Термостат комнатный HC | H12: RTHC-1523 | I12: 1 | J12: 1120.965739 | K12: 1120.965739 | X12: HCF IP65 | Y12: WHHCF53-1527 | Z12: Водяной тепловентилятор Farmer HCF IP65 53кВт | AA12: 53 кВт 230В | AB12: =Матрица!H298 -> 68929.01362
C13: VAHC1524 | D13: Клапан с сервоприводом HC 3/4'' | H13: VAHC-1524 | I13: 1 | J13: 4659.031273 | K13: 4659.031273 | X13: RHHC2030 | Y13: RHHC2030-1518 | Z13: Поворотный кронштейн HC20-45 | AB13: 1121.7767
C14: RM16A1786 | D14: Модуль реле RM-16A | H14: RM16A-1786 | I14: 1 | J14: 2802.414347 | K14: 2802.414347 | X14: HC3S1779 | Y14: RTHC3S-1779 | Z14: 3-х ступенчатый регулятор скорости с комнатным термостатом HC3S | AB14: 2389.8721
X15: FSHC1520 | Y15: FSHC-1520 | Z15: Регулятор скорости HC 1,2A | AA15: 1,2A | AB15: 2059.54655
X16: FS3HC1521 | Y16: FS3HC-1521 | Z16: Регулятор скорости HC 3,0A | AA16: 3,0A | AB16: 6096.6125
D17: Регуляторы скорости, совместимость оборудования | X17: RHHC5070 | Y17: RHHC5070-1518 | Z17: Поворотный кронштейн HC50-70 | AB17: 1304.675075
C18: =C2 -> Модель REVENTON | D18: =Y24 -> HC 3S | E18: =AA24 -> HC 3A | F18: HC 5A | G18: RM 16A | X18: FS5HC1607 | Y18: FS5HC-1607 | Z18: Регулятор скорости HC 5,0A | AA18: 5,0A | AB18: 12834.58863
D19: =Y25 -> HC3S1779 | E19: FS3HC1521 | F19: FS5HC1607 | G19: RM16A1786 | X19: PRTHC1522 | Y19: PRTHC-1522 | Z19: Программируемый термостат HC | AB19: 4133.559581
C20: =C3 -> HC70-3S | D20: =VLOOKUP($C$20,$X$24:$AC$33,2,0) -> 2 | E20: =VLOOKUP($C$20,$X$24:$AC$33,4,0) -> 2 | F20: =VLOOKUP($C$20,$X$24:$AC$33,5,0) -> 4 | G20: =VLOOKUP($C$20,$X$24:$AC$33,6,0) -> 14 | X20: RTHC1523 | Y20: RTHC-1523 | Z20: Термостат комнатный HC | AB20: 1120.965739
X21: VAHC1524 | Y21: VAHC-1524 | Z21: Клапан с сервоприводом HC 3/4'' | AB21: 4659.031273
X22: RM16A1786 | Y22: RM16A-1786 | Z22: Модуль реле RM-16A | AB22: 2802.414347
Y24: HC 3S | Z24: HC 1,2A | AA24: HC 3A | AB24: HC 5A | AC24: RM 16A
Y25: =C7 -> HC3S1779 | Z25: =C8 -> FSHC1520 | AA25: =C9 -> FS3HC1521 | AB25: =C10 -> FS5HC1607 | AC25: =C14 -> RM16A1786
X26: =Матрица!A292 -> HC20-3S | Y26: 3 | Z26: 1 | AA26: 3 | AB26: 5 | AC26: 19
X27: =Матрица!A293 -> HC30-3S | Y27: 3 | Z27: 1 | AA27: 3 | AB27: 5 | AC27: 19
X28: =Матрица!A294 -> HC35-3S | Y28: 3 | Z28: 1 | AA28: 3 | AB28: 5 | AC28: 19
X29: =Матрица!A295 -> HC45-3S | Y29: 3 | Z29: 1 | AA29: 2 | AB29: 5 | AC29: 19
X30: =Матрица!A296 -> HC50-3S | Y30: 2 | Z30: 1 | AA30: 2 | AB30: 4 | AC30: 14
X31: =Матрица!A297 -> HC70-3S | Y31: 2 | Z31: 1 | AA31: 2 | AB31: 4 | AC31: 14
X32: =Матрица!A298 -> HCF IP65 | Y32: 2 | Z32: 1 | AA32: 2 | AB32: 4 | AC32: 14
X33: =Матрица!A299 -> HCF IP54 | Y33: 1 | Z33: 1 | AA33: 1 | AB33: 2 | AC33: 7

Sheet HCF54 (hidden)
C2: Модель REVENTON | D2: Название | H2: Артикул | I2: Кол-во | J2: Розница | K2: Итого | Y2: артикул производителя | Z2: наименование | AA2: размер | AB2: розница
C3: =Главный!CE65 -> HCF IP54 | D3: =VLOOKUP(C3,$X$3:$AB$23,3,0) -> Водяной тепловентилятор Farmer HCF IP54-3S 47кВт | H3: =VLOOKUP(C3,$X$3:$AB$23,2,0) -> WHHCF47-3S-1765 | I3: =Главный!CU65 ->  | J3: =VLOOKUP(C3,$X$3:$AB$34,5,0) -> 52195.90135 | K3: =I3*J3 ->  | X3: HC20-3S | Y3: WHHC20-3S-1759 | Z3: Водяной тепловентилятор HC20-3S 22кВт | AA3: 22 кВт 230В | AB3: =Матрица!H292 -> 21391.76285
C4: RHHCF-1528 | D4: =VLOOKUP(C4,$X$3:$AB$23,3,0) -> Поворотный кронштейн Farmer | H4: =VLOOKUP(C4,$X$3:$AB$23,2,0) -> RHHCF-1528 | I4: =I3 ->  | J4: =VLOOKUP(C4,$X$3:$AB$34,5,0) -> 1304.675075 | K4: =I4*J4 ->  | X4: HC30-3S | Y4: WHHC30-3S-1760 | Z4: Водяной тепловентилятор HC30-3S 26кВт | AA4: 26 кВт 230В | AB4: =Матрица!H293 -> 23673.55088
C6: Дополнительное оборудование | D6: Название | H6: Артикул | I6: Кол-во | J6: Розница | K6: Итого | X6: RHHCF-1528 | Y6: RHHCF-1528 | Z6: Поворотный кронштейн Farmer | AB6: 1304.675075
C7: HC3S1779 | D7: =VLOOKUP(C7,$X$3:$AB$23,3,0) -> 3-х ступенчатый регулятор скорости с комнатным термостатом HC3S | H7: =VLOOKUP(C7,$X$3:$AB$23,2,0) -> RTHC3S-1779 | I7: 1 | J7: =VLOOKUP(C7,$X$3:$AB$34,5,0) -> 2389.8721 | K7: 2389.8721 | X7: HC35-3S | Y7: WHHC35-3S-1761 | Z7: Водяной тепловентилятор HC35-3S 34кВт | AA7: 34 кВт 230В | AB7: =Матрица!H294 -> 28427.27596
C8: LP5244 | D8: =VLOOKUP(C8,$X$3:$AB$23,3,0) -> Механический термостат | H8: =VLOOKUP(C8,$X$3:$AB$23,2,0) -> Caem LP5244 | I8: 1 | J8: 2059.54655 | K8: 2059.54655 | X8: HC45-3S | Y8: WHHC45-3S-1762 | Z8: Водяной тепловентилятор HC45-3S 43кВт | AA8: 43 кВт 230В | AB8: =Матрица!H295 -> 30328.76599
C9: FS3HC1521 | D9: Регулятор скорости HC 3,0A | H9: FS3HC-1521 | I9: 1 | J9: 6096.6125 | K9: 6096.6125 | X9: HC50-3S | Y9: WHHC50-3S-1763 | Z9: Водяной тепловентилятор HC50-3S 47кВт | AA9: 47 кВт 230В | AB9: =Матрица!H296 -> 32800.70303
C10: FS5HC1607 | D10: Регулятор скорости HC 5,0A | H10: FS5HC-1607 | I10: 1 | J10: 12834.58863 | K10: 12834.58863 | X10: HC70-3S | Y10: WHHC70-3S-1764 | Z10: Водяной тепловентилятор HC70-3S 69кВт | AA10: 69 кВт 230В | AB10: =Матрица!H297 -> 36033.23608
C11: PRTHC1522 | D11: Программируемый термостат HC | H11: PRTHC-1522 | I11: 1 | J11: 4133.559581 | K11: 4133.559581 | X11: HCF IP54 | Y11: WHHCF47-3S-1765 | Z11: Водяной тепловентилятор Farmer HCF IP54-3S 47кВт | AA11: 47 кВт 230В | AB11: =Матрица!H299 -> 52195.90135
C12: RTHC1523 | D12: Термостат комнатный HC | H12: RTHC-1523 | I12: 1 | J12: 1120.965739 | K12: 1120.965739 | X12: HCF IP65 | Y12: WHHCF53-1527 | Z12: Водяной тепловентилятор Farmer HCF IP65 53кВт | AA12: 53 кВт 230В | AB12: =Матрица!H298 -> 68929.01362
C13: VAHC1524 | D13: Клапан с сервоприводом HC 3/4'' | H13: VAHC-1524 | I13: 1 | J13: 4659.031273 | K13: 4659.031273 | X13: RHHC2030 | Y13: RHHC2030-1518 | Z13: Поворотный кронштейн HC20-45 | AB13: 1121.7767
C14: RM16A1786 | D14: Модуль реле RM-16A | H14: RM16A-1786 | I14: 1 | J14: 2802.414347 | K14: 2802.414347 | X14: HC3S1779 | Y14: RTHC3S-1779 | Z14: 3-х ступенчатый регулятор скорости с комнатным термостатом HC3S | AB14: 2389.8721
X15: LP5244 | Y15: Caem LP5244 | Z15: Механический термостат | AB15: 2059.54655
X16: FS3HC1521 | Y16: FS3HC-1521 | Z16: Регулятор скорости HC 3,0A | AA16: 3,0A | AB16: 6096.6125
D17: Регуляторы скорости, совместимость оборудования | X17: RHHC5070 | Y17: RHHC5070-1518 | Z17: Поворотный кронштейн HC50-70 | AB17: 1304.675075
C18: =C2 -> Модель REVENTON | D18: =Y24 -> HC 3S | E18: =AA24 -> HC 3A | F18: HC 5A | G18: RM 16A | X18: FS5HC1607 | Y18: FS5HC-1607 | Z18: Регулятор скорости HC 5,0A | AA18: 5,0A | AB18: 12834.58863
D19: =Y25 -> HC3S1779 | E19: FS3HC1521 | F19: FS5HC1607 | G19: RM16A1786 | X19: PRTHC1522 | Y19: PRTHC-1522 | Z19: Программируемый термостат HC | AB19: 4133.559581
C20: =C3 -> HCF IP54 | D20: =VLOOKUP($C$20,$X$24:$AC$33,2,0) -> 2 | E20: =VLOOKUP($C$20,$X$24:$AC$33,4,0) -> 2 | F20: =VLOOKUP($C$20,$X$24:$AC$33,5,0) -> 4 | G20: =VLOOKUP($C$20,$X$24:$AC$33,6,0) -> 14 | X20: RTHC1523 | Y20: RTHC-1523 | Z20: Термостат комнатный HC | AB20: 1120.965739
X21: VAHC1524 | Y21: VAHC-1524 | Z21: Клапан с сервоприводом HC 3/4'' | AB21: 4659.031273
X22: RM16A1786 | Y22: RM16A-1786 | Z22: Модуль реле RM-16A | AB22: 2802.414347
Y24: HC 3S | Z24: Caem LP5244 | AA24: HC 3A | AB24: HC 5A | AC24: RM 16A
Y25: =C7 -> HC3S1779 | Z25: =C8 -> LP5244 | AA25: =C9 -> FS3HC1521 | AB25: =C10 -> FS5HC1607 | AC25: =C14 -> RM16A1786
X26: =Матрица!A292 -> HC20-3S | Y26: 3 | Z26: 1 | AA26: 3 | AB26: 5 | AC26: 19
X27: =Матрица!A293 -> HC30-3S | Y27: 3 | Z27: 1 | AA27: 3 | AB27: 5 | AC27: 19
X28: =Матрица!A294 -> HC35-3S | Y28: 3 | Z28: 1 | AA28: 3 | AB28: 5 | AC28: 19
X29: =Матрица!A295 -> HC45-3S | Y29: 3 | Z29: 1 | AA29: 2 | AB29: 5 | AC29: 19
X30: =Матрица!A296 -> HC50-3S | Y30: 2 | Z30: 1 | AA30: 2 | AB30: 4 | AC30: 14
X31: =Матрица!A297 -> HC70-3S | Y31: 2 | Z31: 1 | AA31: 2 | AB31: 4 | AC31: 14
X32: =Матрица!A298 -> HCF IP65 | Y32: 1 | Z32: 1 | AA32: 1 | AB32: 2 | AC32: 7
X33: =Матрица!A299 -> HCF IP54 | Y33: 2 | Z33: 1 | AA33: 2 | AB33: 4 | AC33: 14

Sheet HCF65 (hidden)
C2: Модель REVENTON | D2: Название | H2: Артикул | I2: Кол-во | J2: Розница | K2: Итого | Y2: артикул производителя | Z2: наименование | AA2: размер | AB2: розница
C3: =Главный!CE67 -> HCF IP65 | D3: =VLOOKUP(C3,$X$3:$AB$23,3,0) -> Водяной тепловентилятор Farmer HCF IP65 53кВт | H3: =VLOOKUP(C3,$X$3:$AB$23,2,0) -> WHHCF53-1527 | I3: =Главный!CU67 ->  | J3: =VLOOKUP(C3,$X$3:$AB$34,5,0) -> 68929.01362 | K3: =I3*J3 ->  | X3: HC20-3S | Y3: WHHC20-3S-1759 | Z3: Водяной тепловентилятор HC20-3S 22кВт | AA3: 22 кВт 230В | AB3: =Матрица!H292 -> 21391.76285
C4: RHHCF-1528 | D4: =VLOOKUP(C4,$X$3:$AB$23,3,0) -> Поворотный кронштейн Farmer | H4: =VLOOKUP(C4,$X$3:$AB$23,2,0) -> RHHCF-1528 | I4: =I3 ->  | J4: =VLOOKUP(C4,$X$3:$AB$34,5,0) -> 1304.675075 | K4: =I4*J4 ->  | X4: HC30-3S | Y4: WHHC30-3S-1760 | Z4: Водяной тепловентилятор HC30-3S 26кВт | AA4: 26 кВт 230В | AB4: =Матрица!H293 -> 23673.55088
C6: Дополнительное оборудование | D6: Название | H6: Артикул | I6: Кол-во | J6: Розница | K6: Итого | X6: RHHCF-1528 | Y6: RHHCF-1528 | Z6: Поворотный кронштейн Farmer | AB6: 1304.675075
C7: HC3S1779 | D7: =VLOOKUP(C7,$X$3:$AB$23,3,0) -> 3-х ступенчатый регулятор скорости с комнатным термостатом HC3S | H7: =VLOOKUP(C7,$X$3:$AB$23,2,0) -> RTHC3S-1779 | I7: 1 | J7: =VLOOKUP(C7,$X$3:$AB$34,5,0) -> 2389.8721 | K7: 2389.8721 | X7: HC35-3S | Y7: WHHC35-3S-1761 | Z7: Водяной тепловентилятор HC35-3S 34кВт | AA7: 34 кВт 230В | AB7: =Матрица!H294 -> 28427.27596
C8: LP5244 | D8: =VLOOKUP(C8,$X$3:$AB$23,3,0) -> Механический термостат | H8: =VLOOKUP(C8,$X$3:$AB$23,2,0) -> Caem LP5244 | I8: 1 | J8: 2059.54655 | K8: 2059.54655 | X8: HC45-3S | Y8: WHHC45-3S-1762 | Z8: Водяной тепловентилятор HC45-3S 43кВт | AA8: 43 кВт 230В | AB8: =Матрица!H295 -> 30328.76599
C9: FS3HC1521 | D9: Регулятор скорости HC 3,0A | H9: FS3HC-1521 | I9: 1 | J9: 6096.6125 | K9: 6096.6125 | X9: HC50-3S | Y9: WHHC50-3S-1763 | Z9: Водяной тепловентилятор HC50-3S 47кВт | AA9: 47 кВт 230В | AB9: =Матрица!H296 -> 32800.70303
C10: FS5HC1607 | D10: Регулятор скорости HC 5,0A | H10: FS5HC-1607 | I10: 1 | J10: 12834.58863 | K10: 12834.58863 | X10: HC70-3S | Y10: WHHC70-3S-1764 | Z10: Водяной тепловентилятор HC70-3S 69кВт | AA10: 69 кВт 230В | AB10: =Матрица!H297 -> 36033.23608
C11: PRTHC1522 | D11: Программируемый термостат HC | H11: PRTHC-1522 | I11: 1 | J11: 4133.559581 | K11: 4133.559581 | X11: HCF IP54 | Y11: WHHCF47-3S-1765 | Z11: Водяной тепловентилятор Farmer HCF IP54-3S 47кВт | AA11: 47 кВт 230В | AB11: =Матрица!H299 -> 52195.90135
C12: RTHC1523 | D12: Термостат комнатный HC | H12: RTHC-1523 | I12: 1 | J12: 1120.965739 | K12: 1120.965739 | X12: HCF IP65 | Y12: WHHCF53-1527 | Z12: Водяной тепловентилятор Farmer HCF IP65 53кВт | AA12: 53 кВт 230В | AB12: =Матрица!H298 -> 68929.01362
C13: VAHC1524 | D13: Клапан с сервоприводом HC 3/4'' | H13: VAHC-1524 | I13: 1 | J13: 4659.031273 | K13: 4659.031273 | X13: RHHC2030 | Y13: RHHC2030-1518 | Z13: Поворотный кронштейн HC20-45 | AB13: 1121.7767
C14: RM16A1786 | D14: Модуль реле RM-16A | H14: RM16A-1786 | I14: 1 | J14: 2802.414347 | K14: 2802.414347 | X14: HC3S1779 | Y14: RTHC3S-1779 | Z14: 3-х ступенчатый регулятор скорости с комнатным термостатом HC3S | AB14: 2389.8721
X15: LP5244 | Y15: Caem LP5244 | Z15: Механический термостат | AB15: 2059.54655
X16: FS3HC1521 | Y16: FS3HC-1521 | Z16: Регулятор скорости HC 3,0A | AA16: 3,0A | AB16: 6096.6125
D17: Регуляторы скорости, совместимость оборудования | X17: RHHC5070 | Y17: RHHC5070-1518 | Z17: Поворотный кронштейн HC50-70 | AB17: 1304.675075
C18: =C2 -> Модель REVENTON | D18: =Y24 -> HC 3S | E18: =AA24 -> HC 3A | F18: HC 5A | G18: RM 16A | X18: FS5HC1607 | Y18: FS5HC-1607 | Z18: Регулятор скорости HC 5,0A | AA18: 5,0A | AB18: 12834.58863
D19: =Y25 -> HC3S1779 | E19: FS3HC1521 | F19: FS5HC1607 | G19: RM16A1786 | X19: PRTHC1522 | Y19: PRTHC-1522 | Z19: Программируемый термостат HC | AB19: 4133.559581
C20: =C3 -> HCF IP65 | D20: =VLOOKUP($C$20,$X$24:$AC$33,2,0) -> 1 | E20: =VLOOKUP($C$20,$X$24:$AC$33,4,0) -> 1 | F20: =VLOOKUP($C$20,$X$24:$AC$33,5,0) -> 2 | G20: =VLOOKUP($C$20,$X$24:$AC$33,6,0) -> 7 | X20: RTHC1523 | Y20: RTHC-1523 | Z20: Термостат комнатный HC | AB20: 1120.965739
X21: VAHC1524 | Y21: VAHC-1524 | Z21: Клапан с сервоприводом HC 3/4'' | AB21: 4659.031273
X22: RM16A1786 | Y22: RM16A-1786 | Z22: Модуль реле RM-16A | AB22: 2802.414347
Y24: HC 3S | Z24: Caem LP5244 | AA24: HC 3A | AB24: HC 5A | AC24: RM 16A
Y25: =C7 -> HC3S1779 | Z25: =C8 -> LP5244 | AA25: =C9 -> FS3HC1521 | AB25: =C10 -> FS5HC1607 | AC25: =C14 -> RM16A1786
X26: =Матрица!A292 -> HC20-3S | Y26: 3 | Z26: 1 | AA26: 3 | AB26: 5 | AC26: 19
X27: =Матрица!A293 -> HC30-3S | Y27: 3 | Z27: 1 | AA27: 3 | AB27: 5 | AC27: 19
X28: =Матрица!A294 -> HC35-3S | Y28: 3 | Z28: 1 | AA28: 3 | AB28: 5 | AC28: 19
X29: =Матрица!A295 -> HC45-3S | Y29: 3 | Z29: 1 | AA29: 2 | AB29: 5 | AC29: 19
X30: =Матрица!A296 -> HC50-3S | Y30: 2 | Z30: 1 | AA30: 2 | AB30: 4 | AC30: 14
X31: =Матрица!A297 -> HC70-3S | Y31: 2 | Z31: 1 | AA31: 2 | AB31: 4 | AC31: 14
X32: =Матрица!A298 -> HCF IP65 | Y32: 1 | Z32: 1 | AA32: 1 | AB32: 2 | AC32: 7
X33: =Матрица!A299 -> HCF IP54 | Y33: 2 | Z33: 1 | AA33: 2 | AB33: 4 | AC33: 14

Sheet Интерфейс (hidden)
D2: Площадь здания | Z2: =Главный!AC2 -> 0 | AH2: м² | DO2: Длина здания внутри | EK2: =Расчет!B3 ->  | ET2: м | GG2: Шифр на условие | KM2: Температура внутри | KN2: Угол ската кровли | KR2: Материал стен | KT2: Толщина стены | KV2: Толщина изоляции | KZ2: Теплоизоляция кровли | LB2: Теплоизоляция фундамента | LD2: Температурный график | LF2: Среда эксплуатации | LH2: Кратность воздухообмена
DO4: Ширина здания внутри | EK4: =Расчет!B4 ->  | EL4: 40 | ET4: м | KL4: Плоская | KM4: 0 | KN4: 10 | KP4: Краснодар | KR4: =Главный!KS4 -> Сэндвич-панель | KS4: 1 | KT4: =Материалы!C9 -> 0 | KV4: =Материалы!C40 -> 0 | KX4: Однокамерный стеклопакет (4-24-4) | KZ4: =Материалы!C25 -> 0 | LB4: 50 | LD4: 90/70 | LF4: Нет | LH4: 0.5
KL5: 2-х скатная | KM5: 5 | KN5: 15 | KP5: Ростов-на-Дону | KR5: =Главный!KS5 -> Газобетон | KS5: 1 | KT5: =Материалы!C10 -> 0 | KV5: =Материалы!C41 -> 0 | KX5: 2-х камерный стеклопакет (4-10-4-10-k4) | KZ5: =Материалы!C26 -> 0 | LB5: 100 | LD5: 80/60 | LF5: Да | LH5: 1
D6: Высота здания | Z6: =Главный!AC4 -> 0 | AB6: 40 | AH6: м | KL6: Полукруглая кровля | KM6: 10 | KN6: 22 | KP6: Воронеж | KR6: =Главный!KS6 -> Каркас | KS6: 1 | KT6: =Материалы!C11 -> 0 | KV6: =Материалы!C42 -> 0 | KX6: 2-х камерный энергосберегающий (4-10-4-10-i4) | KZ6: =Материалы!C27 -> 0 | LB6: 150 | LD6: 70/50 | LH6: 1.5
KM7: 15 | KN7: 30 | KP7: Курск | KR7: =Главный!KS7 -> Поризованный камень | KS7: 1 | KT7: =Материалы!C12 -> 0 | KV7: =Материалы!C43 -> 0 | KZ7: =Материалы!C28 -> 0 | LB7: 200 | LD7: 50/30 | LH7: 2
D8: Требуемая температура внутр. воздуха | BA8: =Главный!AX8 -> выберите | BH8: ºС | KM8: 20 | KN8: 35 | KP8: Санкт-Петербург | KR8: =Главный!KS8 -> Сотовый поликарбонат | KS8: 0 | KT8: =Материалы!C13 -> 0 | KV8: =Материалы!C44 -> 0 | KZ8: =Материалы!C29 -> 0 | LB8: 250 | LH8: 2.5
KN9: 40 | KP9: Москва | KR9: =Главный!KS9 -> Профнастил | KS9: 1 | KT9: =Материалы!C14 -> 0 | KV9: =Материалы!C45 -> 0 | KZ9: =Материалы!C30 -> 0 | LH9: 3
KN10: 45 | KP10: Минск | KR10: =Главный!KS10 -> Спортивный тент | KS10: 2 | LH10: 3.5
D11: Тип стропильной системы крыши | BA11: =Главный!AX20 -> выберите | KP11: Владимир | LH11: 4
KP12: Петрозаводск | LH12: 4.5
D13: Угол наклона кровли | AL13: =VLOOKUP(Главный!AX20,GE50:GF52,2,0) ->  | AS13: градусов | KP13: Самара | LH13: 5
KP14: Екатеринбург | LH14: 5.6
KP15: Уфа | LH15: 6
D16: Город | O16: =Главный!L6 -> выберите | KP16: Иркутск | LH16: 7
KP17: Архангельск | LH17: 8
D18: Стены здания | AG18: =Главный!V11 -> выберите | KP18: Пермь | LH18: 9
KP19: Новосибирск | LH19: 10
D20: Толщина стен. мат. | AG20: =Главный!AX13 -> выберите | AS20: мм
D22: Теплоизоляции стен | AG22: =Главный!AX15 -> выберите | AS22: мм
GE23: Тепловая мощность агрегата (кВт) | GF23: Дальность струи (м) | GG23: Температура воздуха на выходе (ºC) | GH23: Расход воды (м³/ч) | GI23: Гидравлическое сопротивление (кПа) | GJ23: Степень защиты двигателя | GK23: Уровень шума (дБ) | GL23: Рядность теплообменника | GM23: Расход воздуха
D25: Площадь остекления | AG25: =Главный!AX31 -> 0 | AS25: м² | DH25: =FA25 -> 0 | DO25: =Матрица!A302 -> HC20-3S | EK25: =VLOOKUP(DO25,Матрица!$A$302:$C$309,3,0) -> 0 | FA25: =VLOOKUP(DO25,Матрица!$A$302:$D$309,4,0) -> 0 | FM25: =IF(EK25=$EK$44,10000000,EK25) ->  | FN25: =IF(FM25=0,10000000,FA25) ->  | FP25: =IF(FA25>0,FA25,10000000) -> 10000000 | GE25: =Матрица!B292 -> 0 | GF25: =VLOOKUP(Главный!$AX$47,EK50:FM52,29,0) ->  | GG25: =Матрица!C292 ->  | GH25: =Матрица!D292 ->  | GI25: =Матрица!E292 ->  | GJ25: =Матрица!I292 -> IP 54 | GK25: =VLOOKUP(Главный!$AX$47,EK50:FD52,20,0) ->  | GL25: один | GM25: =VLOOKUP(Главный!$AX$47,EK50:FA52,17,0) -> 
D27: Тип стеклопакета | AG27: =Главный!AA33 -> выберите | DH27: =FA27 -> 0 | DO27: =Матрица!A303 -> HC30-3S | EK27: =VLOOKUP(DO27,Матрица!$A$302:$C$309,3,0) -> 0 | FA27: =VLOOKUP(DO27,Матрица!$A$302:$D$309,4,0) -> 0 | FM27: =IF(EK27=$EK$44,FA27,0) ->  | FN27: =IF(FM27=0,10000000,FA27) ->  | FP27: =IF(FA27>0,FA27,10000000) -> 10000000 | GE27: =Матрица!B293 -> 0 | GF27: =VLOOKUP(Главный!$AX$47,EK55:FM57,29,0) ->  | GG27: =Матрица!C293 ->  | GH27: =Матрица!D293 ->  | GI27: =Матрица!E293 ->  | GJ27: =Матрица!I293 -> IP 54 | GK27: =VLOOKUP(Главный!AX47,EK55:FD57,20,0) ->  | GL27: один | GM27: =VLOOKUP(Главный!$AX$47,EK55:FA57,17,0) -> 
D30: Толщина теплоизолции кровли | BA30: =Главный!AX24 -> выберите | BK30: мм | DH30: =FA30 -> 0 | DO30: =Матрица!A304 -> HC35-3S | EK30: =VLOOKUP(DO30,Матрица!$A$302:$C$309,3,0) -> 0 | FA30: =VLOOKUP(DO30,Матрица!$A$302:$D$309,4,0) -> 0 | FM30: =IF(EK30=$EK$44,FA30,0) ->  | FN30: =IF(FM30=0,10000000,FA30) ->  | FP30: =IF(FA30>0,FA30,10000000) -> 10000000 | GE30: =Матрица!B294 -> 0 | GF30: =VLOOKUP(Главный!$AX$47,EK60:FM62,29,0) ->  | GG30: =Матрица!C294 ->  | GH30: =Матрица!D294 ->  | GI30: =Матрица!E294 ->  | GJ30: =Матрица!I294 -> IP 54 | GK30: =VLOOKUP(Главный!AX47,EK60:FD62,20,0) ->  | GL30: два | GM30: =VLOOKUP(Главный!$AX$47,EK60:FA62,17,0) -> 
D32: Толщина теплоизолции фундамента | BA32: =Главный!AX28 -> выберите | BK32: мм | DH32: =FA32 -> 0 | DO32: =Матрица!A305 -> HC45-3S | EK32: =VLOOKUP(DO32,Матрица!$A$302:$C$309,3,0) -> 0 | FA32: =VLOOKUP(DO32,Матрица!$A$302:$D$309,4,0) -> 0 | FM32: =IF(EK32=$EK$44,FA32,0) ->  | FN32: =IF(FM32=0,10000000,FA32) ->  | FP32: =IF(FA32>0,FA32,10000000) -> 10000000 | GE32: =Матрица!B295 -> 0 | GF32: =VLOOKUP(Главный!$AX$47,EK65:FM67,29,0) ->  | GG32: =Матрица!C295 ->  | GH32: =Матрица!D295 ->  | GI32: =Матрица!E295 ->  | GJ32: =Матрица!I295 -> IP 54 | GK32: =VLOOKUP(Главный!AX47,EK65:FD67,20,0) ->  | GL32: два | GM32: =VLOOKUP(Главный!$AX$47,EK65:FA67,17,0) -> 
D34: Объём приточного воздуха | AN34: =Расчет!B25 ->  | AZ34: м³/ч | DH34: =FA34 -> 0 | DO34: =Матрица!A306 -> HC50-3S | EK34: =VLOOKUP(DO34,Матрица!$A$302:$C$309,3,0) -> 0 | FA34: =VLOOKUP(DO34,Матрица!$A$302:$D$309,4,0) -> 0 | FM34: =IF(EK34=$EK$44,FA34,0) ->  | FN34: =IF(FM34=0,10000000,FA34) ->  | FP34: =IF(FA34>0,FA34,10000000) -> 10000000 | GE34: =Матрица!B296 -> 0 | GF34: =VLOOKUP(Главный!$AX$47,EK70:FM72,29,0) ->  | GG34: =Матрица!C296 ->  | GH34: =Матрица!D296 ->  | GI34: =Матрица!E296 ->  | GJ34: =Матрица!I296 -> IP 54 | GK34: =VLOOKUP(Главный!AX47,EK70:FD72,20,0) ->  | GL34: два | GM34: =VLOOKUP(Главный!$AX$47,EK70:FA72,17,0) -> 
D36: Важное спец. условие | AG36: =IF(Главный!AC2<5001,Федя!F19/1000,0) -> 0
D37: Общие тепловые потери | AG37: =IF(Главный!AX41=Главный!LO4,Интерфейс!AG36,IF(Главный!AX41=Главный!LO5,'Федя догрев'!F19/1000)) -> FALSE | AS37: кВт | BH37: С учетом принтых потерь | CK37: =IF(Главный!FE43>0,Главный!FE43,Главный!FE41) -> 0 | DH37: =FA37 -> 0 | DO37: =Матрица!A307 -> HC70-3S | EK37: =VLOOKUP(DO37,Матрица!$A$302:$C$309,3,0) -> 0 | FA37: =VLOOKUP(DO37,Матрица!$A$302:$D$309,4,0) -> 0 | FM37: =IF(EK37=$EK$44,FA37,0) ->  | FN37: =IF(FM37=0,10000000,FA37) ->  | FP37: =IF(FA37>0,FA37,10000000) -> 10000000 | GE37: =Матрица!B297 -> 0 | GF37: =VLOOKUP(Главный!$AX$47,EK75:FM77,29,0) ->  | GG37: =Матрица!C297 ->  | GH37: =Матрица!D297 ->  | GI37: =Матрица!E297 ->  | GJ37: =Матрица!I297 -> IP 54 | GK37: =VLOOKUP(Главный!AX47,EK75:FD77,20,0) ->  | GL37: три | GM37: =VLOOKUP(Главный!$AX$47,EK75:FA77,17,0) -> 
D39: Тепловые потери | AG39: =Федя!Y6 -> 0 | AS39: Вт/м² | DH39: =FA39 ->  | DO39: =Матрица!A309 -> HCF IP54 | EK39: =VLOOKUP(DO39,Матрица!$A$302:$C$309,3,0) ->  | FA39: =VLOOKUP(DO39,Матрица!$A$302:$D$309,4,0) ->  | FM39: =IF(EK39=$EK$44,FA39,0) ->  | FN39: =IF(FM39=0,10000000,FA39) ->  | FP39: =IF(FA39>0,FA39,10000000) ->  | GE39: =Матрица!B299 ->  | GF39: =VLOOKUP(Главный!$AX$47,EK80:FM82,29,0) ->  | GG39: =Матрица!C299 ->  | GH39: =Матрица!D299 ->  | GI39: =Матрица!E299 ->  | GJ39: =Матрица!I299 -> IP 54 | GK39: =VLOOKUP(Главный!AX47,EK80:FD82,20,0) ->  | GL39: два | GM39: =VLOOKUP(Главный!$AX$47,EK80:FA82,17,0) -> 
D41: Температурный график | AG41: =Главный!AX43 -> выберите | DH41: =FA41 ->  | DO41: =Матрица!A308 -> HCF IP65 | EK41: =VLOOKUP(DO41,Матрица!$A$302:$C$309,3,0) ->  | FA41: =VLOOKUP(DO41,Матрица!$A$302:$D$309,4,0) ->  | FM41: =IF(EK41=$EK$44,FA41,0) ->  | FN41: =IF(FM41=0,10000000,FA41) ->  | FP41: =IF(FA41>0,FA41,10000000) ->  | GE41: =Матрица!B298 ->  | GF41: =VLOOKUP(Главный!$AX$47,EK85:FM87,29,0) ->  | GG41: =Матрица!C298 ->  | GH41: =Матрица!D298 ->  | GI41: =Матрица!E298 ->  | GJ41: =Матрица!I298 -> IP 65 | GK41: =VLOOKUP(Главный!AX47,EK85:FD87,20,0) ->  | GL41: два | GM41: =VLOOKUP(Главный!$AX$47,EK85:FA87,17,0) -> 
D43: Эксплуатация в агрессивной среде | AV43: =Главный!AX45 -> выберите
D44: Кратность воздухообмена | AM44: =Главный!AX37 -> 0 | DO44: =VLOOKUP(FA44,DH25:EA41,8,0) ->  | EK44: =MAX(EK25:ES41) ->  | FA44: =MIN(FP25:GD41) ->  | FN44: =MIN(FN25:FN41) -> 
DO50: =DO25 -> HC20-3S | EK50: минимальная | FA50: 1350 | FD50: 47 | FM50: =FM52*FN50 -> 12.35 | FN50: 0.65 | GE50: =Главный!KY5 -> Плоская | GF50: 0
EK51: средняя | FA51: 2150 | FD51: 49 | FM51: =FM52*FN51 -> 17.1 | FN51: 0.9 | GE51: =Главный!KY6 -> 2-х скатная | GF51: =Главный!AX22 -> выберите
EK52: максимальная | FA52: 3200 | FD52: 55 | FM52: 19 | GE52: =Главный!KY7 -> Полукруглая кровля | GF52: =Главный!AX22 -> выберите
DO55: =DO27 -> HC30-3S | EK55: минимальная | FA55: 1250 | FD55: 47 | FM55: =FM57*FN55 -> 11.7 | FN55: 0.65
EK56: средняя | FA56: 1950 | FD56: 49 | FM56: =FM57*FN56 -> 16.2 | FN56: 0.9
EK57: максимальная | FA57: 3100 | FD57: 55 | FM57: 18
DO60: =DO30 -> HC35-3S | EK60: минимальная | FA60: 1100 | FD60: 46 | FM60: =FM62*FN60 -> 9.75 | FN60: 0.65
EK61: средняя | FA61: 1700 | FD61: 48 | FM61: =FM62*FN61 -> 13.5 | FN61: 0.9
EK62: максимальная | FA62: 2700 | FD62: 54 | FM62: 15
DO65: =DO32 -> HC45-3S | EK65: минимальная | FA65: 950 | FD65: 46 | FM65: =FM67*FN65 -> 9.1 | FN65: 0.65
EK66: средняя | FA66: 1450 | FD66: 48 | FM66: =FM67*FN66 -> 12.6 | FN66: 0.9
EK67: максимальная | FA67: 2500 | FD67: 54 | FM67: 14
DO70: =DO34 -> HC50-3S | EK70: минимальная | FA70: 1750 | FD70: 50 | FM70: =FM72*FN70 -> 13.65 | FN70: 0.65
EK71: средняя | FA71: 2400 | FD71: 54 | FM71: =FM72*FN71 -> 18.9 | FN71: 0.9
EK72: максимальная | FA72: 4000 | FD72: 59 | FM72: 21
DO75: =DO37 -> HC70-3S | EK75: минимальная | FA75: 1450 | FD75: 49 | FM75: =FM77*FN75 -> 11.7 | FN75: 0.65
EK76: средняя | FA76: 1900 | FD76: 53 | FM76: =FM77*FN76 -> 16.2 | FN76: 0.9
EK77: максимальная | FA77: 3400 | FD77: 58 | FM77: 18
DO80: =DO39 -> HCF IP54 | EK80: минимальная | FA80: 1750 | FD80: 50 | FM80: =FM82*FN80 -> 13.65 | FN80: 0.65
EK81: средняя | FA81: 2400 | FD81: 54 | FM81: =FM82*FN81 -> 18.9 | FN81: 0.9
EK82: максимальная | FA82: 4000 | FD82: 59 | FM82: 21
DO85: =DO41 -> HCF IP65 | EK85: минимальная | FA85: 4400 | FD85: 57 | FM85: =FM87*FN85 -> 14.95 | FN85: 0.65
EK86: средняя | FA86: 4650 | FD86: 60 | FM86: =FM87*FN86 -> 20.7 | FN86: 0.9
EK87: максимальная | FA87: 5000 | FD87: 65 | FM87: 23

Sheet Материалы (hidden)
